Ref No,Fund Type,Dept,Cost Centre Description    ,Description    ,Creditor Name    ,GL Code Net Amount,Payment date        
2,Revenue,CCHD,Bed purchasing - Elderly S117 - South,Permanent Nursing,.,2107.9, 18-Mar-2014
3,Revenue,CCHD,Breakthrough and Inclusion Work,Other Supplies & Services,121Turnaround Ltd,3863, 31-Mar-2014
4,Revenue,CCHD,Breakthrough and Inclusion Work,Other Supplies & Services,121Turnaround Ltd,3600.02, 31-Mar-2014
5,Revenue,CCHD,Home Care - Elderly - South,Other Small Contracts,3 Trees Community Support Ltd,196.68, 07-Mar-2014
6,Revenue,CCHD,Home Care - Elderly - North,Other Small Contracts,3 Trees Community Support Ltd,2905.5, 07-Mar-2014
7,Revenue,CCHD,Day Care - North,Private & Voluntary Day Care,3 Trees Community Support Ltd,53.64, 07-Mar-2014
8,Revenue,CCHD,Home Care - Elderly - South,Other Small Contracts,3 Trees Community Support Ltd,89.4, 11-Mar-2014
9,Revenue,CCHD,Home Care - Elderly - North,Other Small Contracts,3 Trees Community Support Ltd,2708.82, 11-Mar-2014
10,Revenue,CCHD,Day Care - North,Private & Voluntary Day Care,3 Trees Community Support Ltd,53.64, 11-Mar-2014
11,Revenue,CCHD,Home Care - Elderly - South,Other Small Contracts,3 Trees Community Support Ltd,196.68, 18-Mar-2014
12,Revenue,CCHD,Home Care - Elderly - North,Other Small Contracts,3 Trees Community Support Ltd,2753.52, 18-Mar-2014
13,Revenue,CCHD,Day Care - North,Private & Voluntary Day Care,3 Trees Community Support Ltd,53.64, 18-Mar-2014
14,Revenue,CCHD,Home Care - Elderly - South,Other Small Contracts,3 Trees Community Support Ltd,196.68, 28-Mar-2014
15,Revenue,CCHD,Home Care - Elderly - North,Other Small Contracts,3 Trees Community Support Ltd,2449.56, 28-Mar-2014
16,Revenue,CCHD,Day Care - North,Private & Voluntary Day Care,3 Trees Community Support Ltd,53.64, 28-Mar-2014
17,Revenue,CCHD,Home Care - Elderly - South,Other Small Contracts,3 Trees Community Support Ltd,196.68, 28-Mar-2014
18,Revenue,CCHD,Home Care - Elderly - North,Other Small Contracts,3 Trees Community Support Ltd,2869.74, 28-Mar-2014
19,Revenue,CCHD,Day Care - North,Private & Voluntary Day Care,3 Trees Community Support Ltd,53.64, 28-Mar-2014
20,Revenue,CCHD,Purchase of Non-Res Care - North,Private & Voluntary Day Care,3 Trees Community Support Ltd,4206.27, 24-Mar-2014
21,Revenue,CCHD,Purchase of Non-Res Care - North,Private & Voluntary Day Care,3 Trees Community Support Ltd,1843.68, 24-Mar-2014
22,Revenue,CCHD,Purchase of Non-Res Care - North,Private & Voluntary Day Care,3 Trees Community Support Ltd,1706.36, 24-Mar-2014
23,Revenue,CCHD,Purchase of Non-Res Care - North,Private & Voluntary Day Care,3 Trees Community Support Ltd,1357.26, 24-Mar-2014
24,Revenue,CCHD,Purchase of Non-Res Care - South,Private & Voluntary Day Care,3 Trees Community Support Ltd,3171.7, 24-Mar-2014
25,Revenue,CCHD,Supported Living - North,Private & Voluntary Home Care,3 Trees Community Support Ltd,7632.8, 17-Mar-2014
26,Revenue,CCHD,Supported Living - North,Private & Voluntary Home Care,3 Trees Community Support Ltd,7945.22, 17-Mar-2014
27,Revenue,CCHD,Supported Living - South,Private & Voluntary Home Care,3 Trees Community Support Ltd,7598.48, 17-Mar-2014
28,Revenue,CCHD,Direct Payments - Phys Dis - North,Grants to Voluntary Bodies,A4E Management Limited,23434.92, 27-Mar-2014
29,Revenue,CCHD,Bed Purchasing - Frenchay Hospital,Permanent Nursing,Aabletone Nursing Home,2841.3, 18-Mar-2014
30,Revenue,CCHD,MH Purchasing - Younger,Permanent Residential,Abbey Grange,4530.24, 18-Mar-2014
31,Revenue,CCHD,Bed Purchasing - Frenchay Hospital,Permanent Residential,Abbey Grange,1869, 18-Mar-2014
32,Revenue,CCHD,Bed Purchasing - Frenchay Hospital,Permanent Residential,Abbey Grange,1869, 18-Mar-2014
33,Revenue,CCHD,Bed Purchasing - Frenchay Hospital,Permanent Residential,Abbey Grange,4253.61, 18-Mar-2014
34,Revenue,CCHD,Bed Purchasing - Frenchay Hospital,Permanent Residential,Abbey Grange,3134.24, 18-Mar-2014
35,Revenue,CCHD,Bed purchasing - Phys Dis - North,Permanent Nursing,ABI Development Limited,6874.36, 18-Mar-2014
36,Revenue,CCHD,Bed and Breakfast,Storage & Removal,Ablemove-Wottons,540, 24-Mar-2014
37,Revenue,CCHD,Day Care - South,Private & Voluntary Day Care,About Me Care and Support Limited,780.16, 28-Mar-2014
38,Revenue,CCHD,Day Care - South,Private & Voluntary Day Care,About Me Care and Support Limited,832.3, 20-Mar-2014
39,Revenue,CCHD,Day Care - South,Private & Voluntary Day Care,About Me Care and Support Limited,780.16, 20-Mar-2014
40,Revenue,CCHD,Day Care - North,Private & Voluntary Day Care,About Me Care and Support Limited,1285, 24-Mar-2014
41,Revenue,CCHD,Bed purchasing - Under 65s PWLD - North,Permanent Residential,Acorn Care Providers,5744.4, 18-Mar-2014
42,Revenue,CCHD,Day Care - North,Private & Voluntary Day Care,Action on Hearing Loss,673, 17-Mar-2014
43,Revenue,CCHD,Day Care - North,Private & Voluntary Day Care,Action on Hearing Loss,538.4, 31-Mar-2014
44,Revenue,CCHD,Home Care - Elderly - South,Other Small Contracts,Agincare Chippenham,976.6, 07-Mar-2014
45,Revenue,CCHD,Home Care - Elderly - South,Other Small Contracts,Agincare Chippenham,969, 07-Mar-2014
46,Revenue,CCHD,Home Care - Elderly - South,Other Small Contracts,Agincare Chippenham,984.2, 07-Mar-2014
47,Revenue,CCHD,Home Care - Elderly - South,Other Small Contracts,Agincare UK Limited,600.4, 31-Mar-2014
48,Revenue,CCHD,Home Care - Elderly - North,Other Small Contracts,Agincare UK Limited,83.6, 31-Mar-2014
49,Revenue,CCHD,Elderly MH Day Care North,Private & Voluntary Day Care,Agincare UK Limited,53.2, 31-Mar-2014
50,Revenue,CCHD,Home Care - Elderly - North,Other Small Contracts,Agincare UK Nutfield,505.4, 07-Mar-2014
51,Revenue,CCHD,Home Care - Elderly - North,Other Small Contracts,Agincare UK Nutfield,608, 31-Mar-2014
52,Revenue,CCHD,Home Care - Elderly - North,Other Small Contracts,Agincare UK Nutfield,524.4, 31-Mar-2014
53,Revenue,CCHD,Home Care - Elderly - North,Other Small Contracts,Agincare UK Nutfield,528.2, 31-Mar-2014
54,Revenue,CCHD,S117 Placements PCT,Permanent Residential,Alexandra House,6875.64, 18-Mar-2014
55,Revenue,CCHD,Bed Purchasing - Under 65s PWLD - South,Permanent Residential,Alexandra House,6069, 18-Mar-2014
56,Revenue,CCHD,Section 117 Placements MH Younger,Permanent Residential,Alexandra House,6400.88, 18-Mar-2014
57,Revenue,CCHD,Home Care - Elderly - South,Other Small Contracts,AliMo Care Ltd,987.08, 05-Mar-2014
58,Revenue,CCHD,Home Care - Elderly - North,Other Small Contracts,AliMo Care Ltd,1602.36, 05-Mar-2014
59,Revenue,CCHD,Home Care - Elderly - South,Other Small Contracts,AliMo Care Ltd,900.35, 14-Mar-2014
60,Revenue,CCHD,Home Care - Elderly - North,Other Small Contracts,AliMo Care Ltd,1689.09, 14-Mar-2014
61,Revenue,CCHD,Home Care - Elderly - South,Other Small Contracts,AliMo Care Ltd,751.67, 26-Mar-2014
62,Revenue,CCHD,Home Care - Elderly - North,Other Small Contracts,AliMo Care Ltd,1635.4, 26-Mar-2014
63,Revenue,CCHD,Home Care - Elderly - South,Other Small Contracts,AliMo Care Ltd,598.86, 26-Mar-2014
64,Revenue,CCHD,Home Care - Elderly - North,Other Small Contracts,AliMo Care Ltd,1651.92, 26-Mar-2014
65,Revenue,CCHD,Sexual Health Services - Contraception,Other Supplies & Services,Almondsbury Surgery,526.5, 17-Mar-2014
66,Revenue,CCHD,Bed Purchasing - Southmead Hospital,Permanent Nursing,Ambleside Nusing Ho!,1425.36, 18-Mar-2014
67,Revenue,CCHD,Swift Dump Code,Permanent Residential,Anbridge Care Home,998.68, 18-Mar-2014
68,Revenue,CCHD,Bed purchasing - Under 65s PWLD - North,Permanent Residential,Ark Care Homes Ltd,10163.76, 18-Mar-2014
69,Revenue,CCHD,Stop Smoking Services and Interventions,Other Supplies & Services,Asda Stores Limited,1147.81, 10-Mar-2014
70,Revenue,CCHD,Stop Smoking Services and Interventions,Other Supplies & Services,Asda Stores Limited,2191.52, 10-Mar-2014
71,Revenue,CCHD,Stop Smoking Services and Interventions,Other Supplies & Services,Asda Stores Limited,774.22, 17-Mar-2014
72,Revenue,CCHD,Bed Purchasing - Elderly - South,Permanent Residential,Ashbourne House Care Home Limited,1107.96, 18-Mar-2014
73,Revenue,CCHD,Home Care - Elderly - South,Other Small Contracts,Ashley Commercial Finance Ltd,1127.02, 03-Mar-2014
74,Revenue,CCHD,Home Care - Elderly - North,Other Small Contracts,Ashley Commercial Finance Ltd,2664.63, 03-Mar-2014
75,Revenue,CCHD,Home Care - Elderly - South,Other Small Contracts,Ashley Commercial Finance Ltd,863.19, 24-Mar-2014
76,Revenue,CCHD,Home Care - Elderly - North,Other Small Contracts,Ashley Commercial Finance Ltd,2689.65, 24-Mar-2014
77,Revenue,CCHD,Home Care - Elderly - South,Other Small Contracts,Ashley Commercial Finance Ltd,984.12, 24-Mar-2014
78,Revenue,CCHD,Home Care - Elderly - North,Other Small Contracts,Ashley Commercial Finance Ltd,2731.35, 24-Mar-2014
79,Revenue,CCHD,Home Care - Elderly - South,Other Small Contracts,Ashley Commercial Finance Ltd,942.42, 28-Mar-2014
80,Revenue,CCHD,Home Care - Elderly - North,Other Small Contracts,Ashley Commercial Finance Ltd,2660.46, 28-Mar-2014
81,Revenue,CCHD,Home Care - Elderly - South,Other Small Contracts,Ashley Commercial Finance Ltd,971.61, 28-Mar-2014
82,Revenue,CCHD,Home Care - Elderly - North,Other Small Contracts,Ashley Commercial Finance Ltd,2798.07, 28-Mar-2014
83,Revenue,CCHD,Home Care - Elderly - South,Other Small Contracts,Ashley Commercial Finance Ltd,975.78, 28-Mar-2014
84,Revenue,CCHD,Home Care - Elderly - North,Other Small Contracts,Ashley Commercial Finance Ltd,2977.38, 28-Mar-2014
85,Revenue,CCHD,Bed and Breakfast,Bed & Breakfast,Ashley Guest Houses Limited,420, 05-Mar-2014
86,Revenue,CCHD,Bed purchasing - Under 65s PWLD - North,Permanent Residential,Aspects 2 Limited,6265.24, 18-Mar-2014
87,Revenue,CCHD,Supported Living - South,Private & Voluntary Home Care,Aspirations Support Bristol Limited,4168.01, 06-Mar-2014
88,Revenue,CCHD,Supported Living - South,Private & Voluntary Home Care,Aspirations Support Bristol Limited,8776.86, 10-Mar-2014
89,Revenue,CCHD,Supported Living - South,Private & Voluntary Home Care,Aspirations Support Bristol Limited,8687.18, 06-Mar-2014
90,Revenue,CCHD,Supported Living - South,Private & Voluntary Home Care,Aspirations Support Bristol Limited,8541.2, 10-Mar-2014
91,Revenue,CCHD,Supported Living - South,Private & Voluntary Home Care,Aspirations Support Bristol Limited,3552.35, 10-Mar-2014
92,Revenue,CCHD,Supported Living - South,Private & Voluntary Home Care,Aspirations Support Bristol Limited,3538.99, 10-Mar-2014
93,Revenue,CCHD,Purchase of Non-Res Care - South,Private & Voluntary Day Care,Aspirations Support Bristol Limited,2499.48, 17-Mar-2014
94,Revenue,CCHD,Day Care - South,Private & Voluntary Day Care,Aspirations Support Bristol Limited,863.46, 06-Mar-2014
95,Revenue,CCHD,CAH Director,Membership Fees,Association of Directors of Childrens Services Ltd,2351.25, 27-Mar-2014
96,Revenue,CCHD,Bed Purchasing - Under 65s PWLD - South,Permanent Residential,Autism Specialised Care Homes,5584.12, 18-Mar-2014
97,Revenue,CCHD,Younger Adult Mental Health,Health Services (Third Party Payments),Avon & Wiltshire Mental Health,1606, 14-Mar-2014
98,Revenue,CCHD,Purchase of Non-Res Care - North,Private & Voluntary Day Care,Avon Autistic Foundation Limited,2301.6, 17-Mar-2014
99,Revenue,CCHD,Purchase of Non-Res Care - North,Private & Voluntary Day Care,Avon Autistic Foundation Limited,3378.04, 17-Mar-2014
100,Revenue,CCHD,Day Care - North,Private & Voluntary Day Care,Avonedge Limited,750, 31-Mar-2014
101,Revenue,CCHD,Bed Purchasing - Southmead Hospital,Permanent Nursing,Bamfield Lodge,1118.98, 19-Mar-2014
102,Revenue,CCHD,Bed Purchasing - Elderly - South,Respite Emergency - Nursing,Barchester Healthcare SaltfoDONOTUSE,2486.88, 06-Mar-2014
103,Revenue,CCHD,Bed Purchasing - Frenchay Hospital,Permanent Nursing,Bayview Nursing & Residential Home,1463.36, 18-Mar-2014
104,Revenue,CCHD,South Glos Users in South Glos Homes,Permanent Nursing,Beaufort Grange Care Home,862.64, 18-Mar-2014
105,Revenue,CCHD,South Glos Users in South Glos Homes,Permanent Nursing,Beaufort Grange Care Home,3340.75, 18-Mar-2014
106,Revenue,CCHD,South Glos Users in South Glos Homes,Permanent Nursing,Beaufort Grange Care Home,1929.17, 18-Mar-2014
107,Revenue,CCHD,Bed Purchasing - Elderly - North,Permanent Nursing,Beaufort Grange Care Home,920, 18-Mar-2014
108,Revenue,CCHD,South Glos Users in South Glos Homes,Permanent Nursing,Beaufort Grange Care Home,690.11, 18-Mar-2014
109,Revenue,CCHD,Bed Purchasing - Elderly - North,Permanent Nursing,Beaufort Grange Care Home,1510, 18-Mar-2014
110,Revenue,CCHD,South Glos Users in South Glos Homes,Permanent Nursing,Beaufort Grange Care Home,3340.75, 18-Mar-2014
111,Revenue,CCHD,Bed Purchasing - Elderly - North,Permanent Residential,Beaufort House,1801.76, 18-Mar-2014
112,Revenue,CCHD,Bed purchasing - Elderly MH - North,Permanent Residential,Beaufort House,1514.84, 18-Mar-2014
113,Revenue,CCHD,Bed purchasing - Elderly MH - North,Permanent Residential,Beaufort House,1383.68, 18-Mar-2014
114,Revenue,CCHD,Bed Purchasing - Elderly - North,Permanent Residential,Beaufort House,1836.08, 18-Mar-2014
115,Revenue,CCHD,Bed Purchasing - Frenchay Hospital,Permanent Residential,Beaufort House,1285.32, 18-Mar-2014
116,Revenue,CCHD,Bed Purchasing - Elderly - North,Permanent Residential,Beaufort House,1726.68, 18-Mar-2014
117,Revenue,CCHD,Bed purchasing - Elderly MH - North,Permanent Residential,Beaufort House,1684.12, 18-Mar-2014
118,Revenue,CCHD,Bed Purchasing - Elderly - North,Permanent Residential,Beaufort House,1519.32, 18-Mar-2014
119,Revenue,CCHD,Bed purchasing - Elderly PWLD - South,Permanent Residential,Bedrock Lodge,2909.4, 18-Mar-2014
120,Revenue,CCHD,Section 117 Placements MH Younger,Permanent Residential,Bedrock Lodge,1837.68, 18-Mar-2014
121,Revenue,CCHD,Bed Purchasing - Elderly - North,Permanent Nursing,Beech House,3904.52, 18-Mar-2014
122,Revenue,CCHD,Bed Purchasing - Elderly - North,Permanent Nursing,Beech House,2346.84, 18-Mar-2014
123,Revenue,CCHD,Swift Dump Code,Permanent Residential,Beech House,653.64, 18-Mar-2014
124,Revenue,CCHD,South Glos Users in South Glos Homes,Permanent Nursing,Beech House,3372.12, 18-Mar-2014
125,Revenue,CCHD,South Glos Users in South Glos Homes,Permanent Nursing,Beech House,5269.92, 18-Mar-2014
126,Revenue,CCHD,South Glos Users in South Glos Homes,Permanent Nursing,Beech House,1211.23, 18-Mar-2014
127,Revenue,CCHD,South Glos Users in South Glos Homes,Permanent Nursing,Beech House,1866.43, 18-Mar-2014
128,Revenue,CCHD,South Glos Users in South Glos Homes,Permanent Nursing,Beech House,2634.96, 18-Mar-2014
129,Revenue,CCHD,Bed Purchasing - Elderly - North,Permanent Residential,Beech House,1885.64, 18-Mar-2014
130,Revenue,CCHD,Bed Purchasing - Elderly - North,Permanent Nursing,Beech House,2095.68, 18-Mar-2014
131,Revenue,CCHD,Bed Purchasing - Elderly - North,Permanent Nursing,Beech House,725.16, 18-Mar-2014
132,Revenue,CCHD,Bed Purchasing - Elderly - North,Permanent Residential,Beech House,2611.14, 18-Mar-2014
133,Revenue,CCHD,Bed Purchasing - Elderly - North,Permanent Residential,Beech House,1924, 18-Mar-2014
134,Revenue,CCHD,Bed Purchasing - Elderly - North,Permanent Nursing,Beech House,6919.82, 18-Mar-2014
135,Revenue,CCHD,Bed Purchasing - Elderly - North,Permanent Nursing,Beech House,2314.84, 18-Mar-2014
136,Revenue,CCHD,South Glos Users in South Glos Homes,Permanent Nursing,Blossom Field,4877.81, 18-Mar-2014
137,Revenue,CCHD,Bed Purchasing - Elderly - North,Permanent Nursing,Blossom Field,1843.72, 18-Mar-2014
138,Revenue,CCHD,South Glos Users in South Glos Homes,Permanent Nursing,Blossom Field,1803.69, 18-Mar-2014
139,Revenue,CCHD,Bed Purchasing - Elderly - North,Permanent Nursing,Blossom Field,2324, 18-Mar-2014
140,Revenue,CCHD,Bed Purchasing - Elderly - North,Permanent Nursing,Blossom Field,2075, 18-Mar-2014
141,Revenue,CCHD,Bed Purchasing - Elderly - North,Permanent Nursing,Blossom Field,1911, 18-Mar-2014
142,Revenue,CCHD,South Glos Users in South Glos Homes,Permanent Nursing,Blossom Field,2619.28, 18-Mar-2014
143,Revenue,CCHD,Bed Purchasing - Elderly - North,Permanent Nursing,Blossom Field,2271, 18-Mar-2014
144,Revenue,CCHD,South Glos Users in South Glos Homes,Permanent Nursing,Blossom Field,1003.79, 18-Mar-2014
145,Revenue,CCHD,Bed purchasing - Elderly MH - North,Permanent Nursing,Blossom Field,1400.04, 18-Mar-2014
146,Revenue,CCHD,South Glos Users in South Glos Homes,Permanent Nursing,Blossom Field,2525.17, 18-Mar-2014
147,Revenue,CCHD,Bed Purchasing - Elderly - South,Permanent Nursing,Blossom Field,1884.56, 18-Mar-2014
148,Revenue,CCHD,Bed Purchasing - Elderly - North,Permanent Nursing,Blossom Fields,2551.21, 17-Mar-2014
149,Revenue,CCHD,Bed Purchasing - Southmead Hospital,Permanent Nursing,Blossom Fields,1917.7, 17-Mar-2014
150,Revenue,CCHD,South Glos Users in South Glos Homes,Permanent Nursing,Blossom Fields,3544.65, 17-Mar-2014
151,Revenue,CCHD,Bed purchasing - Elderly MH - North,Permanent Nursing,Blossom Fields,1854.38, 17-Mar-2014
152,Revenue,CCHD,DAT Treatment,Rent,BNP Paribas Real Estate,6159, 25-Mar-2014
153,Revenue,CCHD,Training - Adult Services,Training Expenses,Bob Dawson,1025, 24-Mar-2014
154,Revenue,CCHD,Sexual Health Services - STI & Treatment,Other Supplies & Services,Boots UK Ltd,2585, 11-Mar-2014
155,Revenue,CCHD,Stop Smoking Services and Interventions,Other Supplies & Services,Boots UK Ltd,7883.22, 11-Mar-2014
156,Revenue,CCHD,Stop Smoking Services and Interventions,Other Supplies & Services,Boots UK Ltd,3223.05, 20-Mar-2014
157,Revenue,CCHD,Bed purchasing - Under 65s PWLD - North,Permanent Residential,Bradbury House,8632.8, 18-Mar-2014
158,Revenue,CCHD,Home Care - Elderly - North,Other Small Contracts,Bradley House Home Care Services,1397.72, 03-Mar-2014
159,Revenue,CCHD,Day Care - North,Private & Voluntary Day Care,Bradley House Home Care Services,101.04, 03-Mar-2014
160,Revenue,CCHD,Home Care - Elderly - North,Other Small Contracts,Bradley House Home Care Services,1380.88, 03-Mar-2014
161,Revenue,CCHD,Day Care - North,Private & Voluntary Day Care,Bradley House Home Care Services,101.04, 03-Mar-2014
162,Revenue,CCHD,Home Care - Elderly - North,Other Small Contracts,Bradley House Home Care Services,1431.4, 07-Mar-2014
163,Revenue,CCHD,Day Care - North,Private & Voluntary Day Care,Bradley House Home Care Services,101.04, 07-Mar-2014
164,Revenue,CCHD,Home Care - Elderly - North,Other Small Contracts,Bradley House Home Care Services,1435.61, 17-Mar-2014
165,Revenue,CCHD,Day Care - North,Private & Voluntary Day Care,Bradley House Home Care Services,101.04, 17-Mar-2014
166,Revenue,CCHD,Home Care - Elderly - North,Other Small Contracts,Bradley House Home Care Services,1422.98, 26-Mar-2014
167,Revenue,CCHD,Day Care - North,Private & Voluntary Day Care,Bradley House Home Care Services,101.04, 26-Mar-2014
168,Revenue,CCHD,Home Care - Elderly - North,Other Small Contracts,Bradley House Home Care Services,1410.35, 31-Mar-2014
169,Revenue,CCHD,Day Care - North,Private & Voluntary Day Care,Bradley House Home Care Services,101.04, 31-Mar-2014
170,Revenue,CCHD,Stop Smoking Services and Interventions,Other Supplies & Services,Bradley Stoke Surgery,609, 17-Mar-2014
171,Revenue,CCHD,Sexual Health Services - Contraception,Other Supplies & Services,Bradley Stoke Surgery,1435, 17-Mar-2014
172,Revenue,CCHD,Woodleaze,"Provisions (Food, etc)",Brake Bros,586.44, 07-Mar-2014
173,Revenue,CCHD,Alexandra Way,"Provisions (Food, etc)",Brake Bros,623.49, 04-Mar-2014
174,Revenue,CCHD,Woodleaze,"Provisions (Food, etc)",Brake Bros,566.73, 05-Mar-2014
175,Revenue,CCHD,Alexandra Way,"Provisions (Food, etc)",Brake Bros,521.17, 06-Mar-2014
176,Revenue,CCHD,Woodleaze,"Provisions (Food, etc)",Brake Bros,679.68, 14-Mar-2014
177,Revenue,CCHD,Management & Support costs,Other Supplies & Services,Bramley Hse (Sursure Ltd),1741.99, 24-Mar-2014
178,Revenue,CCHD,South Glos Users in South Glos Homes,Permanent Nursing,Brandon Trust,5269.92, 18-Mar-2014
179,Revenue,CCHD,South Glos Users in South Glos Homes,Permanent Nursing,Brandon Trust,2329.29, 18-Mar-2014
180,Revenue,CCHD,South Glos Users in South Glos Homes,Permanent Nursing,Brandon Trust,5269.92, 18-Mar-2014
181,Revenue,CCHD,South Glos Users in South Glos Homes,Permanent Nursing,Brandon Trust,2329.29, 18-Mar-2014
182,Revenue,CCHD,South Glos Users in South Glos Homes,Permanent Nursing,Brandon Trust,5269.92, 18-Mar-2014
183,Revenue,CCHD,South Glos Users in South Glos Homes,Permanent Nursing,Brandon Trust,2329.29, 18-Mar-2014
184,Revenue,CCHD,Bed Purchasing - S28A - Over 65- North,Permanent Residential,Brandon Trust,3054.48, 18-Mar-2014
185,Revenue,CCHD,Bed Purchasing - Under 65s PWLD - South,Permanent Residential,Brandon Trust,10118.24, 18-Mar-2014
186,Revenue,CCHD,Bed Purchasing - Under 65s PWLD - South,Permanent Residential,Brandon Trust,3976.8, 18-Mar-2014
187,Revenue,CCHD,Bed purchasing - Elderly PWLD - South,Permanent Residential,Brandon Trust,3412.04, 18-Mar-2014
188,Revenue,CCHD,Bed Purchasing - LD S28A- Over 65- South,Permanent Nursing,Brandon Trust,4792.12, 18-Mar-2014
189,Revenue,CCHD,Bed Purchasing - Under 65s PWLD - South,Permanent Nursing,Brandon Trust,4962.92, 18-Mar-2014
190,Revenue,CCHD,Bed purchasing - S28A Under 65 - South,Permanent Nursing,Brandon Trust,5280.52, 18-Mar-2014
191,Revenue,CCHD,Bed purchasing - S28A Under 65 - South,Permanent Residential,Brandon Trust,4832.6, 18-Mar-2014
192,Revenue,CCHD,Bed purchasing - S28A Under 65 - South,Permanent Nursing,Brandon Trust,5280.52, 18-Mar-2014
193,Revenue,CCHD,Bed Purchasing - LD S28A- Over 65- South,Permanent Nursing,Brandon Trust,5109.72, 18-Mar-2014
194,Revenue,CCHD,Bed Purchasing - LD S28A- Over 65- South,Permanent Nursing,Brandon Trust,4777.8, 18-Mar-2014
195,Revenue,CCHD,Bed Purchasing - Under 65s PWLD - South,Permanent Residential,Brandon Trust,3225.28, 18-Mar-2014
196,Revenue,CCHD,Bed Purchasing - S28A - Over 65- North,Permanent Nursing,Brandon Trust,4742.68, 18-Mar-2014
197,Revenue,CCHD,Bed purchasing - S28A Under 65 - South,Permanent Residential,Brandon Trust,5126.44, 18-Mar-2014
198,Revenue,CCHD,Bed purchasing - S28A Under 65 - South,Permanent Residential,Brandon Trust,5181.28, 18-Mar-2014
199,Revenue,CCHD,Bed Purchasing - S28A - Over 65- North,Permanent Residential,Brandon Trust,10838.48, 18-Mar-2014
200,Revenue,CCHD,Bed purchasing - S28A Under 65 - South,Permanent Nursing,Brandon Trust,5280.52, 18-Mar-2014
201,Revenue,CCHD,Bed purchasing - S28A Under 65 - South,Permanent Nursing,Brandon Trust,5280.52, 18-Mar-2014
202,Revenue,CCHD,Bed purchasing -S28A  Under 65 - North,Permanent Nursing,Brandon Trust,4712.96, 18-Mar-2014
203,Revenue,CCHD,Bed purchasing - S28A Under 65 - South,Permanent Residential,Brandon Trust,5181.28, 18-Mar-2014
204,Revenue,CCHD,Bed Purchasing - LD S28A- Over 65- South,Permanent Residential,Brandon Trust,4681.52, 18-Mar-2014
205,Revenue,CCHD,Bed Purchasing - Under 65s PWLD - South,Respite Emergency - Residential,Brandon Trust,4800, 18-Mar-2014
206,Revenue,CCHD,Bed Purchasing - Elderly - North,Permanent Residential,Bridge House Care Home,1000.04, 18-Mar-2014
207,Revenue,CCHD,Bed Purchasing - Elderly - North,Permanent Residential,Bridge House Care Home,1150.56, 18-Mar-2014
208,Revenue,CCHD,Training - Adult Services,Training Expenses,Bridget Rothwell,500, 21-Mar-2014
209,Revenue,CCHD,TSG Practice Placements,Training Expenses,Bridget Rothwell,500, 21-Mar-2014
210,Revenue,CCHD,Bed Purchasing - Elderly MH - South,Permanent Residential,Brightbow,2067.28, 18-Mar-2014
211,Revenue,CCHD,MH Purchasing - Younger,Permanent Residential,Brightbow,1467.4, 18-Mar-2014
212,Revenue,CCHD,Supported Living - North,Private & Voluntary Home Care,Bristol Houses UK Limited,792.45, 27-Mar-2014
213,Revenue,CCHD,Supported Living - North,Private & Voluntary Home Care,Bristol Houses UK Limited,1056.6, 27-Mar-2014
214,Revenue,CCHD,Day Care - North,Private & Voluntary Day Care,Bristol Houses UK Limited,1518.86, 27-Mar-2014
215,Revenue,CCHD,Supported Living - North,Private & Voluntary Home Care,Bristol Houses UK Limited,1003.77, 27-Mar-2014
216,Revenue,CCHD,Day Care - North,Private & Voluntary Day Care,Bristol Houses UK Limited,2280.5, 27-Mar-2014
217,Revenue,CCHD,Supported Living - North,Private & Voluntary Home Care,Bristol Houses UK Limited,938.68, 27-Mar-2014
218,Revenue,CCHD,Supported Living - North,Private & Voluntary Home Care,Bristol Houses UK Limited,610.03, 27-Mar-2014
219,Revenue,CCHD,Bed and Breakfast,Other Supplies & Services,Bristol Housing & Support Limited,1092, 14-Mar-2014
220,Revenue,CCHD,Bed and Breakfast,Other Supplies & Services,Bristol Housing & Support Limited,1092, 14-Mar-2014
221,Revenue,CCHD,Bed and Breakfast,Other Supplies & Services,Bristol Housing & Support Limited,1092, 14-Mar-2014
222,Revenue,CCHD,Bed and Breakfast,Other Supplies & Services,Bristol Housing & Support Limited,1092, 14-Mar-2014
223,Revenue,CCHD,Bed and Breakfast,Other Supplies & Services,Bristol Housing & Support Limited,684, 14-Mar-2014
224,Revenue,CCHD,Bed and Breakfast,Other Supplies & Services,Bristol Housing & Support Limited,504, 14-Mar-2014
225,Revenue,CCHD,Bed and Breakfast,Other Supplies & Services,Bristol Housing & Support Limited,505, 14-Mar-2014
226,Revenue,CCHD,Bed and Breakfast,Other Supplies & Services,Bristol Housing & Support Limited,864, 14-Mar-2014
227,Revenue,CCHD,Day Care - South,Private & Voluntary Day Care,Britannia House,901.6, 18-Mar-2014
228,Revenue,CCHD,Day Care - South,Private & Voluntary Day Care,Britannia House,676.2, 18-Mar-2014
229,Revenue,CCHD,Day Care - North,Private & Voluntary Day Care,Britannia House,901.6, 18-Mar-2014
230,Revenue,CCHD,Day Care - South,Private & Voluntary Day Care,Britannia House,676.2, 18-Mar-2014
231,Revenue,CCHD,Day Care - North,Private & Voluntary Day Care,Britannia House,901.6, 18-Mar-2014
232,Revenue,CCHD,Day Care - South,Private & Voluntary Day Care,Britannia House,563.5, 18-Mar-2014
233,Revenue,CCHD,Day Care - South,Private & Voluntary Day Care,Britannia House,1127, 18-Mar-2014
234,Revenue,CCHD,Home Care - Elderly - South,Other Small Contracts,Britannia House,676.2, 18-Mar-2014
235,Revenue,CCHD,Day Care - South,Private & Voluntary Day Care,Britannia House,676.2, 18-Mar-2014
236,Revenue,CCHD,Day Care - South,Private & Voluntary Day Care,Britannia House,676.2, 18-Mar-2014
237,Revenue,CCHD,Home Care - Elderly - North,Private & Voluntary Home Care,Brunelcare,21577.4, 03-Mar-2014
238,Revenue,CCHD,Home Care - Elderly - North,Private & Voluntary Home Care,Brunelcare,21577.4, 10-Mar-2014
239,Revenue,CCHD,Home Care - Elderly - North,Private & Voluntary Home Care,Brunelcare,21577.4, 17-Mar-2014
240,Revenue,CCHD,Home Care - Elderly - North,Private & Voluntary Home Care,Brunelcare,21577.4, 24-Mar-2014
241,Revenue,CCHD,Bed Purchasing - Elderly - South,Permanent Nursing,Brunelcare,19794.55, 05-Mar-2014
242,Revenue,CCHD,Bed Purchasing - Elderly - South,Respite Emergency - Nursing,Brunelcare,798.95, 05-Mar-2014
243,Revenue,CCHD,Bed Purchasing - Elderly - North,Permanent Nursing,Brunelcare,3352.16, 05-Mar-2014
244,Revenue,CCHD,Bed Purchasing - Elderly - North,Respite Emergency - Nursing,Brunelcare,1093.02, 05-Mar-2014
245,Revenue,CCHD,Bed Purchasing - Frenchay Hospital,Permanent Nursing,Brunelcare,5212.07, 05-Mar-2014
246,Revenue,CCHD,Bed Purchasing - Southmead Hospital,Permanent Nursing,Brunelcare,6517.08, 05-Mar-2014
247,Revenue,CCHD,South Glos Users in South Glos Homes,Permanent Nursing,Brunelcare,15386.28, 05-Mar-2014
248,Revenue,CCHD,Bed purchasing - Phys Dis - North,Respite Emergency - Nursing,Brunelcare,537.38, 05-Mar-2014
249,Revenue,CCHD,Bed Purchasing - Elderly MH - South,Permanent Nursing,Brunelcare,5537.58, 05-Mar-2014
250,Revenue,CCHD,Bed purchasing - Elderly S117 - South,Permanent Nursing,Brunelcare,2363.79, 05-Mar-2014
251,Revenue,CCHD,Bed purchasing - Elderly MH - North,Permanent Nursing,Brunelcare,1646.7, 05-Mar-2014
252,Revenue,CCHD,Bed Purchasing - Elderly S117- North,Permanent Nursing,Brunelcare,2363.79, 05-Mar-2014
253,Revenue,CCHD,Bed Purchasing - Elderly - South,Permanent Nursing,Brunelcare,17823.14, 26-Mar-2014
254,Revenue,CCHD,Bed Purchasing - Elderly - South,Respite Planned - Nursing,Brunelcare,1939.88, 26-Mar-2014
255,Revenue,CCHD,Bed Purchasing - Elderly - North,Permanent Nursing,Brunelcare,3019.61, 26-Mar-2014
256,Revenue,CCHD,Bed Purchasing - Frenchay Hospital,Permanent Nursing,Brunelcare,6226.69, 26-Mar-2014
257,Revenue,CCHD,Bed Purchasing - Southmead Hospital,Permanent Nursing,Brunelcare,5962.7, 26-Mar-2014
258,Revenue,CCHD,South Glos Users in South Glos Homes,Permanent Nursing,Brunelcare,6775.61, 26-Mar-2014
259,Revenue,CCHD,Bed Purchasing - Elderly MH - South,Permanent Nursing,Brunelcare,4877.12, 26-Mar-2014
260,Revenue,CCHD,Bed purchasing - Elderly S117 - South,Permanent Nursing,Brunelcare,2135.04, 26-Mar-2014
261,Revenue,CCHD,Bed purchasing - Elderly MH - North,Permanent Nursing,Brunelcare,275.82, 26-Mar-2014
262,Revenue,CCHD,Bed Purchasing - Elderly S117- North,Permanent Nursing,Brunelcare,2252.83, 26-Mar-2014
263,Revenue,CCHD,S75 CCG Interim Beds,Permanent Nursing,Brunelcare,5700, 21-Mar-2014
264,Revenue,CCHD,Home Care - Elderly - South,Other Small Contracts,Brunelcare,2040, 07-Mar-2014
265,Revenue,CCHD,Home Care - Elderly - North,Other Small Contracts,Brunelcare,4597.6, 07-Mar-2014
266,Revenue,CCHD,Day Care - South,Private & Voluntary Day Care,Brunelcare,24.48, 07-Mar-2014
267,Revenue,CCHD,Day Care - North,Private & Voluntary Day Care,Brunelcare,77.52, 07-Mar-2014
268,Revenue,CCHD,Home Care - Elderly - South,Other Small Contracts,Brunelcare,2211.36, 07-Mar-2014
269,Revenue,CCHD,Home Care - Elderly - North,Other Small Contracts,Brunelcare,4414, 07-Mar-2014
270,Revenue,CCHD,Day Care - South,Private & Voluntary Day Care,Brunelcare,24.48, 07-Mar-2014
271,Revenue,CCHD,Day Care - North,Private & Voluntary Day Care,Brunelcare,48.96, 07-Mar-2014
272,Revenue,CCHD,Home Care - Elderly - South,Other Small Contracts,Brunelcare,2166.48, 19-Mar-2014
273,Revenue,CCHD,Home Care - Elderly - North,Other Small Contracts,Brunelcare,4340.8, 19-Mar-2014
274,Revenue,CCHD,Day Care - South,Private & Voluntary Day Care,Brunelcare,28.56, 19-Mar-2014
275,Revenue,CCHD,Day Care - North,Private & Voluntary Day Care,Brunelcare,77.52, 19-Mar-2014
276,Revenue,CCHD,Home Care - Elderly - South,Other Small Contracts,Brunelcare,2035.92, 24-Mar-2014
277,Revenue,CCHD,Home Care - Elderly - North,Other Small Contracts,Brunelcare,4503.06, 24-Mar-2014
278,Revenue,CCHD,Day Care - South,Private & Voluntary Day Care,Brunelcare,28.56, 24-Mar-2014
279,Revenue,CCHD,Day Care - North,Private & Voluntary Day Care,Brunelcare,81.6, 24-Mar-2014
280,Revenue,CCHD,Home Care - Elderly - South,Other Small Contracts,Brunelcare,2468.4, 26-Mar-2014
281,Revenue,CCHD,Home Care - Elderly - North,Other Small Contracts,Brunelcare,4524.4, 26-Mar-2014
282,Revenue,CCHD,Day Care - South,Private & Voluntary Day Care,Brunelcare,24.48, 26-Mar-2014
283,Revenue,CCHD,Day Care - North,Private & Voluntary Day Care,Brunelcare,48.96, 26-Mar-2014
284,Revenue,CCHD,Home Care - Elderly - North,Private & Voluntary Home Care,Brunelcare,33382.12, 14-Mar-2014
285,Revenue,CCHD,Information Systems - Software,Computer Equipment - Purchase,BT Global Services Solutions,983.59, 19-Mar-2014
286,Revenue,CCHD,Bed Purchasing - Southmead Hospital,Permanent Nursing,Bupa Care Services  Bridge House,5622.6, 18-Mar-2014
287,Revenue,CCHD,Bed Purchasing - Elderly MH - South,Respite Emergency - Residential,Bupa Care Services  Bridge House,6480, 18-Mar-2014
288,Revenue,CCHD,Bed Purchasing - Elderly MH - South,Respite Emergency - Nursing,Bupa Care Services  Bridge House,6480, 18-Mar-2014
289,Revenue,CCHD,Bed Purchasing - Southmead Hospital,Permanent Nursing,Bupa Care Services  Bridge House,4762.8, 18-Mar-2014
290,Revenue,CCHD,Bed purchasing - Phys Dis - North,Permanent Nursing,Bupa Care Services  Bridge House,5851.68, 18-Mar-2014
291,Revenue,CCHD,South Glos Users in all other LA Homes,Permanent Nursing,Bupa Care Services  Bridge House,604.4, 18-Mar-2014
292,Revenue,CCHD,Bed purchasing - Phys Dis - North,Permanent Nursing,Bupa Care Services  Bridge House,5851.68, 18-Mar-2014
293,Revenue,CCHD,South Glos Users in all other LA Homes,Permanent Nursing,Bupa Care Services  Bridge House,604.4, 18-Mar-2014
294,Revenue,CCHD,Bed purchasing - Phys Dis - North,Permanent Nursing,Bupa Care Services  Bridge House,5851.68, 18-Mar-2014
295,Revenue,CCHD,South Glos Users in all other LA Homes,Permanent Nursing,Bupa Care Services  Bridge House,604.4, 18-Mar-2014
296,Revenue,CCHD,Bed purchasing - Elderly MH - North,Permanent Residential,Bupa Care Services  Bridge House,1954.32, 18-Mar-2014
297,Revenue,CCHD,Bed Purchasing - Elderly - South,Permanent Nursing,Camberwell Green Care Home,2300, 24-Mar-2014
298,Revenue,CCHD,Management & Support costs,Other Supplies & Services,Camberwell Green Care Home,12606.76, 24-Mar-2014
299,Revenue,CCHD,Supported Living - South,Private & Voluntary Home Care,Camphill Communities Thornbury Limited,1753.08, 05-Mar-2014
300,Revenue,CCHD,Supported Living - North,Private & Voluntary Home Care,Camphill Communities Thornbury Limited,2498.76, 05-Mar-2014
301,Revenue,CCHD,Supported Living - North,Private & Voluntary Home Care,Camphill Communities Thornbury Limited,2597.48, 05-Mar-2014
302,Revenue,CCHD,Supported Living - North,Private & Voluntary Home Care,Camphill Communities Thornbury Limited,1822.24, 07-Mar-2014
303,Revenue,CCHD,Supported Living - North,Private & Voluntary Home Care,Camphill Communities Thornbury Limited,2290.92, 12-Mar-2014
304,Revenue,CCHD,Supported Living - North,Private & Voluntary Home Care,Camphill Communities Thornbury Limited,2049.76, 12-Mar-2014
305,Revenue,CCHD,Supported Living - North,Private & Voluntary Home Care,Camphill Communities Thornbury Limited,2016.48, 12-Mar-2014
306,Revenue,CCHD,Supported Living - North,Private & Voluntary Home Care,Camphill Communities Thornbury Limited,2563.76, 17-Mar-2014
307,Revenue,CCHD,Supported Living - North,Private & Voluntary Home Care,Camphill Communities Thornbury Limited,2132.92, 19-Mar-2014
308,Revenue,CCHD,Supported Living - North,Private & Voluntary Home Care,Camphill Communities Thornbury Limited,2450.96, 19-Mar-2014
309,Revenue,CCHD,Supported Living - North,Private & Voluntary Home Care,Camphill Communities Thornbury Limited,2479.4, 20-Mar-2014
310,Revenue,CCHD,Supported Living - North,Private & Voluntary Home Care,Camphill Communities Thornbury Limited,2237.32, 20-Mar-2014
311,Revenue,CCHD,Supported Living - North,Private & Voluntary Home Care,Camphill Communities Thornbury Limited,1792.96, 20-Mar-2014
312,Revenue,CCHD,Supported Living - North,Private & Voluntary Home Care,Camphill Communities Thornbury Limited,2303.08, 20-Mar-2014
313,Revenue,CCHD,Supported Living - North,Private & Voluntary Home Care,Camphill Communities Thornbury Limited,2203.08, 20-Mar-2014
314,Revenue,CCHD,Supported Living - North,Private & Voluntary Home Care,Camphill Communities Thornbury Limited,2793.8, 27-Mar-2014
315,Revenue,CCHD,Bed Purchasing - Elderly S117- North,Permanent Residential,Canjayor,2300, 18-Mar-2014
316,Revenue,CCHD,Home Care - Elderly - South,Other Small Contracts,Care 1st Homecare,3549, 26-Mar-2014
317,Revenue,CCHD,Home Care - Elderly - North,Other Small Contracts,Care 1st Homecare,4687.2, 26-Mar-2014
318,Revenue,CCHD,Home care - Elderly MH - North,Other Small Contracts,Care 1st Homecare,71.4, 26-Mar-2014
319,Revenue,CCHD,Home Care - Elderly - South,Other Small Contracts,Care 1st Homecare,4141.2, 31-Mar-2014
320,Revenue,CCHD,Home Care - Elderly - North,Other Small Contracts,Care 1st Homecare,3234, 31-Mar-2014
321,Revenue,CCHD,Home care - Elderly MH - North,Other Small Contracts,Care 1st Homecare,50.4, 31-Mar-2014
322,Revenue,CCHD,Bed Purchasing - PWLD S 117 Placements,Permanent Residential,Care Community Ltd,7536.4, 18-Mar-2014
323,Revenue,CCHD,Home Care - Elderly - North,Other Small Contracts,Care Horizons Limited,2322.4, 10-Mar-2014
324,Revenue,CCHD,Day Care - South,Private & Voluntary Day Care,Care Horizons Limited,363.55, 10-Mar-2014
325,Revenue,CCHD,Home Care - Elderly - North,Other Small Contracts,Care Horizons Limited,1491.28, 10-Mar-2014
326,Revenue,CCHD,Day Care - South,Private & Voluntary Day Care,Care Horizons Limited,363.55, 10-Mar-2014
327,Revenue,CCHD,Home Care - Elderly - North,Other Small Contracts,Care Horizons Limited,1684.26, 10-Mar-2014
328,Revenue,CCHD,Day Care - South,Private & Voluntary Day Care,Care Horizons Limited,346.02, 10-Mar-2014
329,Revenue,CCHD,Home Care - Elderly - North,Other Small Contracts,Care Horizons Limited,1892.58, 10-Mar-2014
330,Revenue,CCHD,Day Care - South,Private & Voluntary Day Care,Care Horizons Limited,359.16, 10-Mar-2014
331,Revenue,CCHD,Home Care - Elderly - North,Other Small Contracts,Care Horizons Limited,2144.81, 10-Mar-2014
332,Revenue,CCHD,Day Care - South,Private & Voluntary Day Care,Care Horizons Limited,341.64, 10-Mar-2014
333,Revenue,CCHD,Home Care - Elderly - North,Other Small Contracts,Care Horizons Limited,2147.98, 10-Mar-2014
334,Revenue,CCHD,Day Care - South,Private & Voluntary Day Care,Care Horizons Limited,359.16, 10-Mar-2014
335,Revenue,CCHD,Home Care - Elderly - North,Other Small Contracts,Care Horizons Limited,2147.98, 19-Mar-2014
336,Revenue,CCHD,Day Care - South,Private & Voluntary Day Care,Care Horizons Limited,354.78, 19-Mar-2014
337,Revenue,CCHD,Home Care - Elderly - North,Other Small Contracts,Care Horizons Limited,2147.98, 26-Mar-2014
338,Revenue,CCHD,Day Care - South,Private & Voluntary Day Care,Care Horizons Limited,354.78, 26-Mar-2014
339,Revenue,CCHD,Supported Living - North,Private & Voluntary Home Care,Care Horizons Limited,4731.57, 21-Mar-2014
340,Revenue,CCHD,Supported Living - South,Private & Voluntary Home Care,Care Horizons Limited,1728.35, 18-Mar-2014
341,Revenue,CCHD,Purchase of Non-Res Care - North,Private & Voluntary Day Care,Care Horizons Limited,1053.64, 21-Mar-2014
342,Revenue,CCHD,Purchase of Non-Res Care - North,Private & Voluntary Day Care,Care Horizons Limited,1265.23, 21-Mar-2014
343,Revenue,CCHD,Purchase of Non-Res Care - North,Private & Voluntary Day Care,Care Horizons Limited,1535.06, 21-Mar-2014
344,Revenue,CCHD,Electronic Home Care Monitoring,Other Supplies & Services,Care Monitoring 2000 Limited,7926.56, 18-Mar-2014
345,Revenue,CCHD,Electronic Home Care Monitoring,Other Supplies & Services,Care Monitoring 2000 Limited,535, 14-Mar-2014
346,Revenue,CCHD,Information Systems - Software,Computer Services,Care Monitoring 2000 Limited,7440, 27-Mar-2014
347,Revenue,CCHD,Home Care - Elderly - South,Other Small Contracts,Care UK,5307.68, 10-Mar-2014
348,Revenue,CCHD,Home Care - Elderly - North,Other Small Contracts,Care UK,1982.14, 10-Mar-2014
349,Revenue,CCHD,Day Care - South,Private & Voluntary Day Care,Care UK,196, 10-Mar-2014
350,Revenue,CCHD,Day Care - North,Private & Voluntary Day Care,Care UK,459.64, 10-Mar-2014
351,Revenue,CCHD,Home care - Elderly MH - North,Other Small Contracts,Care UK,591.92, 10-Mar-2014
352,Revenue,CCHD,Elderly MH Day Care North,Private & Voluntary Day Care,Care UK,137.2, 10-Mar-2014
353,Revenue,CCHD,Home Care - Elderly - South,Other Small Contracts,Care UK,5342.96, 20-Mar-2014
354,Revenue,CCHD,Home Care - Elderly - North,Other Small Contracts,Care UK,1960, 20-Mar-2014
355,Revenue,CCHD,Day Care - South,Private & Voluntary Day Care,Care UK,196, 20-Mar-2014
356,Revenue,CCHD,Day Care - North,Private & Voluntary Day Care,Care UK,480.8, 20-Mar-2014
357,Revenue,CCHD,Home care - Elderly MH - North,Other Small Contracts,Care UK,611.52, 20-Mar-2014
358,Revenue,CCHD,Elderly MH Day Care North,Private & Voluntary Day Care,Care UK,137.2, 20-Mar-2014
359,Revenue,CCHD,Home Care - Elderly - South,Other Small Contracts,Care UK,5201.84, 26-Mar-2014
360,Revenue,CCHD,Home Care - Elderly - North,Other Small Contracts,Care UK,2047.31, 26-Mar-2014
361,Revenue,CCHD,Day Care - South,Private & Voluntary Day Care,Care UK,196, 26-Mar-2014
362,Revenue,CCHD,Day Care - North,Private & Voluntary Day Care,Care UK,442.96, 26-Mar-2014
363,Revenue,CCHD,Home care - Elderly MH - North,Other Small Contracts,Care UK,595.84, 26-Mar-2014
364,Revenue,CCHD,Elderly MH Day Care North,Private & Voluntary Day Care,Care UK,141.12, 26-Mar-2014
365,Revenue,CCHD,Home Care - Elderly - South,Other Small Contracts,Carers R Us (Bristol) Limited,111.72, 04-Mar-2014
366,Revenue,CCHD,Home Care - Elderly - North,Other Small Contracts,Carers R Us (Bristol) Limited,742.14, 04-Mar-2014
367,Revenue,CCHD,Home Care - Elderly - South,Other Small Contracts,Carers R Us (Bristol) Limited,103.74, 14-Mar-2014
368,Revenue,CCHD,Home Care - Elderly - North,Other Small Contracts,Carers R Us (Bristol) Limited,730.17, 14-Mar-2014
369,Revenue,CCHD,Home Care - Elderly - South,Other Small Contracts,Carers R Us (Bristol) Limited,111.72, 19-Mar-2014
370,Revenue,CCHD,Home Care - Elderly - North,Other Small Contracts,Carers R Us (Bristol) Limited,742.14, 19-Mar-2014
371,Revenue,CCHD,Home Care - Elderly - South,Other Small Contracts,Carers R Us (Bristol) Limited,111.72, 26-Mar-2014
372,Revenue,CCHD,Home Care - Elderly - North,Other Small Contracts,Carers R Us (Bristol) Limited,742.14, 26-Mar-2014
373,Revenue,CCHD,Home Care - Elderly - South,Other Small Contracts,Carewatch (Bristol),765, 03-Mar-2014
374,Revenue,CCHD,Home Care - Elderly - North,Other Small Contracts,Carewatch (Bristol),1300.5, 03-Mar-2014
375,Revenue,CCHD,Home Care - Elderly - South,Other Small Contracts,Carewatch (Bristol),786.25, 03-Mar-2014
376,Revenue,CCHD,Home Care - Elderly - North,Other Small Contracts,Carewatch (Bristol),1313.25, 03-Mar-2014
377,Revenue,CCHD,Home Care - Elderly - South,Other Small Contracts,Carewatch (Bristol),790.5, 07-Mar-2014
378,Revenue,CCHD,Home Care - Elderly - North,Other Small Contracts,Carewatch (Bristol),2040, 07-Mar-2014
379,Revenue,CCHD,Home Care - Elderly - South,Other Small Contracts,Carewatch (Bristol),799, 03-Mar-2014
380,Revenue,CCHD,Home Care - Elderly - North,Other Small Contracts,Carewatch (Bristol),2163.25, 03-Mar-2014
381,Revenue,CCHD,Home Care - Elderly - South,Other Small Contracts,Carewatch (Bristol),884, 31-Mar-2014
382,Revenue,CCHD,Home Care - Elderly - North,Other Small Contracts,Carewatch (Bristol),1840.25, 31-Mar-2014
383,Revenue,CCHD,Home Care - Elderly - South,Other Small Contracts,Carewatch (Bristol),1139, 31-Mar-2014
384,Revenue,CCHD,Home Care - Elderly - North,Other Small Contracts,Carewatch (Bristol),2142, 31-Mar-2014
385,Revenue,CCHD,Home Care - Elderly - South,Other Small Contracts,Carewatch (Bristol),1015.75, 31-Mar-2014
386,Revenue,CCHD,Home Care - Elderly - North,Other Small Contracts,Carewatch (Bristol),2167.5, 31-Mar-2014
387,Revenue,CCHD,Elderly MH Day Care South,Private & Voluntary Day Care,Caring Home Healthcare Group Limited,550, 06-Mar-2014
388,Revenue,CCHD,Elderly MH Day Care South,Private & Voluntary Day Care,Caring Home Healthcare Group Limited,600, 13-Mar-2014
389,Revenue,CCHD,Home Care - Elderly - South,Other Small Contracts,Cash Friday at Lloyds TSB,101.4, 17-Mar-2014
390,Revenue,CCHD,Home Care - Elderly - North,Other Small Contracts,Cash Friday at Lloyds TSB,737.1, 17-Mar-2014
391,Revenue,CCHD,Home Care - Elderly - South,Other Small Contracts,Cash Friday at Lloyds TSB,97.5, 17-Mar-2014
392,Revenue,CCHD,Home Care - Elderly - North,Other Small Contracts,Cash Friday at Lloyds TSB,725.4, 17-Mar-2014
393,Revenue,CCHD,Home Care - Elderly - South,Other Small Contracts,Cash Friday at Lloyds TSB,104, 17-Mar-2014
394,Revenue,CCHD,Home Care - Elderly - North,Other Small Contracts,Cash Friday at Lloyds TSB,728, 17-Mar-2014
395,Revenue,CCHD,Home Care - Elderly - South,Other Small Contracts,Cash Friday at Lloyds TSB,104, 17-Mar-2014
396,Revenue,CCHD,Home Care - Elderly - North,Other Small Contracts,Cash Friday at Lloyds TSB,736, 17-Mar-2014
397,Revenue,CCHD,Home Care - Elderly - South,Other Small Contracts,Cash Friday at Lloyds TSB,104, 26-Mar-2014
398,Revenue,CCHD,Home Care - Elderly - North,Other Small Contracts,Cash Friday at Lloyds TSB,784, 26-Mar-2014
399,Revenue,CCHD,Home Care - Elderly - South,Other Small Contracts,Cash Friday at Lloyds TSB,104, 26-Mar-2014
400,Revenue,CCHD,Home Care - Elderly - North,Other Small Contracts,Cash Friday at Lloyds TSB,708, 26-Mar-2014
401,Revenue,CCHD,Bed Purchasing - Southmead Hospital,Permanent Residential,Caton House Care Home,1719.12, 18-Mar-2014
402,Revenue,CCHD,Bed Purchasing - Elderly - South,Permanent Residential,Cepen Lodge Care Home,2176.28, 18-Mar-2014
403,Revenue,CCHD,Home Care - Elderly - South,Other Small Contracts,Cherish Able Care Limited,6270.24, 06-Mar-2014
404,Revenue,CCHD,Home Care - Elderly - South,Other Small Contracts,Cherish Able Care Limited,5992.29, 13-Mar-2014
405,Revenue,CCHD,Home Care - Elderly - South,Other Small Contracts,Cherish Able Care Limited,6084.03, 20-Mar-2014
406,Revenue,CCHD,Home Care - Elderly - South,Other Small Contracts,Cherish Able Care Limited,6113.22, 27-Mar-2014
407,Revenue,CCHD,Bed purchasing -S28A  Under 65 - North,Permanent Residential,Chescombe Lodge,8569.72, 18-Mar-2014
408,Revenue,CCHD,Bed Purchasing - Under 65s PWLD - South,Permanent Residential,Chosen Court,6910.16, 18-Mar-2014
409,Revenue,CCHD,Bed Purchasing - PWLD S 117 Placements,Permanent Residential,Chosen Court,8801.84, 18-Mar-2014
410,Revenue,CCHD,Bed Purchasing - Under 65s PWLD - South,Permanent Residential,Chosen Court,5375.48, 18-Mar-2014
411,Revenue,CCHD,Stop Smoking Services and Interventions,Other Supplies & Services,Christchurch Family Medical  Centre,580, 20-Mar-2014
412,Revenue,CCHD,Sexual Health Services - Contraception,Other Supplies & Services,Christchurch Family Medical  Centre,1342.1, 28-Mar-2014
413,Revenue,CCHD,Bed purchasing - Under 65s PWLD - North,Permanent Residential,Church House,10354.44, 18-Mar-2014
414,Revenue,CCHD,Bed purchasing - Under 65s PWLD - North,Permanent Residential,Church House,5821.64, 18-Mar-2014
415,Revenue,CCHD,Section 117 Placements MH Younger,Permanent Residential,Church House,7200.52, 18-Mar-2014
416,Revenue,CCHD,Swift Dump Code,Permanent Residential,Cintre Community,6347.32, 24-Mar-2014
417,Revenue,CCHD,Management & Support costs,Other Supplies & Services,Cintre Community,5574.72, 24-Mar-2014
418,Revenue,CCHD,Housing Needs,Software Purchase,Civica UK Limited,781.21, 19-Mar-2014
419,Revenue,CCHD,Management & Support costs,Other Supplies & Services,Clarence Park Nursing Home,983.78, 06-Mar-2014
420,Revenue,CCHD,Home Care - Elderly - South,Other Small Contracts,Cleeve Care Group,182, 10-Mar-2014
421,Revenue,CCHD,Home Care - Elderly - North,Other Small Contracts,Cleeve Care Group,602, 10-Mar-2014
422,Revenue,CCHD,Home Care - Elderly - South,Other Small Contracts,Cleeve Care Group,238, 10-Mar-2014
423,Revenue,CCHD,Home Care - Elderly - North,Other Small Contracts,Cleeve Care Group,647.5, 10-Mar-2014
424,Revenue,CCHD,Home Care - Elderly - South,Other Small Contracts,Cleeve Care Group,234.5, 10-Mar-2014
425,Revenue,CCHD,Home Care - Elderly - North,Other Small Contracts,Cleeve Care Group,693, 10-Mar-2014
426,Revenue,CCHD,Home Care - Elderly - South,Other Small Contracts,Cleeve Care Group,584.5, 21-Mar-2014
427,Revenue,CCHD,Home Care - Elderly - North,Other Small Contracts,Cleeve Care Group,752.5, 21-Mar-2014
428,Revenue,CCHD,Home Care - Elderly - South,Other Small Contracts,Cleeve Care Group,549.5, 10-Mar-2014
429,Revenue,CCHD,Home Care - Elderly - North,Other Small Contracts,Cleeve Care Group,143.5, 10-Mar-2014
430,Revenue,CCHD,Home Care - Elderly - South,Other Small Contracts,Cleeve Care Group,553, 18-Mar-2014
431,Revenue,CCHD,Home Care - Elderly - North,Other Small Contracts,Cleeve Care Group,490, 18-Mar-2014
432,Revenue,CCHD,Home Care - Elderly - South,Other Small Contracts,Cleeve Care Group,535.5, 18-Mar-2014
433,Revenue,CCHD,Home Care - Elderly - North,Other Small Contracts,Cleeve Care Group,451.5, 18-Mar-2014
434,Revenue,CCHD,Home Care - Elderly - South,Other Small Contracts,Cleeve Care Group,539, 28-Mar-2014
435,Revenue,CCHD,Home Care - Elderly - North,Other Small Contracts,Cleeve Care Group,448, 28-Mar-2014
436,Revenue,CCHD,Home Care - Elderly - South,Other Small Contracts,Cleeve Care Group,542.5, 28-Mar-2014
437,Revenue,CCHD,Home Care - Elderly - North,Other Small Contracts,Cleeve Care Group,388.5, 28-Mar-2014
438,Revenue,CCHD,Bed Purchasing - Southmead Hospital,Permanent Residential,Cleeve Lodge,1435.24, 18-Mar-2014
439,Revenue,CCHD,Bed Purchasing - Southmead Hospital,Permanent Residential,Cleeve Lodge,1435.24, 18-Mar-2014
440,Revenue,CCHD,Bed Purchasing - Southmead Hospital,Permanent Residential,Cleeve Lodge,1435.24, 18-Mar-2014
441,Revenue,CCHD,Bed Purchasing - Elderly - North,Permanent Nursing,Cleeve Lodge,1850, 18-Mar-2014
442,Revenue,CCHD,Bed Purchasing - Elderly - North,Permanent Nursing,Cleeve Lodge,1850, 18-Mar-2014
443,Revenue,CCHD,Bed Purchasing - Elderly - North,Permanent Nursing,Cleeve Lodge,1850, 18-Mar-2014
444,Revenue,CCHD,Bed Purchasing - Elderly - South,Respite Planned - Residential,Cleeve Lodge,1317.86, 18-Mar-2014
445,Revenue,CCHD,Bed Purchasing - Elderly - South,Respite Planned - Residential,Cleeve Lodge,1230, 18-Mar-2014
446,Revenue,CCHD,Bed Purchasing - Elderly - South,Permanent Residential,Cleeve Lodge,1458.1, 18-Mar-2014
447,Revenue,CCHD,Bed Purchasing - Elderly - South,Permanent Residential,Cleeve Lodge,1096.37, 18-Mar-2014
448,Revenue,CCHD,Bed Purchasing - Elderly - South,Permanent Residential,Cleeve Lodge,926.76, 18-Mar-2014
449,Revenue,CCHD,Bed Purchasing - Elderly - South,Permanent Residential,Cleeve Lodge,1764.48, 18-Mar-2014
450,Revenue,CCHD,Bed Purchasing - Elderly - South,Permanent Residential,Cleeve Lodge,1764.48, 18-Mar-2014
451,Revenue,CCHD,Bed Purchasing - Elderly - South,Permanent Residential,Cleeve Lodge,1764.48, 18-Mar-2014
452,Revenue,CCHD,Bed Purchasing - Elderly - South,Permanent Residential,Cleeve Lodge,2258.44, 18-Mar-2014
453,Revenue,CCHD,Bed Purchasing - Elderly - South,Permanent Residential,Cleeve Lodge,2258.44, 18-Mar-2014
454,Revenue,CCHD,Bed Purchasing - Elderly - South,Permanent Residential,Cleeve Lodge,2258.44, 18-Mar-2014
455,Revenue,CCHD,Bed Purchasing - Elderly - North,Permanent Residential,Cleeve Lodge,1383.2, 18-Mar-2014
456,Revenue,CCHD,Bed Purchasing - Elderly - North,Permanent Residential,Cleeve Lodge,1383.2, 18-Mar-2014
457,Revenue,CCHD,Bed Purchasing - Elderly - North,Permanent Residential,Cleeve Lodge,1383.2, 18-Mar-2014
458,Revenue,CCHD,Bed Purchasing - Elderly - South,Permanent Residential,Cleeve Lodge,1779.92, 18-Mar-2014
459,Revenue,CCHD,Bed Purchasing - Elderly - South,Permanent Residential,Cleeve Lodge,1779.92, 18-Mar-2014
460,Revenue,CCHD,Bed Purchasing - Elderly - South,Permanent Residential,Cleeve Lodge,1779.92, 18-Mar-2014
461,Revenue,CCHD,Stop Smoking Services and Interventions,Other Supplies & Services,Close Farm Surgery,1015, 17-Mar-2014
462,Revenue,CCHD,Sexual Health Services - Contraception,Other Supplies & Services,Close Farm Surgery,1713.74, 17-Mar-2014
463,Revenue,CCHD,Bed Purchasing - Elderly - South,Permanent Residential,Collingwood Residential Home,1298.48, 18-Mar-2014
464,Revenue,CCHD,Bed Purchasing - Elderly - South,Permanent Residential,Collingwood Residential Home,1403.68, 18-Mar-2014
465,Revenue,CCHD,Bed Purchasing - Elderly - South,Permanent Residential,Collingwood Residential Home,1421, 18-Mar-2014
466,Revenue,CCHD,Bed Purchasing - Elderly MH - South,Permanent Residential,Collingwood Residential Home,1306.28, 18-Mar-2014
467,Revenue,CCHD,Bed Purchasing - Elderly - South,Permanent Residential,Collingwood Residential Home,1156.52, 18-Mar-2014
468,Revenue,CCHD,Bed Purchasing - Elderly - South,Permanent Residential,Collingwood Residential Home,1268.04, 18-Mar-2014
469,Revenue,CCHD,Bed Purchasing - Elderly - South,Permanent Residential,Collingwood Residential Home,1405.32, 18-Mar-2014
470,Revenue,CCHD,Sexual Health Services - Contraception,Other Supplies & Services,Concord Medical Centre,2818.36, 20-Mar-2014
471,Revenue,CCHD,Bed and Breakfast,Bed & Breakfast,Connolly & Callaghan Limited,434.7, 31-Mar-2014
472,Revenue,CCHD,Bed and Breakfast,Bed & Breakfast,Connolly & Callaghan Limited,667.8, 31-Mar-2014
473,Revenue,CCHD,Bed and Breakfast,Other Supplies & Services,Connolly & Callaghan Limited,667.8, 25-Mar-2014
474,Revenue,CCHD,Bed and Breakfast,Bed & Breakfast,Connolly & Callaghan Limited,510.3, 31-Mar-2014
475,Revenue,CCHD,Bed and Breakfast,Bed & Breakfast,Connolly & Callaghan Limited,573.3, 31-Mar-2014
476,Revenue,CCHD,Bed and Breakfast,Bed & Breakfast,Connolly & Callaghan Limited,510.3, 31-Mar-2014
477,Revenue,CCHD,Bed and Breakfast,Bed & Breakfast,Connolly & Callaghan Limited,478.8, 31-Mar-2014
478,Revenue,CCHD,Bed and Breakfast,Bed & Breakfast,Connolly & Callaghan Limited,667.8, 31-Mar-2014
479,Revenue,CCHD,Bed and Breakfast,Other Supplies & Services,Connolly & Callaghan Limited,667.8, 25-Mar-2014
480,Revenue,CCHD,Bed and Breakfast,Bed & Breakfast,Connolly & Callaghan Limited,510.3, 28-Mar-2014
481,Revenue,CCHD,Bed and Breakfast,Bed & Breakfast,Connolly & Callaghan Limited,573.3, 31-Mar-2014
482,Revenue,CCHD,Bed and Breakfast,Bed & Breakfast,Connolly & Callaghan Limited,478.8, 31-Mar-2014
483,Revenue,CCHD,Bed and Breakfast,Bed & Breakfast,Connolly & Callaghan Limited,648.9, 18-Mar-2014
484,Revenue,CCHD,Bed and Breakfast,Other Supplies & Services,Connolly & Callaghan Limited,648.9, 28-Mar-2014
485,Revenue,CCHD,Bed and Breakfast,Bed & Breakfast,Connolly & Callaghan Limited,648.9, 31-Mar-2014
486,Revenue,CCHD,Bed and Breakfast,Other Supplies & Services,Connolly & Callaghan Limited,648.9, 28-Mar-2014
487,Revenue,CCHD,Bed and Breakfast,Bed & Breakfast,Connolly & Callaghan Limited,648.9, 28-Mar-2014
488,Revenue,CCHD,Bed and Breakfast,Other Supplies & Services,Connolly & Callaghan Limited,648.9, 28-Mar-2014
489,Revenue,CCHD,Bed Purchasing - Frenchay Hospital,Permanent Residential,Coombs Wood House,962.96, 18-Mar-2014
490,Revenue,CCHD,Stop Smoking Services and Interventions,Other Supplies & Services,Co-operative Pharmacy,1269.72, 11-Mar-2014
491,Revenue,CCHD,Stop Smoking Services and Interventions,Other Supplies & Services,Co-operative Pharmacy,862.64, 20-Mar-2014
492,Revenue,CCHD,Stop Smoking Services and Interventions,Other Supplies & Services,Courtside Surgery,1624, 17-Mar-2014
493,Revenue,CCHD,Sexual Health Services - Contraception,Other Supplies & Services,Courtside Surgery,1486.62, 20-Mar-2014
494,Revenue,CCHD,Bed Purchasing - S28A - Over 65- North,Permanent Residential,Cream Ii Ltd  Longrun House,106986.7, 18-Mar-2014
495,Revenue,CCHD,Bed Purchasing - Under 65s PWLD - South,Permanent Residential,Cream Ii Ltd  Longrun House,5546.44, 18-Mar-2014
496,Revenue,CCHD,Bed purchasing -S28A  Under 65 - North,Permanent Residential,Creedy Court,9157.32, 18-Mar-2014
497,Revenue,CCHD,Bed Purchasing - S28A - Over 65- North,Permanent Residential,Creedy Court,7616.76, 18-Mar-2014
498,Revenue,CCHD,Brokerage and Information Service,Grants to Voluntary Bodies,D H I,9210.08, 27-Mar-2014
499,Revenue,CCHD,Purchase of Non-Res Care - South,Private & Voluntary Day Care,Daneswood,1472.68, 17-Mar-2014
500,Revenue,CCHD,Bed Purchasing - Under 65s PWLD - South,Permanent Residential,Daneswood,10848.44, 18-Mar-2014
501,Revenue,CCHD,Bed purchasing - Under 65s PWLD - North,Permanent Residential,Daneswood,8986.84, 18-Mar-2014
502,Revenue,CCHD,Bed Purchasing - PWLD S 117 Placements,Permanent Nursing,Danshell Healthcare Group,11360.84, 18-Mar-2014
503,Revenue,CCHD,Learning Difficulties PSL,Other Supplies & Services,Individual,2016.44, 21-Mar-2014
504,Revenue,CCHD,Children 5-19 Public Health Programmes,Other Supplies & Services,DECIPHer IMPACT Limited,10200, 11-Mar-2014
505,Revenue,CCHD,Purchase of Non-Res Care - North,Private & Voluntary Day Care,Design 4 Life Ltd,1551.6, 20-Mar-2014
506,Revenue,CCHD,Purchase of Non-Res Care - North,Private & Voluntary Day Care,Design 4 Life Ltd,1034.4, 20-Mar-2014
507,Revenue,CCHD,Home Care - Elderly - South,Other Small Contracts,Dhek Bhal,464.64, 07-Mar-2014
508,Revenue,CCHD,Home Care - Elderly - North,Other Small Contracts,Dhek Bhal,198.44, 07-Mar-2014
509,Revenue,CCHD,Home Care - Elderly - South,Other Small Contracts,Dhek Bhal,716.32, 13-Mar-2014
510,Revenue,CCHD,Home Care - Elderly - North,Other Small Contracts,Dhek Bhal,116.16, 13-Mar-2014
511,Revenue,CCHD,Home Care - Elderly - South,Other Small Contracts,Dhek Bhal,711.48, 21-Mar-2014
512,Revenue,CCHD,Home Care - Elderly - North,Other Small Contracts,Dhek Bhal,77.44, 21-Mar-2014
513,Revenue,CCHD,Home Care - Elderly - South,Other Small Contracts,Dhek Bhal,609.84, 28-Mar-2014
514,Revenue,CCHD,Home Care - Elderly - North,Other Small Contracts,Dhek Bhal,193.6, 28-Mar-2014
515,Revenue,CCHD,Bed Purchasing - Under 65s PWLD - South,Permanent Residential,Dimensions (Uk),4808.36, 18-Mar-2014
516,Revenue,CCHD,Supported Living - South,Private & Voluntary Home Care,Dimensions (UK) Ltd,7231.84, 14-Mar-2014
517,Revenue,CCHD,Supported Living - South,Private & Voluntary Home Care,Dimensions (UK) Ltd,8006.68, 28-Mar-2014
518,Revenue,CCHD,Home Care - Elderly - South,Other Small Contracts,DoCare Ltd,4636, 17-Mar-2014
519,Revenue,CCHD,Home Care - Elderly - North,Other Small Contracts,DoCare Ltd,8782.75, 17-Mar-2014
520,Revenue,CCHD,Day Care - North,Private & Voluntary Day Care,DoCare Ltd,76, 17-Mar-2014
521,Revenue,CCHD,Home Care - Elderly - South,Other Small Contracts,DoCare Ltd,4180, 17-Mar-2014
522,Revenue,CCHD,Home Care - Elderly - North,Other Small Contracts,DoCare Ltd,8749.5, 17-Mar-2014
523,Revenue,CCHD,Day Care - North,Private & Voluntary Day Care,DoCare Ltd,76, 17-Mar-2014
524,Revenue,CCHD,Home Care - Elderly - South,Other Small Contracts,DoCare Ltd,4156.25, 17-Mar-2014
525,Revenue,CCHD,Home Care - Elderly - North,Other Small Contracts,DoCare Ltd,8920.5, 17-Mar-2014
526,Revenue,CCHD,Home Care - Elderly - South,Other Small Contracts,DoCare Ltd,4056.5, 28-Mar-2014
527,Revenue,CCHD,Home Care - Elderly - North,One-off Planned Direct Payment,DoCare Ltd,109.25, 28-Mar-2014
528,Revenue,CCHD,Home Care - Elderly - North,Other Small Contracts,DoCare Ltd,8901.5, 28-Mar-2014
529,Revenue,CCHD,Home Care - Elderly - South,Other Small Contracts,DoCare Ltd,4132.5, 31-Mar-2014
530,Revenue,CCHD,Home Care - Elderly - North,One-off Planned Direct Payment,DoCare Ltd,104.5, 31-Mar-2014
531,Revenue,CCHD,Home Care - Elderly - North,Other Small Contracts,DoCare Ltd,8858.75, 31-Mar-2014
532,Revenue,CCHD,Home Care - Elderly - South,Other Small Contracts,DoCare Ltd,4764.25, 31-Mar-2014
533,Revenue,CCHD,Home Care - Elderly - North,One-off Planned Direct Payment,DoCare Ltd,104.5, 31-Mar-2014
534,Revenue,CCHD,Home Care - Elderly - North,Other Small Contracts,DoCare Ltd,8483.5, 31-Mar-2014
535,Revenue,CCHD,Stop Smoking Services and Interventions,Other Supplies & Services,Dr Norman,2842, 17-Mar-2014
536,Revenue,CCHD,Sexual Health Services - Contraception,Other Supplies & Services,Dr Norman,1094.3, 20-Mar-2014
537,Revenue,CCHD,Stop Smoking Services and Interventions,Other Supplies & Services,Dr P J Burney & Partners,609, 17-Mar-2014
538,Revenue,CCHD,Stop Smoking Services and Interventions,Other Supplies & Services,Dr P Taylor & Partners,1320, 17-Mar-2014
539,Revenue,CCHD,Sexual Health Services - Contraception,Other Supplies & Services,Dr P Taylor & Partners,2116.34, 20-Mar-2014
540,Revenue,CCHD,Stop Smoking Services and Interventions,Other Supplies & Services,Dr P Taylor & Partners,530, 20-Mar-2014
541,Revenue,CCHD,Stop Smoking Services and Interventions,Other Supplies & Services,Dr Robertson,1218, 17-Mar-2014
542,Revenue,CCHD,SLA Grants - Support Serv,Grants to Voluntary Bodies,Drastic Productions,10000, 21-Mar-2014
543,Revenue,CCHD,Bed Purchasing - Frenchay Hospital,Permanent Nursing,Druid Stoke House,1357.14, 18-Mar-2014
544,Revenue,CCHD,Bed Purchasing - Under 65s PWLD - South,Permanent Residential,Dudbridge House,6546.16, 18-Mar-2014
545,Revenue,CCHD,Stop Smoking Services and Interventions,Other Supplies & Services,Dudley Taylor Pharmacies Ltd,577.7, 10-Mar-2014
546,Revenue,CCHD,Swift Dump Code,Permanent Residential,Dunkirk Memorial House,662.17, 18-Mar-2014
547,Revenue,CCHD,MH Purchasing - Younger,Permanent Residential,Dunraven House,1826.8, 18-Mar-2014
548,Revenue,CCHD,Bed and Breakfast,Bed & Breakfast,E J Bartlett,434, 07-Mar-2014
549,Revenue,CCHD,Bed and Breakfast,Bed & Breakfast,E J Bartlett,434, 07-Mar-2014
550,Revenue,CCHD,Bed and Breakfast,Bed & Breakfast,E J Bartlett,656, 12-Mar-2014
551,Revenue,CCHD,Bed and Breakfast,Bed & Breakfast,E J Bartlett,434, 12-Mar-2014
552,Revenue,CCHD,Bed and Breakfast,Bed & Breakfast,E J Bartlett,574, 18-Mar-2014
553,Revenue,CCHD,Bed and Breakfast,Bed & Breakfast,E J Bartlett,480, 18-Mar-2014
554,Revenue,CCHD,Bed and Breakfast,Bed & Breakfast,E J Bartlett,434, 18-Mar-2014
555,Revenue,CCHD,Bed purchasing - Under 65s PWLD - North,Permanent Residential,East Court,2180.72, 18-Mar-2014
556,Revenue,CCHD,Minor Adaptations Service,Daily Living Equipment,Eastman & Co (Timber) Limited,830.4, 17-Mar-2014
557,Revenue,CCHD,Day Care - South,Private & Voluntary Day Care,Easton Community Centre,512.88, 18-Mar-2014
558,Revenue,CCHD,Day Care - South,Private & Voluntary Day Care,Easton Community Centre,512.88, 18-Mar-2014
559,Revenue,CCHD,Younger MH non-res purchasing,Private & Voluntary Day Care,Easton Community Centre,512.88, 18-Mar-2014
560,Revenue,CCHD,Day Care - South,Private & Voluntary Day Care,Easton Community Centre,512.88, 18-Mar-2014
561,Revenue,CCHD,Day Care - South,Private & Voluntary Day Care,Easton Community Centre,512.88, 18-Mar-2014
562,Revenue,CCHD,Bed Purchasing - S28A - Over 65- North,Permanent Residential,Eclipse Office Park,2617.12, 18-Mar-2014
563,Revenue,CCHD,Bed Purchasing - Elderly - South,Permanent Residential,Eclipse Office Park,1408.28, 18-Mar-2014
564,Revenue,CCHD,Bed Purchasing - Elderly - North,Respite Emergency - Residential,Eclipse Office Park,6489.78, 18-Mar-2014
565,Revenue,CCHD,Bed Purchasing - Under 65s PWLD - South,Permanent Residential,Eclipse Office Park,5601.56, 18-Mar-2014
566,Revenue,CCHD,Bed purchasing - Elderly PWLD - North,Permanent Residential,Eclipse Office Park,3411.76, 18-Mar-2014
567,Revenue,CCHD,Bed Purchasing - Under 65s PWLD - South,Permanent Residential,Eclipse Office Park,4796.48, 18-Mar-2014
568,Revenue,CCHD,Bed Purchasing - Under 65s PWLD - South,Permanent Residential,Eclipse Office Park,5362.64, 18-Mar-2014
569,Revenue,CCHD,Bed Purchasing - Under 65s PWLD - South,Permanent Nursing,Eclipse Office Park,2784.88, 18-Mar-2014
570,Revenue,CCHD,Bed purchasing - Elderly MH - North,Permanent Nursing,Eclipse Office Park,1434.2, 18-Mar-2014
571,Revenue,CCHD,Section 117 Placements MH Younger,Permanent Nursing,Eclipse Office Park,1615.36, 18-Mar-2014
572,Revenue,CCHD,Bed Purchasing - Elderly MH - South,Permanent Residential,Eclipse Office Park,3555.92, 18-Mar-2014
573,Revenue,CCHD,Bed purchasing - Elderly S117 - South,Permanent Nursing,Eclipse Office Park,1964, 18-Mar-2014
574,Revenue,CCHD,Section 117 Placements MH Younger,Permanent Residential,Eclipse Office Park,1336, 18-Mar-2014
575,Revenue,CCHD,Bed purchasing - Elderly S117 - South,Permanent Nursing,Eclipse Office Park,1964, 18-Mar-2014
576,Revenue,CCHD,Bed Purchasing - Elderly - South,Permanent Nursing,Eclipse Office Park,1419.6, 18-Mar-2014
577,Revenue,CCHD,Bed purchasing - Elderly PWLD - South,Permanent Residential,Eclipse Office Park,4067.52, 18-Mar-2014
578,Revenue,CCHD,Bed purchasing -S28A  Under 65 - North,Permanent Nursing,Eclipse Office Park,5774.8, 18-Mar-2014
579,Revenue,CCHD,Bed purchasing -S28A  Under 65 - North,Permanent Residential,Eclipse Office Park,5258.88, 18-Mar-2014
580,Revenue,CCHD,Bed purchasing - S28A Under 65 - South,Permanent Residential,Eclipse Office Park,5446.8, 18-Mar-2014
581,Revenue,CCHD,Bed Purchasing - Elderly MH - South,Permanent Residential,Eclipse Office Park,1282.64, 18-Mar-2014
582,Revenue,CCHD,Bed Purchasing - Under 65s PWLD - South,Permanent Residential,Eclipse Office Park,5000.92, 18-Mar-2014
583,Revenue,CCHD,Bed Purchasing - Under 65s PWLD - South,Permanent Residential,Eclipse Office Park,5431.76, 18-Mar-2014
584,Revenue,CCHD,Bed purchasing - S28A Under 65 - South,Permanent Nursing,Eclipse Office Park,7190.52, 18-Mar-2014
585,Revenue,CCHD,Bed purchasing - Elderly PWLD - South,Permanent Residential,Eclipse Office Park,5052.56, 18-Mar-2014
586,Revenue,CCHD,Bed purchasing - Elderly PWLD - South,Permanent Residential,Eclipse Office Park,3823.68, 18-Mar-2014
587,Revenue,CCHD,Bed purchasing - Elderly PWLD - North,Permanent Residential,Eclipse Office Park,2969.12, 18-Mar-2014
588,Revenue,CCHD,Bed purchasing -S28A  Under 65 - North,Permanent Residential,Eclipse Office Park,5182.72, 18-Mar-2014
589,Revenue,CCHD,Bed purchasing -S28A  Under 65 - North,Permanent Residential,Eclipse Office Park,6955.32, 18-Mar-2014
590,Revenue,CCHD,Bed purchasing -S28A  Under 65 - North,Permanent Nursing,Eclipse Office Park,6153.36, 18-Mar-2014
591,Revenue,CCHD,Bed Purchasing - Under 65s PWLD - South,Permanent Residential,Eclipse Office Park,4452.24, 18-Mar-2014
592,Revenue,CCHD,Bed Purchasing - Elderly - South,Permanent Residential,Eclipse Office Park,3163.76, 18-Mar-2014
593,Revenue,CCHD,Bed purchasing -S28A  Under 65 - North,Permanent Residential,Eclipse Office Park,6656.16, 18-Mar-2014
594,Revenue,CCHD,Bed purchasing - S28A Under 65 - South,Permanent Residential,Eclipse Office Park,52397.95, 18-Mar-2014
595,Revenue,CCHD,Bed purchasing - S28A Under 65 - South,Permanent Residential,Eclipse Office Park,4459.4, 18-Mar-2014
596,Revenue,CCHD,Bed Purchasing - S28A - Over 65- North,Permanent Residential,Eclipse Office Park,6510.76, 18-Mar-2014
597,Revenue,CCHD,Bed Purchasing - LD S28A- Over 65- South,Permanent Residential,Eclipse Office Park,4118.28, 18-Mar-2014
598,Revenue,CCHD,Bed purchasing -S28A  Under 65 - North,Permanent Residential,Eclipse Office Park,6955.32, 18-Mar-2014
599,Revenue,CCHD,Bed purchasing -S28A  Under 65 - North,Permanent Residential,Eclipse Office Park,6955.32, 18-Mar-2014
600,Revenue,CCHD,Bed Purchasing - LD S28A- Over 65- South,Permanent Residential,Eclipse Office Park,4041.16, 18-Mar-2014
601,Revenue,CCHD,Bed purchasing - S28A Under 65 - South,Permanent Residential,Eclipse Office Park,4796.48, 18-Mar-2014
602,Revenue,CCHD,Bed purchasing - S28A Under 65 - South,Permanent Residential,Eclipse Office Park,4691.48, 18-Mar-2014
603,Revenue,CCHD,Bed purchasing - S28A Under 65 - South,Permanent Residential,Eclipse Office Park,3610.08, 18-Mar-2014
604,Revenue,CCHD,Bed Purchasing - LD S28A- Over 65- South,Permanent Residential,Eclipse Office Park,5019.44, 18-Mar-2014
605,Revenue,CCHD,Bed Purchasing - LD S28A- Over 65- South,Permanent Residential,Eclipse Office Park,4960.32, 18-Mar-2014
606,Revenue,CCHD,Bed Purchasing - LD S28A- Over 65- South,Permanent Residential,Eclipse Office Park,5114.08, 18-Mar-2014
607,Revenue,CCHD,Bed Purchasing - LD S28A- Over 65- South,Permanent Residential,Eclipse Office Park,4292.36, 18-Mar-2014
608,Revenue,CCHD,Bed Purchasing - LD S28A- Over 65- South,Permanent Residential,Eclipse Office Park,5097.36, 18-Mar-2014
609,Revenue,CCHD,Bed purchasing -S28A  Under 65 - North,Permanent Residential,Eclipse Office Park,9023.08, 18-Mar-2014
610,Revenue,CCHD,Bed purchasing -S28A  Under 65 - North,Permanent Nursing,Eclipse Office Park,6235.36, 18-Mar-2014
611,Revenue,CCHD,Bed Purchasing - LD S28A- Over 65- South,Permanent Residential,Eclipse Office Park,2953.24, 18-Mar-2014
612,Revenue,CCHD,Bed Purchasing - S28A - Over 65- North,Permanent Residential,Eclipse Office Park,2835.72, 18-Mar-2014
613,Revenue,CCHD,Section 117 Placements MH Younger,Permanent Residential,Eclipse Office Park,1336, 18-Mar-2014
614,Revenue,CCHD,Bed purchasing - Elderly MH - North,Permanent Residential,Eclipse Office Park,850, 18-Mar-2014
615,Revenue,CCHD,Bed purchasing - S28A Under 65 - South,Permanent Residential,Eclipse Office Park,5336.48, 18-Mar-2014
616,Revenue,CCHD,Bed purchasing - Elderly PWLD - North,Permanent Residential,Eclipse Office Park,4247.2, 18-Mar-2014
617,Revenue,CCHD,Bed purchasing - Elderly MH - North,Permanent Nursing,Eclipse Office Park,1098.04, 18-Mar-2014
618,Revenue,CCHD,Bed Purchasing - Under 65s PWLD - South,Permanent Residential,Eclipse Office Park,53661.69, 18-Mar-2014
619,Revenue,CCHD,Bed purchasing -S28A  Under 65 - North,Permanent Residential,Eclipse Office Park,5592.32, 18-Mar-2014
620,Revenue,CCHD,Bed Purchasing - S28A - Over 65- North,Permanent Residential,Eclipse Office Park,3549.16, 18-Mar-2014
621,Revenue,CCHD,Bed Purchasing - Elderly S117- North,Permanent Residential,Eclipse Office Park,1732, 18-Mar-2014
622,Revenue,CCHD,MH Purchasing - Younger,Permanent Residential,Eclipse Office Park,1020.8, 18-Mar-2014
623,Revenue,CCHD,Bed Purchasing - S28A - Over 65- North,Permanent Residential,Eclipse Office Park,3170.24, 18-Mar-2014
624,Revenue,CCHD,Bed Purchasing - LD S28A- Over 65- South,Permanent Residential,Eclipse Office Park,3828.04, 18-Mar-2014
625,Revenue,CCHD,Bed purchasing - S28A Under 65 - South,Permanent Residential,Eclipse Office Park,5391.32, 18-Mar-2014
626,Revenue,CCHD,Bed Purchasing - LD S28A- Over 65- South,Permanent Nursing,Eclipse Office Park,47654.89, 18-Mar-2014
627,Revenue,CCHD,Bed Purchasing - LD S28A- Over 65- South,Permanent Nursing,Eclipse Office Park,5151.88, 18-Mar-2014
628,Revenue,CCHD,South Glos Users in South Glos Homes,Permanent Nursing,Eclipse Office Park,4062.23, 18-Mar-2014
629,Revenue,CCHD,Bed Purchasing - LD S28A- Over 65- South,Permanent Residential,Eclipse Office Park,4735.4, 18-Mar-2014
630,Revenue,CCHD,Bed Purchasing - LD S28A- Over 65- South,Permanent Residential,Eclipse Office Park,4461.32, 18-Mar-2014
631,Revenue,CCHD,Bed Purchasing - LD S28A- Over 65- South,Permanent Residential,Eclipse Office Park,4535.32, 18-Mar-2014
632,Revenue,CCHD,Bed purchasing - S28A Under 65 - South,Permanent Residential,Eclipse Office Park,7067.16, 18-Mar-2014
633,Revenue,CCHD,Bed Purchasing - LD S28A- Over 65- South,Permanent Residential,Eclipse Office Park,4601.68, 18-Mar-2014
634,Revenue,CCHD,Bed Purchasing - S28A - Over 65- North,Permanent Residential,Eclipse Office Park,55034.65, 18-Mar-2014
635,Revenue,CCHD,Bed Purchasing - S28A - Over 65- North,Permanent Residential,Eclipse Office Park,4683.8, 18-Mar-2014
636,Revenue,CCHD,Bed Purchasing - Elderly S117- North,Permanent Nursing,Eclipse Office Park,1788, 18-Mar-2014
637,Revenue,CCHD,Bed Purchasing - S28A - Over 65- North,Permanent Residential,Eclipse Office Park,4524.16, 18-Mar-2014
638,Revenue,CCHD,Bed Purchasing - S28A - Over 65- North,Permanent Residential,Eclipse Office Park,4692.44, 18-Mar-2014
639,Revenue,CCHD,Bed purchasing - S28A Under 65 - South,Permanent Residential,Eclipse Office Park,4686.44, 18-Mar-2014
640,Revenue,CCHD,Bed Purchasing - S28A - Over 65- North,Permanent Residential,Eclipse Office Park,4440.04, 18-Mar-2014
641,Revenue,CCHD,Bed purchasing -S28A  Under 65 - North,Permanent Residential,Eclipse Office Park,6955.32, 18-Mar-2014
642,Revenue,CCHD,Bed purchasing -S28A  Under 65 - North,Permanent Residential,Eclipse Office Park,2924.52, 18-Mar-2014
643,Revenue,CCHD,Bed Purchasing - S28A - Over 65- North,Permanent Residential,Eclipse Office Park,36314.55, 18-Mar-2014
644,Revenue,CCHD,Bed Purchasing - S28A - Over 65- North,Permanent Residential,Eclipse Office Park,3221.88, 18-Mar-2014
645,Revenue,CCHD,Bed Purchasing - LD S28A- Over 65- South,Permanent Residential,Eclipse Office Park,3043.6, 18-Mar-2014
646,Revenue,CCHD,Bed purchasing - Under 65s PWLD - North,Permanent Residential,Eclipse Office Park,6673.92, 18-Mar-2014
647,Revenue,CCHD,South Glos Users in South Glos Homes,Permanent Nursing,Eclipse Office Park,3403.49, 18-Mar-2014
648,Revenue,CCHD,Bed Purchasing - Elderly - South,Permanent Residential,Eclipse Office Park,1302, 18-Mar-2014
649,Revenue,CCHD,MH Purchasing - Younger,Permanent Nursing,Eclipse Office Park,924, 18-Mar-2014
650,Revenue,CCHD,MH Purchasing - Younger,Permanent Nursing,Eclipse Office Park,1112.8, 18-Mar-2014
651,Revenue,CCHD,Bed purchasing - Elderly PWLD - South,Permanent Residential,Eclipse Office Park,3209.36, 18-Mar-2014
652,Revenue,CCHD,Bed purchasing - S28A Under 65 - South,Permanent Residential,Eclipse Office Park,5832.32, 18-Mar-2014
653,Revenue,CCHD,Bed purchasing - S28A Under 65 - South,Permanent Residential,Eclipse Office Park,5925.08, 18-Mar-2014
654,Revenue,CCHD,Bed Purchasing - LD S28A- Over 65- South,Permanent Residential,Eclipse Office Park,4292.36, 18-Mar-2014
655,Revenue,CCHD,Bed Purchasing - Under 65s PWLD - South,Permanent Residential,Eclipse Office Park,5832.72, 18-Mar-2014
656,Revenue,CCHD,South Glos Users in South Glos Homes,Permanent Nursing,Eclipse Office Park,5269.92, 18-Mar-2014
657,Revenue,CCHD,Bed Purchasing - LD S28A- Over 65- South,Permanent Nursing,Eclipse Office Park,4464.72, 18-Mar-2014
658,Revenue,CCHD,South Glos Users in South Glos Homes,Permanent Nursing,Eclipse Office Park,2826.2, 18-Mar-2014
659,Revenue,CCHD,Bed Purchasing - LD S28A- Over 65- South,Permanent Nursing,Eclipse Office Park,34407.19, 18-Mar-2014
660,Revenue,CCHD,Bed Purchasing - LD S28A- Over 65- South,Permanent Nursing,Eclipse Office Park,5151.88, 18-Mar-2014
661,Revenue,CCHD,South Glos Users in South Glos Homes,Permanent Nursing,Eclipse Office Park,2932.96, 18-Mar-2014
662,Revenue,CCHD,Bed Purchasing - LD S28A- Over 65- South,Permanent Residential,Eclipse Office Park,3559.36, 18-Mar-2014
663,Revenue,CCHD,Bed Purchasing - LD S28A- Over 65- South,Permanent Residential,Eclipse Office Park,4282.6, 18-Mar-2014
664,Revenue,CCHD,Bed Purchasing - LD S28A- Over 65- South,Permanent Residential,Eclipse Office Park,5869.12, 18-Mar-2014
665,Revenue,CCHD,Bed Purchasing - Elderly MH - South,Permanent Residential,Eclipse Office Park,1212.08, 18-Mar-2014
666,Revenue,CCHD,Bed purchasing -S28A  Under 65 - North,Permanent Nursing,Eclipse Office Park,7563.52, 18-Mar-2014
667,Revenue,CCHD,Bed Purchasing - Under 65s PWLD - South,Permanent Residential,Eclipse Office Park,5173.28, 18-Mar-2014
668,Revenue,CCHD,Bed Purchasing - Elderly S117- North,Permanent Nursing,Eclipse Office Park,1964, 18-Mar-2014
669,Revenue,CCHD,Bed Purchasing - Elderly MH - South,Permanent Nursing,Eclipse Office Park,1824.96, 18-Mar-2014
670,Revenue,CCHD,Swift Dump Code,Permanent Residential,Eclipse Office Park,2011.41, 18-Mar-2014
671,Revenue,CCHD,Section 117 Placements MH Younger,Permanent Residential,Eclipse Office Park,1336, 18-Mar-2014
672,Revenue,CCHD,Bed Purchasing - Elderly - North,Permanent Nursing,Eclipse Office Park,6293.62, 18-Mar-2014
673,Revenue,CCHD,Bed Purchasing - Elderly - North,Permanent Nursing,Eclipse Office Park,772.93, 18-Mar-2014
674,Revenue,CCHD,Bed purchasing - Elderly PWLD - South,Permanent Nursing,Eclipse Office Park,3338.92, 18-Mar-2014
675,Revenue,CCHD,Bed Purchasing - Elderly - South,Permanent Residential,Eclipse Office Park,3789.43, 18-Mar-2014
676,Revenue,CCHD,Bed Purchasing - Elderly - South,Permanent Residential,Eclipse Office Park,3191.42, 18-Mar-2014
677,Revenue,CCHD,Bed Purchasing - LD S28A- Over 65- South,Permanent Nursing,Eclipse Office Park,2940.76, 18-Mar-2014
678,Revenue,CCHD,Bed Purchasing - LD S28A- Over 65- South,Permanent Nursing,Eclipse Office Park,2729.64, 18-Mar-2014
679,Revenue,CCHD,Bed Purchasing - S28A - Over 65- North,Permanent Nursing,Eclipse Office Park,3649.32, 18-Mar-2014
680,Revenue,CCHD,Bed Purchasing - S28A - Over 65- North,Permanent Nursing,Eclipse Office Park,3665.32, 18-Mar-2014
681,Revenue,CCHD,MH Purchasing - Younger,Respite Planned - Residential,Eclipse Office Park,15508.57, 18-Mar-2014
682,Revenue,CCHD,Bed Purchasing - Elderly - South,Permanent Residential,Eclipse Office Park,1246, 18-Mar-2014
683,Revenue,CCHD,Bed Purchasing - Elderly - South,Permanent Residential,Eclipse Office Park,1246, 18-Mar-2014
684,Revenue,CCHD,Bed Purchasing - Elderly - South,Permanent Residential,Eclipse Office Park,1246, 18-Mar-2014
685,Revenue,CCHD,Bed Purchasing - Elderly - South,Permanent Residential,Edgecumbe Lodge,1514, 18-Mar-2014
686,Revenue,CCHD,Bed Purchasing - Southmead Hospital,Permanent Residential,Edgecumbe Lodge,1246, 18-Mar-2014
687,Revenue,CCHD,Bed Purchasing - Elderly - South,Permanent Residential,Edgecumbe Lodge,1052.16, 18-Mar-2014
688,Revenue,CCHD,Bed Purchasing - Elderly - South,Permanent Residential,Edgecumbe Lodge,8692.83, 18-Mar-2014
689,Revenue,CCHD,Bed Purchasing - Elderly - South,Permanent Residential,Edgecumbe Lodge,1431.76, 18-Mar-2014
690,Revenue,CCHD,Bed Purchasing - Elderly - South,Permanent Residential,Edgecumbe Lodge,1312.64, 18-Mar-2014
691,Revenue,CCHD,Bed Purchasing - Southmead Hospital,Permanent Residential,Edgecumbe Lodge,2100, 18-Mar-2014
692,Revenue,CCHD,Bed Purchasing - Elderly - South,Permanent Residential,Edgecumbe Lodge,1405.12, 18-Mar-2014
693,Revenue,CCHD,Bed Purchasing - Southmead Hospital,Permanent Residential,Edgecumbe Lodge,1514, 18-Mar-2014
694,Revenue,CCHD,Bed Purchasing - Elderly - South,Permanent Residential,Edgecumbe Lodge,991.96, 18-Mar-2014
695,Revenue,CCHD,Bed Purchasing - Elderly - South,Permanent Residential,Edgecumbe Lodge,1276.24, 18-Mar-2014
696,Revenue,CCHD,Bed Purchasing - Elderly - South,Permanent Residential,Edgecumbe Lodge,1223.16, 18-Mar-2014
697,Revenue,CCHD,Bed Purchasing - Southmead Hospital,Permanent Residential,Edgemont House Ltd,1414, 18-Mar-2014
698,Revenue,CCHD,Bed Purchasing - Elderly - South,Permanent Residential,Edgemont House Ltd,1454, 18-Mar-2014
699,Revenue,CCHD,Bed Purchasing - Elderly - South,Permanent Residential,Edgemont House Ltd,1246, 18-Mar-2014
700,Revenue,CCHD,Bed Purchasing - Elderly - South,Permanent Residential,Edgemont House Ltd,1246, 18-Mar-2014
701,Revenue,CCHD,Bed Purchasing - Elderly - South,Permanent Residential,Edgemont House Ltd,1412.04, 18-Mar-2014
702,Revenue,CCHD,Bed Purchasing - Elderly - South,Permanent Residential,Edgemont House Ltd,1260.96, 18-Mar-2014
703,Revenue,CCHD,South Glos Users in South Glos Homes,Permanent Nursing,Edgemont View Nursing Home,2274.22, 18-Mar-2014
704,Revenue,CCHD,Bed Purchasing - Elderly - North,Permanent Nursing,Edgemont View Nursing Home,1197.84, 18-Mar-2014
705,Revenue,CCHD,Bed Purchasing - Elderly - South,Permanent Nursing,Edgemont View Nursing Home,1427.52, 18-Mar-2014
706,Revenue,CCHD,Bed Purchasing - Elderly - South,Permanent Nursing,Edgemont View Nursing Home,1302, 18-Mar-2014
707,Revenue,CCHD,Bed Purchasing - Elderly - South,Permanent Nursing,Edgemont View Nursing Home,1613.52, 18-Mar-2014
708,Revenue,CCHD,Bed Purchasing - Elderly - South,Permanent Nursing,Edgemont View Nursing Home,1177.24, 18-Mar-2014
709,Revenue,CCHD,Home Care - Elderly - South,Other Small Contracts,Elite Home Care Ltd,6187.92, 05-Mar-2014
710,Revenue,CCHD,Home Care - Elderly - South,Other Small Contracts,Elite Home Care Ltd,6275.32, 05-Mar-2014
711,Revenue,CCHD,Home Care - Elderly - South,Other Small Contracts,Elite Home Care Ltd,6747.28, 05-Mar-2014
712,Revenue,CCHD,Home Care - Elderly - South,Other Small Contracts,Elite Home Care Ltd,6992, 21-Mar-2014
713,Revenue,CCHD,Home Care - Elderly - South,Other Small Contracts,Elite Home Care Ltd,6492.17, 21-Mar-2014
714,Revenue,CCHD,Home Care - Elderly - South,Other Small Contracts,Elite Home Care Ltd,6703.58, 21-Mar-2014
715,Revenue,CCHD,Bed Purchasing - Elderly - South,Permanent Residential,Elmbridge Residential Home Ltd,1317.56, 06-Mar-2014
716,Revenue,CCHD,Bed Purchasing - Elderly - South,Permanent Residential,Elmbridge Residential Home Ltd,1317.56, 06-Mar-2014
717,Revenue,CCHD,Bed Purchasing - Elderly - South,Permanent Residential,Elmbridge Residential Home Ltd,1317.56, 18-Mar-2014
718,Revenue,CCHD,Management & Support costs,Other Supplies & Services,Elmbridge Residential Home Ltd,1264.88, 06-Mar-2014
719,Revenue,CCHD,Bed Purchasing - Frenchay Hospital,Permanent Nursing,Elmwood Nursing Home,2223.88, 18-Mar-2014
720,Revenue,CCHD,Sexual Health Services - Contraception,Other Supplies & Services,Emersons Green Medical Centre,671.04, 17-Mar-2014
721,Revenue,CCHD,Day Care - South,Private & Voluntary Day Care,Enham,638.72, 21-Mar-2014
722,Revenue,CCHD,Home Care - Elderly - South,Other Small Contracts,Everycare (Bristol) Ltd,5304, 14-Mar-2014
723,Revenue,CCHD,Home Care - Elderly - North,Other Small Contracts,Everycare (Bristol) Ltd,3009, 14-Mar-2014
724,Revenue,CCHD,Day Care - South,Private & Voluntary Day Care,Everycare (Bristol) Ltd,102, 14-Mar-2014
725,Revenue,CCHD,Under 65s -MH  Home Care Purch,Other Small Contracts,Everycare (Bristol) Ltd,68, 14-Mar-2014
726,Revenue,CCHD,Home Care - Elderly - South,Other Small Contracts,Everycare (Bristol) Ltd,5894.75, 14-Mar-2014
727,Revenue,CCHD,Home Care - Elderly - North,Other Small Contracts,Everycare (Bristol) Ltd,3043, 14-Mar-2014
728,Revenue,CCHD,Day Care - South,Private & Voluntary Day Care,Everycare (Bristol) Ltd,106.25, 14-Mar-2014
729,Revenue,CCHD,Under 65s -MH  Home Care Purch,Other Small Contracts,Everycare (Bristol) Ltd,85, 14-Mar-2014
730,Revenue,CCHD,Home Care - Elderly - South,Other Small Contracts,Everycare (Bristol) Ltd,5899, 21-Mar-2014
731,Revenue,CCHD,Home Care - Elderly - North,Other Small Contracts,Everycare (Bristol) Ltd,3017.5, 21-Mar-2014
732,Revenue,CCHD,Day Care - South,Private & Voluntary Day Care,Everycare (Bristol) Ltd,106.25, 21-Mar-2014
733,Revenue,CCHD,Under 65s -MH  Home Care Purch,Other Small Contracts,Everycare (Bristol) Ltd,68, 21-Mar-2014
734,Revenue,CCHD,Home Care - Elderly - South,Other Small Contracts,Everycare (Bristol) Ltd,5865, 28-Mar-2014
735,Revenue,CCHD,Home Care - Elderly - North,Other Small Contracts,Everycare (Bristol) Ltd,3884.5, 28-Mar-2014
736,Revenue,CCHD,Day Care - South,Private & Voluntary Day Care,Everycare (Bristol) Ltd,68, 28-Mar-2014
737,Revenue,CCHD,Under 65s -MH  Home Care Purch,Other Small Contracts,Everycare (Bristol) Ltd,85, 28-Mar-2014
738,Revenue,CCHD,Bed Purchasing - Elderly MH - South,Permanent Residential,Exmouth House,1397.88, 18-Mar-2014
739,Revenue,CCHD,Bed Purchasing - Southmead Hospital,Permanent Residential,Fairfield House Care Home,1454.28, 18-Mar-2014
740,Revenue,CCHD,Bed Purchasing - Southmead Hospital,Permanent Residential,Fairfield House Care Home,1454.28, 18-Mar-2014
741,Revenue,CCHD,Bed Purchasing - Southmead Hospital,Permanent Residential,Fairfield House Care Home,1454.28, 18-Mar-2014
742,Revenue,CCHD,Bed Purchasing - Elderly - South,Permanent Nursing,Fairview Court,13869.7, 18-Mar-2014
743,Revenue,CCHD,Bed Purchasing - Elderly - South,Permanent Nursing,Fairview Court,1180.4, 18-Mar-2014
744,Revenue,CCHD,Bed Purchasing - Elderly MH - South,Permanent Nursing,Fairview Court,1850.48, 18-Mar-2014
745,Revenue,CCHD,Bed Purchasing - Elderly MH - South,Permanent Nursing,Fairview Court,1934.36, 18-Mar-2014
746,Revenue,CCHD,Bed Purchasing - Elderly MH - South,Permanent Residential,Fairview Court,1414, 18-Mar-2014
747,Revenue,CCHD,Bed Purchasing - Elderly - South,Permanent Nursing,Fairview Court,2476, 18-Mar-2014
748,Revenue,CCHD,Bed Purchasing - Elderly - South,Permanent Residential,Fairview Court,2648.56, 18-Mar-2014
749,Revenue,CCHD,Bed Purchasing - Elderly MH - South,Permanent Nursing,Fairview Court,1974.84, 18-Mar-2014
750,Revenue,CCHD,Bed Purchasing - Elderly - South,Permanent Nursing,Fairview Court,1830.44, 18-Mar-2014
751,Revenue,CCHD,Bed Purchasing - Frenchay Hospital,Permanent Nursing,Fairview Court,1836.08, 18-Mar-2014
752,Revenue,CCHD,Bed Purchasing - Elderly - South,Permanent Nursing,Fairview Court,2700, 18-Mar-2014
753,Revenue,CCHD,Bed Purchasing - Elderly MH - South,Permanent Nursing,Fairview Court,1921.68, 18-Mar-2014
754,Revenue,CCHD,Bed purchasing - Elderly MH - North,Permanent Nursing,Fairview Court,1699.6, 18-Mar-2014
755,Revenue,CCHD,Bed Purchasing - Elderly - South,Permanent Nursing,Fairview Court Care Home,1056.88, 06-Mar-2014
756,Revenue,CCHD,Bed Purchasing - Frenchay Hospital,Permanent Nursing,Fairview Court Care Home,1383.64, 06-Mar-2014
757,Revenue,CCHD,South Glos Users in South Glos Homes,Permanent Nursing,Fairview Court Care Home,2195.8, 06-Mar-2014
758,Revenue,CCHD,Bed purchasing - Phys Dis - North,Permanent Nursing,Fairview Court Care Home,2269.04, 06-Mar-2014
759,Revenue,CCHD,Bed Purchasing - Elderly MH - South,Permanent Nursing,Fairview Court Care Home,2759.16, 06-Mar-2014
760,Revenue,CCHD,Bed purchasing - Elderly S117 - South,Permanent Nursing,Fairview Court Care Home,2325.36, 06-Mar-2014
761,Revenue,CCHD,S75 CCG Interim Beds,Permanent Nursing,Fairview Court Care Home,6800, 21-Mar-2014
762,Revenue,CCHD,Bed Purchasing - Elderly - South,Permanent Residential,Fairview House,865.48, 18-Mar-2014
763,Revenue,CCHD,Bed Purchasing - Elderly - South,Permanent Residential,Fairview House,1265.24, 18-Mar-2014
764,Revenue,CCHD,Bed Purchasing - Frenchay Hospital,Permanent Residential,Fairview House,2055.35, 18-Mar-2014
765,Revenue,CCHD,Bed Purchasing - Elderly - South,Permanent Residential,Fairview House,928.12, 18-Mar-2014
766,Revenue,CCHD,Bed purchasing - Elderly S117 - South,Permanent Residential,Fairview House,1888.88, 18-Mar-2014
767,Revenue,CCHD,Bed Purchasing - Southmead Hospital,Permanent Residential,Fairview House,1019.48, 18-Mar-2014
768,Revenue,CCHD,Bed Purchasing - Elderly - South,Permanent Residential,Fairview House,721.84, 18-Mar-2014
769,Revenue,CCHD,Bed Purchasing - Elderly - South,Permanent Residential,Fairview House,1188.36, 18-Mar-2014
770,Revenue,CCHD,Bed Purchasing - Southmead Hospital,Permanent Residential,Fairview House,1116.24, 18-Mar-2014
771,Revenue,CCHD,Bed Purchasing - Elderly MH - South,Permanent Residential,Fairview House,1109.84, 18-Mar-2014
772,Revenue,CCHD,Bed Purchasing - Frenchay Hospital,Permanent Residential,Fairview House,1246, 18-Mar-2014
773,Revenue,CCHD,Bed Purchasing - Southmead Hospital,Permanent Residential,Fairview House,1062.04, 18-Mar-2014
774,Revenue,CCHD,Bed Purchasing - Elderly MH - South,Permanent Residential,Fairview House,1036.08, 18-Mar-2014
775,Revenue,CCHD,Bed Purchasing - Frenchay Hospital,Permanent Residential,Faith House,1206.2, 18-Mar-2014
776,Revenue,CCHD,Swift Dump Code,Permanent Residential,Ferfoot Care Home,2583.7, 06-Mar-2014
777,Revenue,CCHD,Management & Support costs,Other Supplies & Services,Ferfoot Care Home,613.11, 06-Mar-2014
778,Revenue,CCHD,Bed purchasing - Under 65s PWLD - North,Permanent Residential,Fernbank,7593.16, 18-Mar-2014
779,Revenue,CCHD,Home Care - Elderly - South,Other Small Contracts,Firstpoint Homecare Ltd,695.04, 03-Mar-2014
780,Revenue,CCHD,Home Care - Elderly - North,Other Small Contracts,Firstpoint Homecare Ltd,1108.28, 03-Mar-2014
781,Revenue,CCHD,Day Care - South,Private & Voluntary Day Care,Firstpoint Homecare Ltd,103.68, 03-Mar-2014
782,Revenue,CCHD,Day Care - North,Private & Voluntary Day Care,Firstpoint Homecare Ltd,92.16, 03-Mar-2014
783,Revenue,CCHD,Home care - Elderly MH - North,Other Small Contracts,Firstpoint Homecare Ltd,46.08, 03-Mar-2014
784,Revenue,CCHD,Elderly MH Day Care North,Private & Voluntary Day Care,Firstpoint Homecare Ltd,92.16, 03-Mar-2014
785,Revenue,CCHD,Home Care - Elderly - South,Other Small Contracts,Firstpoint Homecare Ltd,718.08, 03-Mar-2014
786,Revenue,CCHD,Home Care - Elderly - North,Other Small Contracts,Firstpoint Homecare Ltd,2471.76, 03-Mar-2014
787,Revenue,CCHD,Day Care - South,Private & Voluntary Day Care,Firstpoint Homecare Ltd,30.72, 03-Mar-2014
788,Revenue,CCHD,Day Care - North,Private & Voluntary Day Care,Firstpoint Homecare Ltd,92.16, 03-Mar-2014
789,Revenue,CCHD,Under 65s -MH  Home Care Purch,Other Small Contracts,Firstpoint Homecare Ltd,46.08, 03-Mar-2014
790,Revenue,CCHD,Elderly MH Day Care North,Private & Voluntary Day Care,Firstpoint Homecare Ltd,46.08, 03-Mar-2014
791,Revenue,CCHD,Home Care - Elderly - South,Other Small Contracts,Firstpoint Homecare Ltd,852.48, 03-Mar-2014
792,Revenue,CCHD,Home Care - Elderly - North,Other Small Contracts,Firstpoint Homecare Ltd,2661.45, 03-Mar-2014
793,Revenue,CCHD,Day Care - South,Private & Voluntary Day Care,Firstpoint Homecare Ltd,107.52, 03-Mar-2014
794,Revenue,CCHD,Day Care - North,Private & Voluntary Day Care,Firstpoint Homecare Ltd,92.16, 03-Mar-2014
795,Revenue,CCHD,Under 65s -MH  Home Care Purch,Other Small Contracts,Firstpoint Homecare Ltd,46.08, 03-Mar-2014
796,Revenue,CCHD,Elderly MH Day Care North,Private & Voluntary Day Care,Firstpoint Homecare Ltd,96, 03-Mar-2014
797,Revenue,CCHD,Home Care - Elderly - South,Other Small Contracts,Firstpoint Homecare Ltd,1009.92, 03-Mar-2014
798,Revenue,CCHD,Home Care - Elderly - North,Other Small Contracts,Firstpoint Homecare Ltd,2377.1, 03-Mar-2014
799,Revenue,CCHD,Day Care - South,Private & Voluntary Day Care,Firstpoint Homecare Ltd,153.6, 03-Mar-2014
800,Revenue,CCHD,Day Care - North,Private & Voluntary Day Care,Firstpoint Homecare Ltd,92.16, 03-Mar-2014
801,Revenue,CCHD,Under 65s -MH  Home Care Purch,Other Small Contracts,Firstpoint Homecare Ltd,46.08, 03-Mar-2014
802,Revenue,CCHD,Home care - Elderly MH - North,Other Small Contracts,Firstpoint Homecare Ltd,42.24, 03-Mar-2014
803,Revenue,CCHD,Elderly MH Day Care North,Private & Voluntary Day Care,Firstpoint Homecare Ltd,46.08, 03-Mar-2014
804,Revenue,CCHD,Home Care - Elderly - South,Other Small Contracts,Firstpoint Homecare Ltd,775.68, 03-Mar-2014
805,Revenue,CCHD,Home Care - Elderly - North,Other Small Contracts,Firstpoint Homecare Ltd,1918.54, 03-Mar-2014
806,Revenue,CCHD,Day Care - South,Private & Voluntary Day Care,Firstpoint Homecare Ltd,157.44, 03-Mar-2014
807,Revenue,CCHD,Day Care - North,Private & Voluntary Day Care,Firstpoint Homecare Ltd,92.16, 03-Mar-2014
808,Revenue,CCHD,Under 65s -MH  Home Care Purch,Other Small Contracts,Firstpoint Homecare Ltd,46.08, 03-Mar-2014
809,Revenue,CCHD,Home care - Elderly MH - North,Other Small Contracts,Firstpoint Homecare Ltd,46.08, 03-Mar-2014
810,Revenue,CCHD,Elderly MH Day Care North,Private & Voluntary Day Care,Firstpoint Homecare Ltd,92.16, 03-Mar-2014
811,Revenue,CCHD,Home Care - Elderly - South,Other Small Contracts,Firstpoint Homecare Ltd,983.04, 21-Mar-2014
812,Revenue,CCHD,Home Care - Elderly - North,Other Small Contracts,Firstpoint Homecare Ltd,1709.07, 21-Mar-2014
813,Revenue,CCHD,Day Care - South,Private & Voluntary Day Care,Firstpoint Homecare Ltd,153.6, 21-Mar-2014
814,Revenue,CCHD,Day Care - North,Private & Voluntary Day Care,Firstpoint Homecare Ltd,157.44, 21-Mar-2014
815,Revenue,CCHD,Home care - Elderly MH - North,Other Small Contracts,Firstpoint Homecare Ltd,46.08, 21-Mar-2014
816,Revenue,CCHD,Elderly MH Day Care North,Private & Voluntary Day Care,Firstpoint Homecare Ltd,92.16, 21-Mar-2014
817,Revenue,CCHD,Home Care - Elderly - South,Other Small Contracts,Firstpoint Homecare Ltd,921.6, 21-Mar-2014
818,Revenue,CCHD,Home Care - Elderly - North,Other Small Contracts,Firstpoint Homecare Ltd,1771.71, 21-Mar-2014
819,Revenue,CCHD,Day Care - South,Private & Voluntary Day Care,Firstpoint Homecare Ltd,122.88, 21-Mar-2014
820,Revenue,CCHD,Day Care - North,Private & Voluntary Day Care,Firstpoint Homecare Ltd,130.56, 21-Mar-2014
821,Revenue,CCHD,Under 65s -MH  Home Care Purch,Other Small Contracts,Firstpoint Homecare Ltd,46.08, 21-Mar-2014
822,Revenue,CCHD,Home care - Elderly MH - North,Other Small Contracts,Firstpoint Homecare Ltd,46.08, 21-Mar-2014
823,Revenue,CCHD,Elderly MH Day Care North,Private & Voluntary Day Care,Firstpoint Homecare Ltd,92.16, 21-Mar-2014
824,Revenue,CCHD,Home Care - Elderly - South,Other Small Contracts,Firstpoint Homecare Ltd,1002.24, 24-Mar-2014
825,Revenue,CCHD,Home Care - Elderly - North,Other Small Contracts,Firstpoint Homecare Ltd,2018.64, 24-Mar-2014
826,Revenue,CCHD,Day Care - South,Private & Voluntary Day Care,Firstpoint Homecare Ltd,161.28, 24-Mar-2014
827,Revenue,CCHD,Day Care - North,Private & Voluntary Day Care,Firstpoint Homecare Ltd,84.48, 24-Mar-2014
828,Revenue,CCHD,Under 65s -MH  Home Care Purch,Other Small Contracts,Firstpoint Homecare Ltd,46.08, 24-Mar-2014
829,Revenue,CCHD,Home care - Elderly MH - North,Other Small Contracts,Firstpoint Homecare Ltd,46.08, 24-Mar-2014
830,Revenue,CCHD,Elderly MH Day Care North,Private & Voluntary Day Care,Firstpoint Homecare Ltd,96, 24-Mar-2014
831,Revenue,CCHD,Home Care - Elderly - South,Other Small Contracts,Firstpoint Homecare Ltd,852.48, 28-Mar-2014
832,Revenue,CCHD,Home Care - Elderly - North,Other Small Contracts,Firstpoint Homecare Ltd,2245.81, 28-Mar-2014
833,Revenue,CCHD,Day Care - South,Private & Voluntary Day Care,Firstpoint Homecare Ltd,153.6, 28-Mar-2014
834,Revenue,CCHD,Day Care - North,Private & Voluntary Day Care,Firstpoint Homecare Ltd,84.48, 28-Mar-2014
835,Revenue,CCHD,Under 65s -MH  Home Care Purch,Other Small Contracts,Firstpoint Homecare Ltd,46.08, 28-Mar-2014
836,Revenue,CCHD,Home care - Elderly MH - North,Other Small Contracts,Firstpoint Homecare Ltd,46.08, 28-Mar-2014
837,Revenue,CCHD,Elderly MH Day Care North,Private & Voluntary Day Care,Firstpoint Homecare Ltd,46.07, 28-Mar-2014
838,Revenue,CCHD,Home Care - Elderly - South,Other Small Contracts,Firstpoint Homecare Ltd,902.4, 24-Mar-2014
839,Revenue,CCHD,Home Care - Elderly - North,Other Small Contracts,Firstpoint Homecare Ltd,2110.99, 24-Mar-2014
840,Revenue,CCHD,Day Care - South,Private & Voluntary Day Care,Firstpoint Homecare Ltd,161.28, 24-Mar-2014
841,Revenue,CCHD,Day Care - North,Private & Voluntary Day Care,Firstpoint Homecare Ltd,84.48, 24-Mar-2014
842,Revenue,CCHD,Under 65s -MH  Home Care Purch,Other Small Contracts,Firstpoint Homecare Ltd,46.08, 24-Mar-2014
843,Revenue,CCHD,Elderly MH Day Care North,Private & Voluntary Day Care,Firstpoint Homecare Ltd,92.16, 24-Mar-2014
844,Revenue,CCHD,Home Care - Elderly - South,Other Small Contracts,Firstpoint Homecare Ltd,906.24, 28-Mar-2014
845,Revenue,CCHD,Home Care - Elderly - North,Other Small Contracts,Firstpoint Homecare Ltd,1589.33, 28-Mar-2014
846,Revenue,CCHD,Day Care - South,Private & Voluntary Day Care,Firstpoint Homecare Ltd,122.88, 28-Mar-2014
847,Revenue,CCHD,Day Care - North,Private & Voluntary Day Care,Firstpoint Homecare Ltd,30.72, 28-Mar-2014
848,Revenue,CCHD,Under 65s -MH  Home Care Purch,Other Small Contracts,Firstpoint Homecare Ltd,46.08, 28-Mar-2014
849,Revenue,CCHD,Home care - Elderly MH - North,Other Small Contracts,Firstpoint Homecare Ltd,46.08, 28-Mar-2014
850,Revenue,CCHD,Elderly MH Day Care North,Private & Voluntary Day Care,Firstpoint Homecare Ltd,76.8, 28-Mar-2014
851,Revenue,CCHD,Home Care - Elderly - South,Other Small Contracts,Firstpoint Homecare Ltd,921.6, 28-Mar-2014
852,Revenue,CCHD,Home Care - Elderly - North,Other Small Contracts,Firstpoint Homecare Ltd,1624.8, 28-Mar-2014
853,Revenue,CCHD,Day Care - South,Private & Voluntary Day Care,Firstpoint Homecare Ltd,157.44, 28-Mar-2014
854,Revenue,CCHD,Day Care - North,Private & Voluntary Day Care,Firstpoint Homecare Ltd,84.48, 28-Mar-2014
855,Revenue,CCHD,Under 65s -MH  Home Care Purch,Other Small Contracts,Firstpoint Homecare Ltd,46.08, 28-Mar-2014
856,Revenue,CCHD,Elderly MH Day Care North,Private & Voluntary Day Care,Firstpoint Homecare Ltd,92.16, 28-Mar-2014
857,Revenue,CCHD,Public Health - Admin,Other Supplies & Services,Five Square Solutions Limited,8750, 11-Mar-2014
858,Revenue,CCHD,Training - Adult Services,Training Expenses,Focal Point UK,457.7, 04-Mar-2014
859,Revenue,CCHD,Bed Purchasing - Elderly - South,Permanent Nursing,Four Seasons Health Care,1177.16, 18-Mar-2014
860,Revenue,CCHD,Bed Purchasing - Elderly S117- North,Permanent Residential,Four Seasons Health Care,2030.36, 18-Mar-2014
861,Revenue,CCHD,Bed Purchasing - Frenchay Hospital,Permanent Residential,Four Seasons Health Care,1526.84, 18-Mar-2014
862,Revenue,CCHD,Freeways,Permanent Residential,Freeways Trust Limited,46198.71, 12-Mar-2014
863,Revenue,CCHD,Supported Living - South,Private & Voluntary Home Care,Freeways Trust Limited,1282.75, 17-Mar-2014
864,Revenue,CCHD,Purchase of Non-Res Care - North,Private & Voluntary Day Care,Freeways Trust Limited,554.04, 21-Mar-2014
865,Revenue,CCHD,Bed purchasing - Under 65s PWLD - North,Permanent Residential,Freeways Trust Ltd,2817.88, 18-Mar-2014
866,Revenue,CCHD,Bed purchasing - S28A Under 65 - South,Permanent Residential,Freeways Trust Ltd,2880.64, 18-Mar-2014
867,Revenue,CCHD,Bed purchasing - Under 65s PWLD - North,Permanent Residential,Freeways Trust Ltd,2682.36, 18-Mar-2014
868,Revenue,CCHD,Bed purchasing - Under 65s PWLD - North,Permanent Residential,Freeways Trust Ltd,2253.16, 18-Mar-2014
869,Revenue,CCHD,Bed purchasing - Under 65s PWLD - North,Permanent Residential,Freeways Trust Ltd,2691.08, 18-Mar-2014
870,Revenue,CCHD,Bed Purchasing - Under 65s PWLD - South,Permanent Residential,Freeways Trust Ltd,3289.6, 18-Mar-2014
871,Revenue,CCHD,Bed purchasing - Elderly PWLD - North,Permanent Residential,Freeways Trust Ltd,2235.92, 18-Mar-2014
872,Revenue,CCHD,Bed Purchasing - Under 65s PWLD - South,Permanent Residential,Freeways Trust Ltd,2382.36, 18-Mar-2014
873,Revenue,CCHD,Bed purchasing - Under 65s PWLD - North,Permanent Residential,Freeways Trust Ltd,2691.08, 18-Mar-2014
874,Revenue,CCHD,Bed purchasing - Elderly PWLD - North,Permanent Residential,Freeways Trust Ltd,3112.28, 18-Mar-2014
875,Revenue,CCHD,Section 117 Placements MH Younger,Permanent Residential,Freeways Trust Ltd,3324, 18-Mar-2014
876,Revenue,CCHD,Bed purchasing - Under 65s PWLD - North,Permanent Residential,Freeways Trust Ltd,3844.32, 18-Mar-2014
877,Revenue,CCHD,Bed Purchasing - Under 65s PWLD - South,Permanent Residential,Freeways Trust Ltd,6117.96, 18-Mar-2014
878,Revenue,CCHD,Bed Purchasing - Frenchay Hospital,Permanent Nursing,Frenchay Park Nursing Home,1004.36, 18-Mar-2014
879,Revenue,CCHD,Bed Purchasing - Elderly - South,Permanent Nursing,Frenchay Park Nursing Home,1306.08, 18-Mar-2014
880,Revenue,CCHD,Stop Smoking Services and Interventions,Other Supplies & Services,Frome Valley Medical Centre,508, 17-Mar-2014
881,Revenue,CCHD,Sexual Health Services - Contraception,Other Supplies & Services,Frome Valley Medical Centre,671.04, 28-Mar-2014
882,Revenue,CCHD,Bed Purchasing - Elderly - South,Permanent Nursing,Fshc  1St Floor,891.56, 18-Mar-2014
883,Revenue,CCHD,Bed Purchasing - Frenchay Hospital,Permanent Residential,Fshc  1St Floor,893.96, 18-Mar-2014
884,Revenue,CCHD,Bed Purchasing - Southmead Hospital,Permanent Nursing,Fshc  1St Floor,782.16, 18-Mar-2014
885,Revenue,CCHD,Bed Purchasing - Frenchay Hospital,Permanent Residential,Fshc  1St Floor,1242.96, 18-Mar-2014
886,Revenue,CCHD,Bed Purchasing - Frenchay Hospital,Permanent Nursing,Fshc  1St Floor,1370, 18-Mar-2014
887,Revenue,CCHD,Bed Purchasing - Elderly - South,Permanent Nursing,Fshc  1St Floor,781.16, 18-Mar-2014
888,Revenue,CCHD,Bed Purchasing - Southmead Hospital,Permanent Nursing,Fshc  1St Floor,1370, 18-Mar-2014
889,Revenue,CCHD,Bed Purchasing - Southmead Hospital,Permanent Nursing,Fshc  1St Floor,2497.52, 18-Mar-2014
890,Revenue,CCHD,Bed Purchasing - Southmead Hospital,Permanent Nursing,Fshc  1St Floor,1248.76, 18-Mar-2014
891,Revenue,CCHD,South Glos Users in South Glos Homes,Permanent Nursing,Fshc  1St Floor,2038.96, 18-Mar-2014
892,Revenue,CCHD,Bed Purchasing - Elderly - South,Permanent Residential,Fshc  1St Floor,942.26, 18-Mar-2014
893,Revenue,CCHD,Bed Purchasing - Elderly - South,Permanent Residential,Fshc  1St Floor,506.51, 18-Mar-2014
894,Revenue,CCHD,Bed Purchasing - Elderly - South,Permanent Nursing,Fshc  1St Floor,1048.64, 18-Mar-2014
895,Revenue,CCHD,Bed Purchasing - Southmead Hospital,Permanent Nursing,Fshc  1St Floor,1370, 18-Mar-2014
896,Revenue,CCHD,Bed Purchasing - Elderly - South,Permanent Nursing,Fshc  1St Floor,1370, 18-Mar-2014
897,Revenue,CCHD,Bed Purchasing - Elderly - South,Permanent Nursing,Fshc  1St Floor,1206.72, 18-Mar-2014
898,Revenue,CCHD,Bed Purchasing - Elderly - South,Respite Emergency - Nursing,Fshc  1St Floor,596.57, 18-Mar-2014
899,Revenue,CCHD,South Glos Users in South Glos Homes,Permanent Nursing,Fshc  1St Floor,2038.96, 18-Mar-2014
900,Revenue,CCHD,Bed Purchasing - Southmead Hospital,Permanent Nursing,Fshc  1St Floor,1196.72, 18-Mar-2014
901,Revenue,CCHD,Bed Purchasing - Elderly - South,Permanent Nursing,Fshc  1St Floor,1301.36, 18-Mar-2014
902,Revenue,CCHD,South Glos Users in South Glos Homes,Permanent Nursing,Fshc  1St Floor,1929.17, 18-Mar-2014
903,Revenue,CCHD,Bed Purchasing - Southmead Hospital,Permanent Nursing,Fshc  1St Floor,1370, 18-Mar-2014
904,Revenue,CCHD,Bed Purchasing - Southmead Hospital,Permanent Residential,Fshc  1St Floor,533.6, 18-Mar-2014
905,Revenue,CCHD,Bed Purchasing - Southmead Hospital,Permanent Nursing,Fshc  1St Floor,1102.08, 18-Mar-2014
906,Revenue,CCHD,Bed Purchasing - Elderly - North,Permanent Nursing,Fshc  1St Floor,1370, 18-Mar-2014
907,Revenue,CCHD,Bed Purchasing - Frenchay Hospital,Permanent Nursing,Fshc  1St Floor,1856, 18-Mar-2014
908,Revenue,CCHD,Bed Purchasing - Elderly - North,Permanent Nursing,Fshc  1St Floor,1856, 18-Mar-2014
909,Revenue,CCHD,Bed Purchasing - Frenchay Hospital,Permanent Nursing,Fshc  1St Floor,1180.6, 18-Mar-2014
910,Revenue,CCHD,Bed Purchasing - Elderly - South,Permanent Nursing,Fshc  1St Floor,1370, 18-Mar-2014
911,Revenue,CCHD,Bed Purchasing - Elderly - South,Permanent Nursing,Fshc  1St Floor,1316.36, 18-Mar-2014
912,Revenue,CCHD,Bed Purchasing - Elderly - South,Permanent Nursing,Fshc  1St Floor,1371.6, 18-Mar-2014
913,Revenue,CCHD,Bed Purchasing - Frenchay Hospital,Permanent Nursing,Fshc  1St Floor,1078.4, 18-Mar-2014
914,Revenue,CCHD,Bed Purchasing - Elderly MH - South,Permanent Residential,Fshc  1St Floor,1090.48, 18-Mar-2014
915,Revenue,CCHD,Bed Purchasing - Elderly - South,Permanent Nursing,Fshc  1St Floor,1334, 18-Mar-2014
916,Revenue,CCHD,Bed Purchasing - Southmead Hospital,Permanent Nursing,Fshc  1St Floor,1370, 18-Mar-2014
917,Revenue,CCHD,Bed Purchasing - Elderly MH - South,Permanent Nursing,Fshc  1St Floor,1216.84, 18-Mar-2014
918,Revenue,CCHD,Bed Purchasing - Southmead Hospital,Permanent Nursing,Fshc  1St Floor,1362.4, 18-Mar-2014
919,Revenue,CCHD,Bed purchasing - Elderly MH - North,Permanent Nursing,Fshc  1St Floor,786.72, 18-Mar-2014
920,Revenue,CCHD,Bed Purchasing - Elderly - South,Permanent Nursing,Fshc  1St Floor,992.4, 18-Mar-2014
921,Revenue,CCHD,Bed Purchasing - Southmead Hospital,Permanent Nursing,Fshc  1St Floor,985.8, 18-Mar-2014
922,Revenue,CCHD,Bed Purchasing - Elderly - North,Permanent Nursing,Fshc  1St Floor,1134.84, 18-Mar-2014
923,Revenue,CCHD,Bed Purchasing - Elderly - North,Permanent Nursing,Fshc  1St Floor,974.36, 18-Mar-2014
924,Revenue,CCHD,Bed Purchasing - Frenchay Hospital,Permanent Nursing,Fshc  1St Floor,938.64, 18-Mar-2014
925,Revenue,CCHD,Bed Purchasing - Elderly - North,Permanent Nursing,Fshc  1St Floor,1284.08, 18-Mar-2014
926,Revenue,CCHD,Bed Purchasing - Elderly - North,Permanent Nursing,Fshc  1St Floor,1883.05, 18-Mar-2014
927,Revenue,CCHD,Bed Purchasing - Elderly - North,Permanent Nursing,Fshc  1St Floor,1126.22, 18-Mar-2014
928,Revenue,CCHD,Bed Purchasing - Elderly - North,Permanent Nursing,Fshc  1St Floor,721.84, 18-Mar-2014
929,Revenue,CCHD,Swift Dump Code,Permanent Residential,Fshc  1St Floor,616.87, 18-Mar-2014
930,Revenue,CCHD,South Glos Users in South Glos Homes,Permanent Nursing,Fshc  1St Floor,1850.75, 18-Mar-2014
931,Revenue,CCHD,Bed Purchasing - Southmead Hospital,Permanent Nursing,Fshc  1St Floor,662.57, 18-Mar-2014
932,Revenue,CCHD,Bed Purchasing - Elderly - North,Permanent Nursing,Fshc  1St Floor,1339, 18-Mar-2014
933,Revenue,CCHD,Bed Purchasing - Elderly - North,Permanent Nursing,Fshc  1St Floor,1035.8, 18-Mar-2014
934,Revenue,CCHD,Bed Purchasing - Southmead Hospital,Permanent Nursing,Fshc  1St Floor,1215.4, 18-Mar-2014
935,Revenue,CCHD,Bed Purchasing - Elderly - North,Permanent Residential,Fshc  1St Floor,975.78, 18-Mar-2014
936,Revenue,CCHD,Bed Purchasing - Elderly - North,Permanent Residential,Fshc  1St Floor,1347.68, 18-Mar-2014
937,Revenue,CCHD,Bed Purchasing - Frenchay Hospital,Permanent Nursing,Fshc  1St Floor,1097.72, 18-Mar-2014
938,Revenue,CCHD,Bed Purchasing - Frenchay Hospital,Permanent Nursing,Fshc  1St Floor,1114.96, 18-Mar-2014
939,Revenue,CCHD,Bed purchasing - Elderly MH - North,Permanent Nursing,Fshc  1St Floor,1030.24, 18-Mar-2014
940,Revenue,CCHD,Bed Purchasing - Southmead Hospital,Permanent Nursing,Fshc  1St Floor,1269.68, 18-Mar-2014
941,Revenue,CCHD,Bed Purchasing - Elderly - North,Permanent Nursing,Fshc  1St Floor,3368.07, 18-Mar-2014
942,Revenue,CCHD,Bed Purchasing - Elderly - North,Permanent Nursing,Fshc  1St Floor,1546, 18-Mar-2014
943,Revenue,CCHD,South Glos Users in South Glos Homes,Permanent Nursing,Fshc  1St Floor,1913.48, 18-Mar-2014
944,Revenue,CCHD,Bed Purchasing - Frenchay Hospital,Permanent Nursing,Fshc  1St Floor,1546, 18-Mar-2014
945,Revenue,CCHD,Bed Purchasing - Frenchay Hospital,Permanent Nursing,Fshc  1St Floor,1104.29, 18-Mar-2014
946,Revenue,CCHD,Bed Purchasing - Elderly - South,Permanent Residential,Fshc  1St Floor,1117.84, 18-Mar-2014
947,Revenue,CCHD,Bed Purchasing - Frenchay Hospital,Permanent Nursing,Fshc  1St Floor,2032, 18-Mar-2014
948,Revenue,CCHD,Bed Purchasing - Southmead Hospital,Permanent Nursing,Fshc  1St Floor,1546, 18-Mar-2014
949,Revenue,CCHD,Bed Purchasing - Frenchay Hospital,Permanent Nursing,Fshc  1St Floor,1370, 18-Mar-2014
950,Revenue,CCHD,Bed Purchasing - Frenchay Hospital,Permanent Nursing,Fshc  1St Floor,782.86, 18-Mar-2014
951,Revenue,CCHD,South Glos Users in South Glos Homes,Permanent Nursing,Fshc  1St Floor,2007.59, 18-Mar-2014
952,Revenue,CCHD,Bed Purchasing - Southmead Hospital,Permanent Nursing,Fshc  1St Floor,1370, 18-Mar-2014
953,Revenue,CCHD,Bed Purchasing - Elderly - North,Permanent Nursing,Fshc  1St Floor,579.12, 18-Mar-2014
954,Revenue,CCHD,Bed purchasing - Elderly MH - North,Permanent Nursing,Fshc  1St Floor,1468.6, 18-Mar-2014
955,Revenue,CCHD,Bed Purchasing - Elderly - North,Permanent Nursing,Fshc  1St Floor,1269.68, 18-Mar-2014
956,Revenue,CCHD,Bed Purchasing - Southmead Hospital,Permanent Nursing,Fshc  1St Floor,2886.79, 18-Mar-2014
957,Revenue,CCHD,Bed Purchasing - Southmead Hospital,Permanent Nursing,Fshc  1St Floor,1370, 18-Mar-2014
958,Revenue,CCHD,Bed Purchasing - Frenchay Hospital,Permanent Nursing,Fshc  1St Floor,1018.76, 18-Mar-2014
959,Revenue,CCHD,Bed Purchasing - Southmead Hospital,Permanent Nursing,Fshc  1St Floor,1364.32, 18-Mar-2014
960,Revenue,CCHD,Bed Purchasing - Frenchay Hospital,Permanent Residential,Fshc  1St Floor,628.4, 18-Mar-2014
961,Revenue,CCHD,Bed Purchasing - Frenchay Hospital,Permanent Nursing,Fshc  1St Floor,1286.96, 18-Mar-2014
962,Revenue,CCHD,Bed Purchasing - Frenchay Hospital,Permanent Nursing,Fshc  1St Floor,1350.84, 18-Mar-2014
963,Revenue,CCHD,Bed Purchasing - Elderly - North,Permanent Nursing,Fshc  1St Floor,1041.72, 18-Mar-2014
964,Revenue,CCHD,South Glos Users in South Glos Homes,Permanent Nursing,Fshc  1St Floor,1835.06, 18-Mar-2014
965,Revenue,CCHD,Bed Purchasing - Elderly - North,Permanent Residential,Fshc  1St Floor,782.56, 18-Mar-2014
966,Revenue,CCHD,Bed Purchasing - Southmead Hospital,Permanent Nursing,Fshc  1St Floor,1450.56, 18-Mar-2014
967,Revenue,CCHD,Bed Purchasing - Southmead Hospital,Permanent Nursing,Fshc  1St Floor,1546, 18-Mar-2014
968,Revenue,CCHD,Bed Purchasing - Elderly MH - South,Permanent Nursing,Fshc  1St Floor,1327.8, 18-Mar-2014
969,Revenue,CCHD,Bed Purchasing - Elderly - North,Permanent Nursing,Fshc  1St Floor,1449, 18-Mar-2014
970,Revenue,CCHD,Bed Purchasing - Elderly - North,Permanent Residential,Fshc  1St Floor,505.4, 18-Mar-2014
971,Revenue,CCHD,Bed purchasing - Elderly MH - North,Permanent Residential,Fshc  1St Floor,1438, 18-Mar-2014
972,Revenue,CCHD,Bed Purchasing - Elderly - North,Permanent Nursing,Fshc  1St Floor,1530.84, 18-Mar-2014
973,Revenue,CCHD,Bed purchasing - Elderly S117 - South,Permanent Nursing,Fshc  1St Floor,1856, 18-Mar-2014
974,Revenue,CCHD,Bed purchasing - Elderly MH - North,Permanent Residential,Fshc  1St Floor,1255.2, 18-Mar-2014
975,Revenue,CCHD,South Glos Users in South Glos Homes,Permanent Nursing,Fshc  1St Floor,1740.96, 18-Mar-2014
976,Revenue,CCHD,Bed Purchasing - Southmead Hospital,Permanent Residential,Fshc  1St Floor,1246, 18-Mar-2014
977,Revenue,CCHD,Bed Purchasing - Elderly - North,Permanent Residential,Fshc  1St Floor,1155.6, 18-Mar-2014
978,Revenue,CCHD,Bed purchasing - Elderly MH - North,Permanent Residential,Fshc  1St Floor,1378.88, 18-Mar-2014
979,Revenue,CCHD,Bed Purchasing - Elderly - North,Permanent Nursing,Fshc  1St Floor,1349.52, 18-Mar-2014
980,Revenue,CCHD,Bed Purchasing - Southmead Hospital,Permanent Nursing,Fshc  1St Floor,1213.24, 18-Mar-2014
981,Revenue,CCHD,Bed Purchasing - Elderly - North,Permanent Nursing,Fshc  1St Floor,1370, 18-Mar-2014
982,Revenue,CCHD,Bed Purchasing - Elderly - North,Permanent Residential,Fshc  1St Floor,1254, 18-Mar-2014
983,Revenue,CCHD,Bed Purchasing - Elderly - North,Permanent Nursing,Fshc  1St Floor,1145.72, 18-Mar-2014
984,Revenue,CCHD,South Glos Users in South Glos Homes,Permanent Nursing,Fshc  1St Floor,2070.33, 18-Mar-2014
985,Revenue,CCHD,Bed Purchasing - Frenchay Hospital,Permanent Residential,Fshc  1St Floor,1246, 18-Mar-2014
986,Revenue,CCHD,Bed Purchasing - Elderly - North,Permanent Nursing,Fshc  1St Floor,593.6, 18-Mar-2014
987,Revenue,CCHD,Bed Purchasing - Southmead Hospital,Permanent Nursing,Fshc  1St Floor,1370, 18-Mar-2014
988,Revenue,CCHD,Bed Purchasing - Frenchay Hospital,Respite Planned - Nursing,Fshc  1St Floor,1872.57, 18-Mar-2014
989,Revenue,CCHD,Bed Purchasing - Frenchay Hospital,Respite Planned - Nursing,Fshc  1St Floor,1905.71, 18-Mar-2014
990,Revenue,CCHD,Bed Purchasing - Frenchay Hospital,Respite Planned - Nursing,Fshc  1St Floor,645.71, 18-Mar-2014
991,Revenue,CCHD,South Glos Users in South Glos Homes,Permanent Nursing,Fshc  1St Floor,4328.86, 18-Mar-2014
992,Revenue,CCHD,South Glos Users in South Glos Homes,Permanent Nursing,Fshc  1St Floor,878.32, 18-Mar-2014
993,Revenue,CCHD,South Glos Users in South Glos Homes,Permanent Nursing,Fshc  1St Floor,1819.38, 18-Mar-2014
994,Revenue,CCHD,South Glos Users in South Glos Homes,Permanent Nursing,Fshc  1St Floor,4344.55, 18-Mar-2014
995,Revenue,CCHD,Bed Purchasing - Frenchay Hospital,Permanent Nursing,Fshc  1St Floor,1307.44, 18-Mar-2014
996,Revenue,CCHD,Bed Purchasing - Elderly - North,Permanent Nursing,Fshc  1St Floor,854.8, 18-Mar-2014
997,Revenue,CCHD,Bed Purchasing - Elderly - North,Permanent Nursing,Fshc  1St Floor,1013.16, 18-Mar-2014
998,Revenue,CCHD,Bed Purchasing - Southmead Hospital,Permanent Nursing,Fshc  1St Floor,1020.68, 18-Mar-2014
999,Revenue,CCHD,Bed Purchasing - Elderly - South,Permanent Nursing,Fshc  1St Floor,1368.76, 18-Mar-2014
1000,Revenue,CCHD,South Glos Users in South Glos Homes,Permanent Nursing,Fshc  1St Floor,1505.69, 18-Mar-2014
1001,Revenue,CCHD,Bed Purchasing - Frenchay Hospital,Permanent Nursing,Fshc  1St Floor,1300.8, 18-Mar-2014
1002,Revenue,CCHD,Bed Purchasing - Frenchay Hospital,Permanent Nursing,Fshc  1St Floor,1370, 18-Mar-2014
1003,Revenue,CCHD,Bed Purchasing - Southmead Hospital,Permanent Nursing,Fshc  1St Floor,592.56, 18-Mar-2014
1004,Revenue,CCHD,Bed Purchasing - Elderly - North,Permanent Nursing,Fshc  1St Floor,1268.68, 18-Mar-2014
1005,Revenue,CCHD,Bed Purchasing - Elderly - North,Permanent Nursing,Fshc  1St Floor,1071.64, 18-Mar-2014
1006,Revenue,CCHD,Bed Purchasing - Southmead Hospital,Permanent Nursing,Fshc  1St Floor,754.48, 18-Mar-2014
1007,Revenue,CCHD,South Glos Users in South Glos Homes,Permanent Nursing,Fshc  1St Floor,3403.49, 18-Mar-2014
1008,Revenue,CCHD,Bed Purchasing - Frenchay Hospital,Permanent Nursing,Fshc  1St Floor,873.36, 18-Mar-2014
1009,Revenue,CCHD,Bed Purchasing - Elderly - North,Permanent Nursing,Fshc  1St Floor,2780, 18-Mar-2014
1010,Revenue,CCHD,Bed Purchasing - Elderly - North,Permanent Nursing,Fshc  1St Floor,1390, 18-Mar-2014
1011,Revenue,CCHD,South Glos Users in South Glos Homes,Permanent Nursing,Fshc  1St Floor,815.58, 18-Mar-2014
1012,Revenue,CCHD,Bed Purchasing - Southmead Hospital,Permanent Nursing,Fshc  1St Floor,1292.6, 18-Mar-2014
1013,Revenue,CCHD,Bed Purchasing - Elderly - North,Permanent Nursing,Fshc  1St Floor,1249.04, 18-Mar-2014
1014,Revenue,CCHD,Bed Purchasing - Elderly - South,Permanent Nursing,Fshc  1St Floor,786.16, 18-Mar-2014
1015,Revenue,CCHD,Bed Purchasing - Frenchay Hospital,Permanent Nursing,Fshc  1St Floor,1336.6, 18-Mar-2014
1016,Revenue,CCHD,Bed Purchasing - Southmead Hospital,Permanent Nursing,Fshc  1St Floor,1344.2, 18-Mar-2014
1017,Revenue,CCHD,Bed Purchasing - Southmead Hospital,Permanent Nursing,Fshc  1St Floor,1957.16, 18-Mar-2014
1018,Revenue,CCHD,South Glos Users in South Glos Homes,Permanent Nursing,Fshc  1St Floor,1803.69, 18-Mar-2014
1019,Revenue,CCHD,Bed Purchasing - Elderly - North,Permanent Residential,Fshc  1St Floor,2960.04, 18-Mar-2014
1020,Revenue,CCHD,Bed purchasing - Phys Dis - North,Permanent Nursing,Fshc  1St Floor,1376.28, 18-Mar-2014
1021,Revenue,CCHD,Bed Purchasing - Elderly - South,Permanent Nursing,Fshc  1St Floor,1224.64, 18-Mar-2014
1022,Revenue,CCHD,Bed Purchasing - Southmead Hospital,Permanent Nursing,Fshc  1St Floor,1370, 18-Mar-2014
1023,Revenue,CCHD,Bed Purchasing - Southmead Hospital,Permanent Nursing,Fshc  1St Floor,1298.96, 18-Mar-2014
1024,Revenue,CCHD,Bed Purchasing - Elderly MH - South,Permanent Residential,Fshc  1St Floor,1924, 18-Mar-2014
1025,Revenue,CCHD,Bed Purchasing - Frenchay Hospital,Permanent Nursing,Fshc  1St Floor,1359.08, 18-Mar-2014
1026,Revenue,CCHD,Bed Purchasing - Frenchay Hospital,Permanent Nursing,Fshc  1St Floor,1293.56, 18-Mar-2014
1027,Revenue,CCHD,Bed Purchasing - Southmead Hospital,Permanent Residential,Fshc  1St Floor,1466, 18-Mar-2014
1028,Revenue,CCHD,Bed Purchasing - Elderly - South,Permanent Residential,Fshc  1St Floor,1399.72, 18-Mar-2014
1029,Revenue,CCHD,Bed Purchasing - Elderly - North,Permanent Residential,Fshc  1St Floor,1160.96, 18-Mar-2014
1030,Revenue,CCHD,Bed Purchasing - Elderly - North,Permanent Nursing,Fshc  1St Floor,1135, 18-Mar-2014
1031,Revenue,CCHD,Bed Purchasing - Southmead Hospital,Permanent Nursing,Fshc  1St Floor,1891.61, 18-Mar-2014
1032,Revenue,CCHD,Bed Purchasing - Southmead Hospital,Permanent Nursing,Fshc  1St Floor,1103.44, 18-Mar-2014
1033,Revenue,CCHD,Bed Purchasing - Frenchay Hospital,Permanent Nursing,Fshc  1St Floor,1230.52, 18-Mar-2014
1034,Revenue,CCHD,Bed Purchasing - Elderly - North,Permanent Nursing,Fshc  1St Floor,1856, 18-Mar-2014
1035,Revenue,CCHD,Bed Purchasing - Elderly - South,Permanent Residential,Fshc  1St Floor,1105.84, 18-Mar-2014
1036,Revenue,CCHD,Bed purchasing - Elderly MH - North,Permanent Residential,Fshc  1St Floor,1438, 18-Mar-2014
1037,Revenue,CCHD,Bed Purchasing - Southmead Hospital,Permanent Nursing,Fshc  1St Floor,9554.56, 18-Mar-2014
1038,Revenue,CCHD,South Glos Users in South Glos Homes,Permanent Nursing,Fshc  1St Floor,1756.64, 18-Mar-2014
1039,Revenue,CCHD,Bed Purchasing - Southmead Hospital,Permanent Nursing,Fshc  1St Floor,1194.32, 18-Mar-2014
1040,Revenue,CCHD,Bed Purchasing - Southmead Hospital,Permanent Nursing,Fshc  1St Floor,1366, 18-Mar-2014
1041,Revenue,CCHD,Bed Purchasing - Elderly - South,Permanent Residential,Fshc  1St Floor,901.24, 18-Mar-2014
1042,Revenue,CCHD,Bed purchasing - Elderly PWLD - South,Permanent Residential,Fshc  1St Floor,1246, 18-Mar-2014
1043,Revenue,CCHD,Bed Purchasing - Frenchay Hospital,Permanent Nursing,Fshc  1St Floor,1370, 18-Mar-2014
1044,Revenue,CCHD,Bed Purchasing - Southmead Hospital,Permanent Nursing,Fshc  1St Floor,1101.08, 18-Mar-2014
1045,Revenue,CCHD,Bed Purchasing - Elderly - North,Permanent Residential,Fshc  1St Floor,1179.92, 18-Mar-2014
1046,Revenue,CCHD,Bed Purchasing - Frenchay Hospital,Permanent Nursing,Fshc  1St Floor,1856, 18-Mar-2014
1047,Revenue,CCHD,Bed Purchasing - Frenchay Hospital,Permanent Nursing,Fshc  1St Floor,1370, 18-Mar-2014
1048,Revenue,CCHD,Bed Purchasing - Southmead Hospital,Permanent Nursing,Fshc  1St Floor,957.12, 18-Mar-2014
1049,Revenue,CCHD,Bed Purchasing - Elderly - South,Permanent Residential,Fshc  1St Floor,816.56, 18-Mar-2014
1050,Revenue,CCHD,Bed Purchasing - Elderly - South,Permanent Nursing,Fshc  1St Floor,1354, 18-Mar-2014
1051,Revenue,CCHD,South Glos Users in South Glos Homes,Permanent Nursing,Fshc  1St Floor,721.48, 18-Mar-2014
1052,Revenue,CCHD,Bed Purchasing - Southmead Hospital,Permanent Residential,Fshc  1St Floor,1453.28, 18-Mar-2014
1053,Revenue,CCHD,Bed Purchasing - Elderly - South,Permanent Nursing,Fshc  1St Floor,1206.76, 18-Mar-2014
1054,Revenue,CCHD,Bed Purchasing - Elderly - South,Permanent Nursing,Fshc  1St Floor,941.76, 18-Mar-2014
1055,Revenue,CCHD,Bed purchasing - Elderly S117 - South,Permanent Nursing,Fshc  1St Floor,1856, 18-Mar-2014
1056,Revenue,CCHD,Bed Purchasing - Frenchay Hospital,Permanent Residential,Fshc  1St Floor,1107.56, 18-Mar-2014
1057,Revenue,CCHD,South Glos Users in South Glos Homes,Permanent Nursing,Fshc  1St Floor,2493.8, 18-Mar-2014
1058,Revenue,CCHD,South Glos Users in South Glos Homes,Permanent Nursing,Fshc  1St Floor,3889.7, 18-Mar-2014
1059,Revenue,CCHD,Bed Purchasing - Elderly - North,Permanent Nursing,Fshc  1St Floor,1305.92, 18-Mar-2014
1060,Revenue,CCHD,South Glos Users in South Glos Homes,Permanent Nursing,Fshc  1St Floor,878.32, 18-Mar-2014
1061,Revenue,CCHD,Bed Purchasing - Elderly - South,Permanent Residential,Fshc  1St Floor,1351.6, 18-Mar-2014
1062,Revenue,CCHD,Bed Purchasing - Elderly - South,Permanent Residential,Fshc  1St Floor,1206.79, 18-Mar-2014
1063,Revenue,CCHD,Bed Purchasing - Frenchay Hospital,Respite Emergency - Residential,Fshc  1St Floor,2130.14, 18-Mar-2014
1064,Revenue,CCHD,Bed Purchasing - Frenchay Hospital,Respite Emergency - Residential,Fshc  1St Floor,1924, 18-Mar-2014
1065,Revenue,CCHD,Bed Purchasing - Elderly - North,Permanent Residential,Fshc  1St Floor,1199.92, 18-Mar-2014
1066,Revenue,CCHD,Bed Purchasing - Elderly - South,Permanent Nursing,Fshc  1St Floor,1370, 18-Mar-2014
1067,Revenue,CCHD,Bed Purchasing - Elderly - South,Permanent Nursing,Fshc  1St Floor,1370, 18-Mar-2014
1068,Revenue,CCHD,Bed Purchasing - Southmead Hospital,Permanent Nursing,Fshc  1St Floor,1856, 18-Mar-2014
1069,Revenue,CCHD,Bed Purchasing - Frenchay Hospital,Permanent Nursing,Fshc  1St Floor,1109.92, 18-Mar-2014
1070,Revenue,CCHD,Bed Purchasing - Southmead Hospital,Permanent Nursing,Fshc  1St Floor,1114.88, 18-Mar-2014
1071,Revenue,CCHD,Bed Purchasing - Frenchay Hospital,Permanent Nursing,Fshc  1St Floor,956.08, 18-Mar-2014
1072,Revenue,CCHD,Bed Purchasing - Frenchay Hospital,Permanent Nursing,Fshc  1St Floor,1287, 18-Mar-2014
1073,Revenue,CCHD,Bed Purchasing - Frenchay Hospital,Permanent Nursing,Fshc  1St Floor,2070.46, 18-Mar-2014
1074,Revenue,CCHD,Bed Purchasing - Frenchay Hospital,Permanent Nursing,Fshc  1St Floor,1525.6, 18-Mar-2014
1075,Revenue,CCHD,Bed Purchasing - Southmead Hospital,Permanent Nursing,Fshc  1St Floor,1370, 18-Mar-2014
1076,Revenue,CCHD,Bed Purchasing - Southmead Hospital,Permanent Nursing,Fshc  1St Floor,1223.21, 18-Mar-2014
1077,Revenue,CCHD,Bed Purchasing - Frenchay Hospital,Permanent Nursing,Fshc  1St Floor,1117.88, 18-Mar-2014
1078,Revenue,CCHD,Bed Purchasing - Frenchay Hospital,Permanent Nursing,Fshc  1St Floor,1370, 18-Mar-2014
1079,Revenue,CCHD,Bed Purchasing - Southmead Hospital,Permanent Nursing,Fshc  1St Floor,870.76, 18-Mar-2014
1080,Revenue,CCHD,Bed Purchasing - Southmead Hospital,Permanent Nursing,Fshc  1St Floor,739.04, 18-Mar-2014
1081,Revenue,CCHD,Bed Purchasing - Southmead Hospital,Permanent Residential,Fshc  1St Floor,1732, 18-Mar-2014
1082,Revenue,CCHD,Bed Purchasing - Elderly - North,Respite Planned - Nursing,Fshc  1St Floor,949.29, 18-Mar-2014
1083,Revenue,CCHD,Bed Purchasing - Frenchay Hospital,Permanent Nursing,Fshc  1St Floor,1394.12, 18-Mar-2014
1084,Revenue,CCHD,Bed Purchasing - Elderly - North,Permanent Nursing,Fshc  1St Floor,1276.2, 18-Mar-2014
1085,Revenue,CCHD,Bed purchasing - Phys Dis - North,Permanent Nursing,Fshc  1St Floor,840.44, 18-Mar-2014
1086,Revenue,CCHD,Bed Purchasing - Elderly - North,Permanent Nursing,Fshc  1St Floor,1478, 18-Mar-2014
1087,Revenue,CCHD,Bed Purchasing - Elderly - North,Permanent Nursing,Fshc  1St Floor,1209.6, 18-Mar-2014
1088,Revenue,CCHD,Bed Purchasing - Frenchay Hospital,Permanent Nursing,Fshc  1St Floor,1302, 18-Mar-2014
1089,Revenue,CCHD,Bed purchasing - Elderly MH - North,Permanent Nursing,Fshc  1St Floor,858.48, 18-Mar-2014
1090,Revenue,CCHD,Bed Purchasing - Southmead Hospital,Permanent Nursing,Fshc  1St Floor,1478, 18-Mar-2014
1091,Revenue,CCHD,Bed Purchasing - Frenchay Hospital,Permanent Residential,Fshc  1St Floor,1215.68, 18-Mar-2014
1092,Revenue,CCHD,Bed Purchasing - Southmead Hospital,Permanent Nursing,Fshc  1St Floor,1285.4, 18-Mar-2014
1093,Revenue,CCHD,Bed Purchasing - Frenchay Hospital,Permanent Nursing,Fshc  1St Floor,1103.24, 18-Mar-2014
1094,Revenue,CCHD,Bed Purchasing - Southmead Hospital,Permanent Nursing,Fshc  1St Floor,1445.84, 18-Mar-2014
1095,Revenue,CCHD,Bed purchasing - Elderly S117 - South,Permanent Nursing,Fshc  1St Floor,1964, 18-Mar-2014
1096,Revenue,CCHD,Bed Purchasing - Frenchay Hospital,Permanent Nursing,Fshc  1St Floor,951.24, 18-Mar-2014
1097,Revenue,CCHD,Bed Purchasing - Elderly S117- North,Permanent Nursing,Fshc  1St Floor,1964, 18-Mar-2014
1098,Revenue,CCHD,Bed Purchasing - Elderly - North,Permanent Residential,Fshc  1St Floor,1414, 18-Mar-2014
1099,Revenue,CCHD,Bed Purchasing - Frenchay Hospital,Permanent Nursing,Fshc  1St Floor,1097.04, 18-Mar-2014
1100,Revenue,CCHD,Bed Purchasing - Elderly - South,Permanent Residential,Fshc  1St Floor,1340.56, 18-Mar-2014
1101,Revenue,CCHD,Bed Purchasing - Southmead Hospital,Permanent Residential,FSHC 1st Floor,803.8, 18-Mar-2014
1102,Revenue,CCHD,Section 117 Placements MH Younger,Permanent Residential,Gladstone House,2721.88, 18-Mar-2014
1103,Revenue,CCHD,Bed Purchasing - Under 65s PWLD - South,Permanent Residential,Glasallt Fawr,13643.52, 18-Mar-2014
1104,Revenue,CCHD,Bed purchasing - Elderly MH - North,Permanent Residential,Glebe House Nursing Home,1792.88, 18-Mar-2014
1105,Revenue,CCHD,Bed purchasing - Elderly MH - North,Permanent Residential,Glebe House Nursing Home,2007.6, 18-Mar-2014
1106,Revenue,CCHD,Bed Purchasing - Elderly - North,Permanent Nursing,Glebe House Nursing Home,1387.96, 18-Mar-2014
1107,Revenue,CCHD,Bed Purchasing - Frenchay Hospital,Permanent Nursing,Glebe House Nursing Home,898.48, 18-Mar-2014
1108,Revenue,CCHD,Bed Purchasing - Elderly - North,Permanent Residential,Glebe House Nursing Home,1172.16, 18-Mar-2014
1109,Revenue,CCHD,South Glos Users in South Glos Homes,Permanent Nursing,Glebe House Nursing Home,3105.49, 18-Mar-2014
1110,Revenue,CCHD,Bed Purchasing - Elderly - North,Permanent Nursing,Glebe House Nursing Home,1804.52, 18-Mar-2014
1111,Revenue,CCHD,Bed Purchasing - Elderly - North,Permanent Nursing,Glebe House Nursing Home,8306.27, 18-Mar-2014
1112,Revenue,CCHD,Bed Purchasing - Elderly - North,Permanent Nursing,Glebe House Nursing Home,2133.72, 18-Mar-2014
1113,Revenue,CCHD,Bed Purchasing - Elderly - South,Permanent Residential,Glebe House Nursing Home,1977.76, 18-Mar-2014
1114,Revenue,CCHD,South Glos Users in South Glos Homes,Permanent Nursing,Glebe House Nursing Home,3623.07, 18-Mar-2014
1115,Revenue,CCHD,Bed Purchasing - Elderly - North,Permanent Residential,Glebe House Nursing Home,2551.92, 18-Mar-2014
1116,Revenue,CCHD,Bed Purchasing - Under 65s PWLD - South,Permanent Residential,Gordena Care Home,2082.36, 18-Mar-2014
1117,Revenue,CCHD,Bed purchasing - Elderly PWLD - South,Permanent Residential,Gordena Care Home,4732.4, 18-Mar-2014
1118,Revenue,CCHD,Bed purchasing - Elderly PWLD - South,Permanent Residential,Gordena Care Home,3116.24, 18-Mar-2014
1119,Revenue,CCHD,Bed purchasing - Elderly PWLD - South,Permanent Residential,Gordena Care Home,2927.44, 18-Mar-2014
1120,Revenue,CCHD,Bed Purchasing - Under 65s PWLD - South,Permanent Residential,Gordena Care Home,1907.6, 18-Mar-2014
1121,Revenue,CCHD,Bed Purchasing - Under 65s PWLD - South,Permanent Residential,Gordena Care Limited,4158.56, 18-Mar-2014
1122,Revenue,CCHD,Bed purchasing - S28A Under 65 - South,Permanent Residential,Gordena Care Limited,4055.8, 18-Mar-2014
1123,Revenue,CCHD,Bed purchasing - Under 65s PWLD - North,Permanent Residential,Gordena Care Limited,4160, 18-Mar-2014
1124,Revenue,CCHD,Bed Purchasing - Elderly - North,Permanent Residential,Greensleeves,1312.68, 18-Mar-2014
1125,Revenue,CCHD,Bed Purchasing - Elderly - North,Permanent Residential,Gwendoline House,887.56, 18-Mar-2014
1126,Revenue,CCHD,Bed Purchasing - Elderly - South,Permanent Residential,Gwendoline House,1490.04, 18-Mar-2014
1127,Revenue,CCHD,Bed Purchasing - Elderly - North,Permanent Residential,Gwendoline House,1636.56, 18-Mar-2014
1128,Revenue,CCHD,Bed Purchasing - Elderly MH - South,Permanent Residential,Gwendoline House,1284.64, 18-Mar-2014
1129,Revenue,CCHD,Bed Purchasing - Elderly - South,Permanent Residential,Gwendoline House,1128.52, 18-Mar-2014
1130,Revenue,CCHD,Breakthrough and Inclusion Work,Other Supplies & Services,Hambly`s Sport Matter Ltd,1362, 17-Mar-2014
1131,Revenue,CCHD,Bed Purchasing - Elderly - South,Permanent Residential,Harefield Hall,1327.24, 18-Mar-2014
1132,Revenue,CCHD,Bed Purchasing - Elderly - South,Permanent Residential,Harefield Hall,1968.44, 18-Mar-2014
1133,Revenue,CCHD,Bed Purchasing - Elderly - South,Permanent Residential,Harefield Hall,1112.96, 18-Mar-2014
1134,Revenue,CCHD,Bed Purchasing - Elderly - South,Permanent Residential,Harefield Hall,1778.56, 18-Mar-2014
1135,Revenue,CCHD,Bed Purchasing - Elderly MH - South,Permanent Residential,Harefield Hall,1030.52, 18-Mar-2014
1136,Revenue,CCHD,Bed Purchasing - Elderly - South,Permanent Residential,Harefield Hall,1291.8, 18-Mar-2014
1137,Revenue,CCHD,Bed Purchasing - Elderly - South,Permanent Residential,Harefield Hall,8139.13, 18-Mar-2014
1138,Revenue,CCHD,Management & Support costs,Other Supplies & Services,Hartcliffe Nursing H,1030.41, 06-Mar-2014
1139,Revenue,CCHD,Stop Smoking Services and Interventions,Other Supplies & Services,Hayfield Pharmacy,1813.62, 11-Mar-2014
1140,Revenue,CCHD,Bed Purchasing - Southmead Hospital,Permanent Nursing,Hc-One Ltd,1613.52, 18-Mar-2014
1141,Revenue,CCHD,Bed Purchasing - Elderly - North,Permanent Nursing,Hc-One Ltd,1469.6, 18-Mar-2014
1142,Revenue,CCHD,Bed Purchasing - Elderly - North,Permanent Nursing,Hc-One Ltd,1509.48, 18-Mar-2014
1143,Revenue,CCHD,Bed Purchasing - Elderly - North,Permanent Nursing,Hc-One Ltd,1499.04, 18-Mar-2014
1144,Revenue,CCHD,Bed purchasing - Elderly PWLD - South,Permanent Nursing,Hc-One Ltd,1929.96, 18-Mar-2014
1145,Revenue,CCHD,Bed purchasing - Elderly MH - North,Permanent Nursing,Hc-One Ltd,1478, 18-Mar-2014
1146,Revenue,CCHD,Bed purchasing - Elderly MH - North,Permanent Nursing,Hc-One Ltd,1229.12, 18-Mar-2014
1147,Revenue,CCHD,Bed Purchasing - Frenchay Hospital,Permanent Nursing,Hc-One Ltd,1471.16, 18-Mar-2014
1148,Revenue,CCHD,Bed Purchasing - Elderly - South,Permanent Nursing,Hc-One Ltd,1146.88, 18-Mar-2014
1149,Revenue,CCHD,Bed purchasing - Elderly MH - North,Permanent Nursing,Hc-One Ltd,1170.6, 18-Mar-2014
1150,Revenue,CCHD,Bed Purchasing - Elderly S117- North,Permanent Nursing,Hc-One Ltd,1947.72, 18-Mar-2014
1151,Revenue,CCHD,Day Care - South,Private & Voluntary Day Care,Headway Bristol,576.54, 06-Mar-2014
1152,Revenue,CCHD,Day Care - North,Private & Voluntary Day Care,Headway Bristol,552.69, 17-Mar-2014
1153,Revenue,CCHD,Day Care - South,Private & Voluntary Day Care,Headway Bristol,575.46, 28-Mar-2014
1154,Revenue,CCHD,Home Care - Elderly - South,Other Small Contracts,Helping Hands Homecare,156.4, 13-Mar-2014
1155,Revenue,CCHD,Home Care - Elderly - North,Other Small Contracts,Helping Hands Homecare,1411.51, 13-Mar-2014
1156,Revenue,CCHD,Day Care - North,Private & Voluntary Day Care,Helping Hands Homecare,31.28, 13-Mar-2014
1157,Revenue,CCHD,Under 65s -MH  Home Care Purch,Other Small Contracts,Helping Hands Homecare,31.28, 13-Mar-2014
1158,Revenue,CCHD,Home care - Elderly MH - North,Other Small Contracts,Helping Hands Homecare,62.56, 13-Mar-2014
1159,Revenue,CCHD,Home Care - Elderly - South,Other Small Contracts,Helping Hands Homecare,215.05, 21-Mar-2014
1160,Revenue,CCHD,Home Care - Elderly - North,Other Small Contracts,Helping Hands Homecare,1736.04, 21-Mar-2014
1161,Revenue,CCHD,Day Care - North,Private & Voluntary Day Care,Helping Hands Homecare,31.28, 21-Mar-2014
1162,Revenue,CCHD,Under 65s -MH  Home Care Purch,Other Small Contracts,Helping Hands Homecare,31.28, 21-Mar-2014
1163,Revenue,CCHD,Home care - Elderly MH - North,Other Small Contracts,Helping Hands Homecare,62.56, 21-Mar-2014
1164,Revenue,CCHD,Home Care - Elderly - South,Other Small Contracts,Helping Hands Homecare,621.69, 21-Mar-2014
1165,Revenue,CCHD,Home Care - Elderly - North,Other Small Contracts,Helping Hands Homecare,1419.33, 21-Mar-2014
1166,Revenue,CCHD,Day Care - North,Private & Voluntary Day Care,Helping Hands Homecare,31.28, 21-Mar-2014
1167,Revenue,CCHD,Under 65s -MH  Home Care Purch,Other Small Contracts,Helping Hands Homecare,31.28, 21-Mar-2014
1168,Revenue,CCHD,Home care - Elderly MH - North,Other Small Contracts,Helping Hands Homecare,62.56, 21-Mar-2014
1169,Revenue,CCHD,Home Care - Elderly - South,Other Small Contracts,Helping Hands Homecare,566.95, 28-Mar-2014
1170,Revenue,CCHD,Home Care - Elderly - North,Other Small Contracts,Helping Hands Homecare,1579.64, 28-Mar-2014
1171,Revenue,CCHD,Day Care - North,Private & Voluntary Day Care,Helping Hands Homecare,125.12, 28-Mar-2014
1172,Revenue,CCHD,Under 65s -MH  Home Care Purch,Other Small Contracts,Helping Hands Homecare,31.28, 28-Mar-2014
1173,Revenue,CCHD,Home care - Elderly MH - North,Other Small Contracts,Helping Hands Homecare,62.56, 28-Mar-2014
1174,Revenue,CCHD,S117 Placements PCT,Permanent Residential,Hesley Hall,17943.96, 18-Mar-2014
1175,Revenue,CCHD,Bed Purchasing - Southmead Hospital,Permanent Residential,High Border Lodge,1444.2, 18-Mar-2014
1176,Revenue,CCHD,Bed Purchasing - Frenchay Hospital,Permanent Residential,Highfield House,1220.64, 18-Mar-2014
1177,Revenue,CCHD,Bed purchasing - Under 65s PWLD - North,Permanent Residential,Holmleigh Care Homes Ltd,4000.16, 18-Mar-2014
1178,Revenue,CCHD,Bed Purchasing - Under 65s PWLD - South,Permanent Residential,Holmleigh Care Homes Ltd,5027.72, 18-Mar-2014
1179,Revenue,CCHD,South Glos Users in South Glos Homes,Permanent Nursing,Holmwood House,1803.69, 18-Mar-2014
1180,Revenue,CCHD,Bed purchasing - Under 65s PWLD - North,Permanent Residential,Home Farm Trust Ltd  5-6 Brook Office Pa,2810.04, 18-Mar-2014
1181,Revenue,CCHD,Bed purchasing - Elderly PWLD - South,Permanent Residential,Home Farm Trust Ltd  5-6 Brook Office Pa,5050.32, 18-Mar-2014
1182,Revenue,CCHD,Bed purchasing - Under 65s PWLD - North,Permanent Residential,Home Farm Trust Ltd  5-6 Brook Office Pa,3396, 18-Mar-2014
1183,Revenue,CCHD,Bed Purchasing - Under 65s PWLD - South,Permanent Residential,Home Farm Trust Ltd  5-6 Brook Office Pa,4505.04, 18-Mar-2014
1184,Revenue,CCHD,Bed purchasing - Under 65s PWLD - North,Permanent Residential,Home From Home Care Ltd,8857.52, 18-Mar-2014
1185,Revenue,CCHD,Social Lettings Agency,Fees - General,Home Turf Lettings,10, 11-Mar-2014
1186,Revenue,CCHD,Social Lettings Agency,Other Supplies & Services,Home Turf Lettings,565, 11-Mar-2014
1187,Revenue,CCHD,Bed purchasing - Under 65s PWLD - North,Permanent Residential,Homes Caring For Autism Ltd  Churchill H,9755.64, 18-Mar-2014
1188,Revenue,CCHD,Bed Purchasing - Under 65s PWLD - South,Permanent Residential,Homes Caring For Autism Ltd  Churchill H,12715.92, 18-Mar-2014
1189,Revenue,CCHD,Bed purchasing - Under 65s PWLD - North,Permanent Residential,Homes Caring For Autism Ltd  Churchill H,12410, 18-Mar-2014
1190,Revenue,CCHD,Bed Purchasing - Elderly - South,Permanent Nursing,Horfield Care Limited,1218.08, 25-Mar-2014
1191,Revenue,CCHD,Bed Purchasing - Elderly - North,Permanent Nursing,Horfield Care Limited,2612.6, 25-Mar-2014
1192,Revenue,CCHD,Bed Purchasing - Frenchay Hospital,Permanent Nursing,Horfield Care Limited,1339.84, 25-Mar-2014
1193,Revenue,CCHD,Bed Purchasing - Frenchay Hospital,Respite Planned - Nursing,Horfield Care Limited,821.16, 25-Mar-2014
1194,Revenue,CCHD,Bed Purchasing - Southmead Hospital,Permanent Nursing,Horfield Care Limited,8004.48, 25-Mar-2014
1195,Revenue,CCHD,Bed Purchasing - Southmead Hospital,Respite Planned - Nursing,Horfield Care Limited,6765.8, 25-Mar-2014
1196,Revenue,CCHD,Home Care - Elderly - North,Private & Voluntary Home Care,Housing 21,37580.45, 10-Mar-2014
1197,Revenue,CCHD,Home Care - Elderly - South,Private & Voluntary Home Care,Housing 21,8842.75, 18-Mar-2014
1198,Revenue,CCHD,Home Care - Elderly - South,Private & Voluntary Home Care,Housing 21,1952.39, 17-Mar-2014
1199,Revenue,CCHD,Home Care - Elderly - South,Private & Voluntary Home Care,Housing 21,16470.32, 17-Mar-2014
1200,Revenue,CCHD,Home Care - Elderly - South,Private & Voluntary Home Care,Housing 21,2447.58, 17-Mar-2014
1201,Revenue,CCHD,Home Care - Elderly - South,Private & Voluntary Home Care,Housing 21,3260.88, 17-Mar-2014
1202,Revenue,CCHD,Information Systems - Software,Software Support & Maintenance,IBM United Kingdom,1415, 07-Mar-2014
1203,Revenue,CCHD,Management & Support costs,Other Supplies & Services,Ilsham Valley Nursing Home,791.38, 24-Mar-2014
1204,Revenue,CCHD,Swift Dump Code,Permanent Residential,Ilsom House,1720.5, 18-Mar-2014
1205,Revenue,CCHD,Public Health - Admin,Other Supplies & Services,In2Print Ltd,655.2, 19-Mar-2014
1206,Revenue,CCHD,Social Lettings Agency,Fees - General,Individual,11.6, 11-Mar-2014
1207,Revenue,CCHD,Social Lettings Agency,Other Supplies & Services,Individual,589.14, 11-Mar-2014
1208,Revenue,CCHD,Alexandra Way,Medical Fees,J&P Healthcare LLP,783, 19-Mar-2014
1209,Revenue,CCHD,Bed Purchasing - Elderly - North,Permanent Residential,Jah Jireh Charity Homes,1143.4, 18-Mar-2014
1210,Revenue,CCHD,Homeless - Private Sector Leasing,Other Supplies & Services,Jill Collins,594, 14-Mar-2014
1211,Revenue,CCHD,Training - Adult Services,Training Expenses,JK Training,3200, 28-Mar-2014
1212,Revenue,CCHD,Training - Adult Services,Training Expenses,JK Training,2100, 28-Mar-2014
1213,Revenue,CCHD,Public Health - Admin,Other Supplies & Services,John O`Carroll,600, 03-Mar-2014
1214,Revenue,CCHD,Sexual Health Services - STI & Treatment,Other Supplies & Services,JRW Billing,512, 10-Mar-2014
1215,Revenue,CCHD,Stop Smoking Services and Interventions,Other Supplies & Services,JRW Billing,1326.52, 10-Mar-2014
1216,Revenue,CCHD,Stop Smoking Services and Interventions,Other Supplies & Services,JRW Billing,864.19, 17-Mar-2014
1217,Revenue,CCHD,Bed Purchasing - Under 65s PWLD - South,Permanent Residential,Julia Simone- Supp. Ind.,3902.32, 18-Mar-2014
1218,Revenue,CCHD,Bed purchasing -S28A  Under 65 - North,Permanent Residential,Julia Simone- Supp. Ind.,3443.08, 18-Mar-2014
1219,Revenue,CCHD,Tenancy Start Up Scheme,Other Supplies & Services,Individual,625, 07-Mar-2014
1220,Revenue,CCHD,Tenancy Start Up Scheme,Other Supplies & Services,Individual,575, 07-Mar-2014
1221,Revenue,CCHD,Bed Purchasing - Elderly - South,Permanent Residential,Karenza Ltd,1732, 18-Mar-2014
1222,Revenue,CCHD,Stop Smoking Services and Interventions,Other Supplies & Services,Kennedy Way Surgery,914, 17-Mar-2014
1223,Revenue,CCHD,Sexual Health Services - Contraception,Other Supplies & Services,Kennedy Way Surgery,1187.22, 17-Mar-2014
1224,Revenue,CCHD,Bed Purchasing - Elderly - South,Permanent Residential,Kenver House Residential Home,1545.64, 18-Mar-2014
1225,Revenue,CCHD,Bed purchasing - Elderly S117 - South,Permanent Residential,Kenver House Residential Home,584.56, 18-Mar-2014
1226,Revenue,CCHD,Bed Purchasing - Frenchay Hospital,Permanent Residential,Kenver House Residential Home,1203.72, 18-Mar-2014
1227,Revenue,CCHD,Bed Purchasing - Frenchay Hospital,Permanent Residential,Kenver House Residential Home,1619.08, 18-Mar-2014
1228,Revenue,CCHD,Bed Purchasing - Elderly - South,Permanent Residential,Kenver House Residential Home,1505.68, 18-Mar-2014
1229,Revenue,CCHD,Bed Purchasing - Elderly - South,Permanent Residential,Kenver House Residential Home,6538.22, 18-Mar-2014
1230,Revenue,CCHD,Bed Purchasing - Elderly - South,Permanent Residential,Kenver House Residential Home,1649.28, 18-Mar-2014
1231,Revenue,CCHD,Bed Purchasing - Elderly MH - South,Permanent Residential,Kenver House Residential Home,1285.96, 18-Mar-2014
1232,Revenue,CCHD,Bed Purchasing - Elderly - South,Permanent Residential,Kenver House Residential Home,1665.04, 18-Mar-2014
1233,Revenue,CCHD,Bed Purchasing - Elderly - South,Permanent Residential,Kenver House Residential Home,2135.28, 18-Mar-2014
1234,Revenue,CCHD,Bed Purchasing - Elderly - South,Permanent Residential,Kenver House Residential Home,1576.4, 18-Mar-2014
1235,Revenue,CCHD,Bed Purchasing - Southmead Hospital,Permanent Residential,Kenver House Residential Home,1649.2, 18-Mar-2014
1236,Revenue,CCHD,Bed Purchasing - Elderly - South,Permanent Residential,Kenver House Residential Home,1497.08, 18-Mar-2014
1237,Revenue,CCHD,Bed Purchasing - Elderly - South,Permanent Residential,Kenver House Residential Home,1649.28, 18-Mar-2014
1238,Revenue,CCHD,Bed Purchasing - Elderly - South,Permanent Residential,Kenver House Residential Home,1590.38, 18-Mar-2014
1239,Revenue,CCHD,Bed Purchasing - Frenchay Hospital,Permanent Residential,Kenver House Residential Home,1539.76, 18-Mar-2014
1240,Revenue,CCHD,Bed Purchasing - Elderly - North,Permanent Nursing,Kingfisher Lodge Care Centre,2486.88, 18-Mar-2014
1241,Revenue,CCHD,Stop Smoking Services and Interventions,Other Supplies & Services,Kingswood Health Centre,3350, 17-Mar-2014
1242,Revenue,CCHD,Sexual Health Services - Contraception,Other Supplies & Services,Kingswood Health Centre,939.46, 20-Mar-2014
1243,Revenue,CCHD,Stop Smoking Services and Interventions,Other Supplies & Services,Kingswood Health Centre,550, 20-Mar-2014
1244,Revenue,CCHD,Bed purchasing - Under 65s PWLD - North,Permanent Residential,Kisimul Group,11223.12, 18-Mar-2014
1245,Revenue,CCHD,Home Care - Elderly - South,Other Small Contracts,Kumari Care Limited,3474, 03-Mar-2014
1246,Revenue,CCHD,Home Care - Elderly - North,Other Small Contracts,Kumari Care Limited,833.9, 03-Mar-2014
1247,Revenue,CCHD,Day Care - South,Private & Voluntary Day Care,Kumari Care Limited,96.5, 03-Mar-2014
1248,Revenue,CCHD,Under 65s -MH  Home Care Purch,Other Small Contracts,Kumari Care Limited,250.9, 03-Mar-2014
1249,Revenue,CCHD,Home Care - Elderly - South,Other Small Contracts,Kumari Care Limited,3493.3, 03-Mar-2014
1250,Revenue,CCHD,Home Care - Elderly - North,Other Small Contracts,Kumari Care Limited,833.86, 03-Mar-2014
1251,Revenue,CCHD,Day Care - South,Private & Voluntary Day Care,Kumari Care Limited,96.5, 03-Mar-2014
1252,Revenue,CCHD,Under 65s -MH  Home Care Purch,Other Small Contracts,Kumari Care Limited,262.48, 03-Mar-2014
1253,Revenue,CCHD,Home Care - Elderly - South,Other Small Contracts,Kumari Care Limited,3736.48, 10-Mar-2014
1254,Revenue,CCHD,Home Care - Elderly - North,Other Small Contracts,Kumari Care Limited,833.86, 10-Mar-2014
1255,Revenue,CCHD,Day Care - South,Private & Voluntary Day Care,Kumari Care Limited,96.5, 10-Mar-2014
1256,Revenue,CCHD,Under 65s -MH  Home Care Purch,Other Small Contracts,Kumari Care Limited,262.48, 10-Mar-2014
1257,Revenue,CCHD,Home Care - Elderly - South,Other Small Contracts,Kumari Care Limited,3632.26, 18-Mar-2014
1258,Revenue,CCHD,Home Care - Elderly - North,Other Small Contracts,Kumari Care Limited,833.86, 18-Mar-2014
1259,Revenue,CCHD,Day Care - South,Private & Voluntary Day Care,Kumari Care Limited,96.5, 18-Mar-2014
1260,Revenue,CCHD,Under 65s -MH  Home Care Purch,Other Small Contracts,Kumari Care Limited,258.62, 18-Mar-2014
1261,Revenue,CCHD,Home Care - Elderly - South,Other Small Contracts,Kumari Care Limited,3686.3, 28-Mar-2014
1262,Revenue,CCHD,Home Care - Elderly - North,Other Small Contracts,Kumari Care Limited,832.62, 28-Mar-2014
1263,Revenue,CCHD,Day Care - South,Private & Voluntary Day Care,Kumari Care Limited,61.76, 28-Mar-2014
1264,Revenue,CCHD,Under 65s -MH  Home Care Purch,Other Small Contracts,Kumari Care Limited,262.48, 28-Mar-2014
1265,Revenue,CCHD,Stop Smoking Services and Interventions,Other Supplies & Services,Leap Valley Surgery,1218, 17-Mar-2014
1266,Revenue,CCHD,Sexual Health Services - Contraception,Other Supplies & Services,Leap Valley Surgery,887.86, 17-Mar-2014
1267,Revenue,CCHD,Bed purchasing - Phys Dis - North,Permanent Nursing,Leonard Cheshire  National Account Centr,4963.04, 18-Mar-2014
1268,Revenue,CCHD,Bed purchasing - Phys Dis - North,Permanent Residential,Leonard Cheshire  National Account Centr,2868.88, 18-Mar-2014
1269,Revenue,CCHD,Bed Purchasing - Under 65s PWLD - South,Permanent Residential,Leonard Cheshire  National Account Centr,2959.44, 18-Mar-2014
1270,Revenue,CCHD,Bed Purchasing - Elderly - North,Permanent Nursing,Leonard Cheshire  National Account Centr,3468.8, 18-Mar-2014
1271,Revenue,CCHD,Bed purchasing - Phys Dis - North,Permanent Nursing,Leonard Cheshire  National Account Centr,2779.04, 18-Mar-2014
1272,Revenue,CCHD,Bed Purchasing - Elderly - North,Permanent Residential,Leonard Cheshire  National Account Centr,3150.32, 18-Mar-2014
1273,Revenue,CCHD,Bed purchasing - Under 65s PWLD - North,Permanent Residential,Leonard Cheshire  National Account Centr,5872.12, 18-Mar-2014
1274,Revenue,CCHD,Bed purchasing - Under 65s PWLD - North,Permanent Residential,Leonard Cheshire  National Account Centr,5870.56, 18-Mar-2014
1275,Revenue,CCHD,Bed Purchasing - Elderly - South,Permanent Residential,Leonard Cheshire  National Account Centr,4433.04, 18-Mar-2014
1276,Revenue,CCHD,Bed purchasing - Phys Dis - North,Permanent Nursing,Leonard Cheshire  National Account Centr,2838.64, 18-Mar-2014
1277,Revenue,CCHD,Bed purchasing - Phys Dis - North,Permanent Nursing,Leonard Cheshire  National Account Centr,3812.44, 18-Mar-2014
1278,Revenue,CCHD,Bed purchasing - Phys Dis - North,Permanent Residential,Leonard Cheshire  National Account Centr,2889.4, 18-Mar-2014
1279,Revenue,CCHD,Bed purchasing - Phys Dis - North,Permanent Nursing,Leonard Cheshire  National Account Centr,4473.76, 18-Mar-2014
1280,Revenue,CCHD,Bed purchasing - Phys Dis - North,Permanent Nursing,Leonard Cheshire  National Account Centr,3223.8, 18-Mar-2014
1281,Revenue,CCHD,Bed purchasing - Phys Dis - North,Permanent Nursing,Leonard Cheshire  National Account Centr,5521.36, 18-Mar-2014
1282,Revenue,CCHD,Bed Purchasing - Elderly - South,Permanent Nursing,Leonard Cheshire  National Account Centr,2869.2, 18-Mar-2014
1283,Revenue,CCHD,Bed Purchasing - Southmead Hospital,Permanent Nursing,Leonard Cheshire  National Account Centr,3002, 18-Mar-2014
1284,Revenue,CCHD,South Glos Users in all other LA Homes,Permanent Nursing,Leonard Cheshire  National Account Centr,604.4, 18-Mar-2014
1285,Revenue,CCHD,Bed purchasing - Phys Dis - North,Permanent Nursing,Leonard Cheshire  National Account Centr,3309.2, 18-Mar-2014
1286,Revenue,CCHD,Bed purchasing - Phys Dis - North,Permanent Nursing,Leonard Cheshire  National Account Centr,4066.48, 18-Mar-2014
1287,Revenue,CCHD,Bed Purchasing - Elderly - South,Permanent Nursing,Leonard Cheshire  National Account Centr,4369.6, 18-Mar-2014
1288,Revenue,CCHD,Bed Purchasing - Elderly S117- North,Permanent Nursing,Leonard Elms Care Home,2848.84, 18-Mar-2014
1289,Revenue,CCHD,Bed Purchasing - Elderly - South,Permanent Nursing,Leonard Elms Care Home,1539.28, 18-Mar-2014
1290,Revenue,CCHD,Supported Living - North,Private & Voluntary Home Care,Lifeways Community Care (Gloucester) Ltd,8792, 24-Mar-2014
1291,Revenue,CCHD,Supported Living - North,Private & Voluntary Home Care,Lifeways Community Care (Gloucester) Ltd,11373, 06-Mar-2014
1292,Revenue,CCHD,Bed Purchasing - Frenchay Hospital,Permanent Residential,Little Croft,1246, 18-Mar-2014
1293,Revenue,CCHD,Bed Purchasing - Elderly - South,Permanent Residential,Little Croft,1545.64, 18-Mar-2014
1294,Revenue,CCHD,Bed Purchasing - Elderly - South,Permanent Residential,Little Croft,1408.47, 18-Mar-2014
1295,Revenue,CCHD,Bed Purchasing - Elderly - South,Permanent Residential,Little Croft,973.36, 18-Mar-2014
1296,Revenue,CCHD,Bed Purchasing - Southmead Hospital,Permanent Residential,Little Croft,1722, 18-Mar-2014
1297,Revenue,CCHD,Bed Purchasing - Elderly - South,Permanent Residential,Little Croft,1856, 18-Mar-2014
1298,Revenue,CCHD,Bed Purchasing - Elderly - South,Permanent Residential,Little Croft,1522.8, 18-Mar-2014
1299,Revenue,CCHD,Bed Purchasing - Frenchay Hospital,Permanent Residential,Little Croft,1187.44, 18-Mar-2014
1300,Revenue,CCHD,Bed Purchasing - Southmead Hospital,Permanent Residential,Little Croft,617.2, 18-Mar-2014
1301,Revenue,CCHD,Bed Purchasing - Elderly MH - South,Permanent Residential,Little Croft,1173.28, 18-Mar-2014
1302,Revenue,CCHD,Bed Purchasing - Elderly - South,Permanent Residential,Little Croft,833.4, 18-Mar-2014
1303,Revenue,CCHD,Bed Purchasing - Elderly - South,Permanent Residential,Little Croft,1041.64, 18-Mar-2014
1304,Revenue,CCHD,Bed Purchasing - Elderly MH - South,Permanent Residential,Little Croft,1592.28, 18-Mar-2014
1305,Revenue,CCHD,Bed purchasing - Elderly MH - North,Permanent Residential,Little Croft,1414, 18-Mar-2014
1306,Revenue,CCHD,Bed Purchasing - Southmead Hospital,Permanent Residential,Little Croft,1246, 18-Mar-2014
1307,Revenue,CCHD,Bed Purchasing - Elderly - North,Permanent Residential,Little Croft,1347.56, 18-Mar-2014
1308,Revenue,CCHD,Bed Purchasing - Frenchay Hospital,Respite Planned - Residential,Little Croft,1885.71, 18-Mar-2014
1309,Revenue,CCHD,Bed Purchasing - Southmead Hospital,Permanent Residential,Little Croft,3115, 18-Mar-2014
1310,Revenue,CCHD,Bed Purchasing - Southmead Hospital,Permanent Residential,Little Croft,1246, 18-Mar-2014
1311,Revenue,CCHD,Bed purchasing - Under 65s PWLD - North,Permanent Residential,Littlecroft Residential Homes  Longcroft,6386.28, 18-Mar-2014
1312,Revenue,CCHD,Stop Smoking Services and Interventions,Other Supplies & Services,Lloyds Pharmacy Limited,1488.63, 10-Mar-2014
1313,Revenue,CCHD,Stop Smoking Services and Interventions,Other Supplies & Services,Lloyds Pharmacy Limited,1255.91, 17-Mar-2014
1314,Revenue,CCHD,Home Care - Elderly - South,Other Small Contracts,Lloyds TSB Commercial Finance Limited,226.78, 03-Mar-2014
1315,Revenue,CCHD,Home Care - Elderly - North,Other Small Contracts,Lloyds TSB Commercial Finance Limited,6166.07, 03-Mar-2014
1316,Revenue,CCHD,Day Care - North,Private & Voluntary Day Care,Lloyds TSB Commercial Finance Limited,140.76, 03-Mar-2014
1317,Revenue,CCHD,Home Care - Elderly - South,Other Small Contracts,Lloyds TSB Commercial Finance Limited,250.24, 03-Mar-2014
1318,Revenue,CCHD,Home Care - Elderly - North,Other Small Contracts,Lloyds TSB Commercial Finance Limited,5653.86, 03-Mar-2014
1319,Revenue,CCHD,Day Care - North,Private & Voluntary Day Care,Lloyds TSB Commercial Finance Limited,140.76, 03-Mar-2014
1320,Revenue,CCHD,Home Care - Elderly - South,Other Small Contracts,Lloyds TSB Commercial Finance Limited,226.78, 03-Mar-2014
1321,Revenue,CCHD,Home Care - Elderly - North,Other Small Contracts,Lloyds TSB Commercial Finance Limited,6224.72, 03-Mar-2014
1322,Revenue,CCHD,Day Care - North,Private & Voluntary Day Care,Lloyds TSB Commercial Finance Limited,113.39, 03-Mar-2014
1323,Revenue,CCHD,Home Care - Elderly - South,Other Small Contracts,Lloyds TSB Commercial Finance Limited,226.78, 03-Mar-2014
1324,Revenue,CCHD,Home Care - Elderly - North,Other Small Contracts,Lloyds TSB Commercial Finance Limited,6295.1, 03-Mar-2014
1325,Revenue,CCHD,Day Care - North,Private & Voluntary Day Care,Lloyds TSB Commercial Finance Limited,140.76, 03-Mar-2014
1326,Revenue,CCHD,Home Care - Elderly - North,Other Small Contracts,Lloyds TSB Commercial Finance Limited,6506.24, 19-Mar-2014
1327,Revenue,CCHD,Day Care - North,Private & Voluntary Day Care,Lloyds TSB Commercial Finance Limited,140.76, 19-Mar-2014
1328,Revenue,CCHD,Home Care - Elderly - North,Other Small Contracts,Lloyds TSB Commercial Finance Limited,6130.88, 21-Mar-2014
1329,Revenue,CCHD,Day Care - North,Private & Voluntary Day Care,Lloyds TSB Commercial Finance Limited,93.84, 21-Mar-2014
1330,Revenue,CCHD,Home Care - Elderly - North,Other Small Contracts,Lloyds TSB Commercial Finance Limited,6271.64, 24-Mar-2014
1331,Revenue,CCHD,Day Care - North,Private & Voluntary Day Care,Lloyds TSB Commercial Finance Limited,136.85, 24-Mar-2014
1332,Revenue,CCHD,Home Care - Elderly - North,Other Small Contracts,Lloyds TSB Commercial Finance Limited,6314.65, 31-Mar-2014
1333,Revenue,CCHD,Day Care - North,Private & Voluntary Day Care,Lloyds TSB Commercial Finance Limited,140.76, 31-Mar-2014
1334,Revenue,CCHD,Home Care - Elderly - North,Other Small Contracts,Lloyds TSB Commercial Finance Limited,6420.22, 31-Mar-2014
1335,Revenue,CCHD,Day Care - North,Private & Voluntary Day Care,Lloyds TSB Commercial Finance Limited,136.85, 31-Mar-2014
1336,Revenue,CCHD,Supported Living - South,Private & Voluntary Home Care,Lloyds TSB Commercial Finance Limited,3441.75, 20-Mar-2014
1337,Revenue,CCHD,Supported Living - South,Private & Voluntary Home Care,Lloyds TSB Commercial Finance Limited,8586.62, 19-Mar-2014
1338,Revenue,CCHD,Supported Living - South,Private & Voluntary Home Care,Lloyds TSB Commercial Finance Limited,3560.35, 20-Mar-2014
1339,Revenue,CCHD,Supported Living - South,Private & Voluntary Home Care,Lloyds TSB Commercial Finance Limited,7309.68, 20-Mar-2014
1340,Revenue,CCHD,Supported Living - South,Private & Voluntary Home Care,Lloyds TSB Commercial Finance Limited,3616.56, 19-Mar-2014
1341,Revenue,CCHD,Supported Living - North,Private & Voluntary Home Care,Lloyds TSB Commercial Finance Limited,8714.54, 19-Mar-2014
1342,Revenue,CCHD,Supported Living - South,Private & Voluntary Home Care,Lloyds TSB Commercial Finance Limited,3744.6, 19-Mar-2014
1343,Revenue,CCHD,Supported Living - South,Private & Voluntary Home Care,Lloyds TSB Commercial Finance Limited,3242.98, 19-Mar-2014
1344,Revenue,CCHD,Supported Living - South,Private & Voluntary Home Care,Lloyds TSB Commercial Finance Limited,3388.71, 19-Mar-2014
1345,Revenue,CCHD,Supported Living - South,Private & Voluntary Home Care,Lloyds TSB Commercial Finance Limited,5528.05, 19-Mar-2014
1346,Revenue,CCHD,Supported Living - South,Private & Voluntary Home Care,Lloyds TSB Commercial Finance Limited,3239.47, 19-Mar-2014
1347,Revenue,CCHD,Supported Living - South,Private & Voluntary Home Care,Lloyds TSB Commercial Finance Limited,3355.15, 20-Mar-2014
1348,Revenue,CCHD,Supported Living - North,Private & Voluntary Home Care,Lloyds TSB Commercial Finance Limited,7488.65, 19-Mar-2014
1349,Revenue,CCHD,Supported Living - South,Private & Voluntary Home Care,Lloyds TSB Commercial Finance Limited,3227.23, 19-Mar-2014
1350,Revenue,CCHD,Supported Living - South,Private & Voluntary Home Care,Loga Care Ltd (T/A Logacare),25710, 20-Mar-2014
1351,Revenue,CCHD,Supported Living - South,Private & Voluntary Home Care,Loga Care Ltd (T/A Logacare),3795.33, 06-Mar-2014
1352,Revenue,CCHD,Management & Support costs,Other Supplies & Services,Loramar House,1085.64, 24-Mar-2014
1353,Revenue,CCHD,Day Care - North,Private & Voluntary Day Care,Lower Kilcott,1444.6, 18-Mar-2014
1354,Revenue,CCHD,Day Care - North,Private & Voluntary Day Care,Lower Kilcott,552.48, 18-Mar-2014
1355,Revenue,CCHD,Training - Adult Services,Training Expenses,M Harris,500, 26-Mar-2014
1356,Revenue,CCHD,Stop Smoking Services and Interventions,Other Supplies & Services,M J Williams Ltd T/ A Abbotswood Pharmacy,1995.2, 11-Mar-2014
1357,Revenue,CCHD,Stop Smoking Services and Interventions,Other Supplies & Services,M J Williams Ltd T/ A Abbotswood Pharmacy,690.71, 20-Mar-2014
1358,Revenue,CCHD,Bed Purchasing - Southmead Hospital,Permanent Nursing,Majestic 3 Limited,998, 18-Mar-2014
1359,Revenue,CCHD,Home Care - Elderly - South,Other Small Contracts,Manor Community Domiciliary Care Agency,537.38, 07-Mar-2014
1360,Revenue,CCHD,Under 65s -MH  Home Care Purch,Other Small Contracts,Manor Community Domiciliary Care Agency,104.25, 07-Mar-2014
1361,Revenue,CCHD,Elderly MH Day Care North,Private & Voluntary Day Care,Manor Community Domiciliary Care Agency,50.04, 07-Mar-2014
1362,Revenue,CCHD,Home Care - Elderly - South,Other Small Contracts,Manor Community Domiciliary Care Agency,465.86, 13-Mar-2014
1363,Revenue,CCHD,Under 65s -MH  Home Care Purch,Other Small Contracts,Manor Community Domiciliary Care Agency,89.76, 13-Mar-2014
1364,Revenue,CCHD,Elderly MH Day Care North,Private & Voluntary Day Care,Manor Community Domiciliary Care Agency,44.88, 13-Mar-2014
1365,Revenue,CCHD,Home Care - Elderly - South,Other Small Contracts,Manor Community Domiciliary Care Agency,427.52, 20-Mar-2014
1366,Revenue,CCHD,Under 65s -MH  Home Care Purch,Other Small Contracts,Manor Community Domiciliary Care Agency,86.02, 20-Mar-2014
1367,Revenue,CCHD,Elderly MH Day Care North,Private & Voluntary Day Care,Manor Community Domiciliary Care Agency,44.88, 20-Mar-2014
1368,Revenue,CCHD,Bed Purchasing - Elderly - North,Permanent Residential,Manor Cottage,2192.28, 18-Mar-2014
1369,Revenue,CCHD,Bed Purchasing - Elderly - South,Permanent Residential,Manor Cottage,1449.64, 18-Mar-2014
1370,Revenue,CCHD,Bed Purchasing - Southmead Hospital,Permanent Residential,Manor Cottage,1246, 18-Mar-2014
1371,Revenue,CCHD,Bed Purchasing - Elderly - North,Permanent Residential,Manton Hall Residential Home,1496.44, 18-Mar-2014
1372,Revenue,CCHD,Section 117 Placements MH Younger,Private & Voluntary Day Care,Maples Community Care Limited,798, 14-Mar-2014
1373,Revenue,CCHD,Section 117 Placements MH Younger,Private & Voluntary Day Care,Maples Community Care Limited,2597, 14-Mar-2014
1374,Revenue,CCHD,Younger MH non-res purchasing,Private & Voluntary Day Care,Maples Community Care Limited,2597, 14-Mar-2014
1375,Revenue,CCHD,Section 117 Placements MH Younger,Private & Voluntary Day Care,Maples Community Care Limited,2597, 14-Mar-2014
1376,Revenue,CCHD,Social Lettings Agency,Fees - General,Individual,11.6, 20-Mar-2014
1377,Revenue,CCHD,Social Lettings Agency,Other Supplies & Services,Individual,597.91, 20-Mar-2014
1378,Revenue,CCHD,Bed Purchasing - Elderly - South,Permanent Nursing,Meadow Care Home,1673.16, 18-Mar-2014
1379,Revenue,CCHD,Home Care - Elderly - South,Other Small Contracts,Mears Care,569.8, 07-Mar-2014
1380,Revenue,CCHD,Home Care - Elderly - North,Other Small Contracts,Mears Care,5705.4, 07-Mar-2014
1381,Revenue,CCHD,Day Care - North,Private & Voluntary Day Care,Mears Care,136.9, 07-Mar-2014
1382,Revenue,CCHD,Under 65s -MH  Home Care Purch,Other Small Contracts,Mears Care,111, 07-Mar-2014
1383,Revenue,CCHD,Home Care - Elderly LD - KH,Private & Voluntary Home Care,Mears Care,55.5, 07-Mar-2014
1384,Revenue,CCHD,Home Care - Elderly - South,Other Small Contracts,Mears Care,514.3, 07-Mar-2014
1385,Revenue,CCHD,Home Care - Elderly - North,Other Small Contracts,Mears Care,5801.6, 07-Mar-2014
1386,Revenue,CCHD,Day Care - North,Private & Voluntary Day Care,Mears Care,140.6, 07-Mar-2014
1387,Revenue,CCHD,Under 65s -MH  Home Care Purch,Other Small Contracts,Mears Care,111, 07-Mar-2014
1388,Revenue,CCHD,Home Care - Elderly LD - KH,Private & Voluntary Home Care,Mears Care,55.5, 07-Mar-2014
1389,Revenue,CCHD,Home Care - Elderly - South,Other Small Contracts,Mears Care,510.6, 07-Mar-2014
1390,Revenue,CCHD,Home Care - Elderly - North,Other Small Contracts,Mears Care,5727.6, 07-Mar-2014
1391,Revenue,CCHD,Day Care - North,Private & Voluntary Day Care,Mears Care,136.9, 07-Mar-2014
1392,Revenue,CCHD,Under 65s -MH  Home Care Purch,Other Small Contracts,Mears Care,111, 07-Mar-2014
1393,Revenue,CCHD,Home Care - Elderly LD - KH,Private & Voluntary Home Care,Mears Care,51.8, 07-Mar-2014
1394,Revenue,CCHD,Home Care - Elderly - South,Other Small Contracts,Mears Care,463, 07-Mar-2014
1395,Revenue,CCHD,Home Care - Elderly - North,Other Small Contracts,Mears Care,5320.7, 07-Mar-2014
1396,Revenue,CCHD,Day Care - North,Private & Voluntary Day Care,Mears Care,140.6, 07-Mar-2014
1397,Revenue,CCHD,Under 65s -MH  Home Care Purch,Other Small Contracts,Mears Care,111.3, 07-Mar-2014
1398,Revenue,CCHD,Home Care - Elderly LD - KH,Private & Voluntary Home Care,Mears Care,51.8, 07-Mar-2014
1399,Revenue,CCHD,Home Care - Elderly - South,Other Small Contracts,Mears Care,504.35, 07-Mar-2014
1400,Revenue,CCHD,Home Care - Elderly - North,Other Small Contracts,Mears Care,5401.55, 07-Mar-2014
1401,Revenue,CCHD,Day Care - North,Private & Voluntary Day Care,Mears Care,150.15, 07-Mar-2014
1402,Revenue,CCHD,Under 65s -MH  Home Care Purch,Other Small Contracts,Mears Care,115.5, 07-Mar-2014
1403,Revenue,CCHD,Home Care - Elderly LD - KH,Private & Voluntary Home Care,Mears Care,53.9, 07-Mar-2014
1404,Revenue,CCHD,Home Care - Elderly - South,Other Small Contracts,Mears Care,535.15, 07-Mar-2014
1405,Revenue,CCHD,Home Care - Elderly - North,Other Small Contracts,Mears Care,5262.95, 07-Mar-2014
1406,Revenue,CCHD,Day Care - North,Private & Voluntary Day Care,Mears Care,146.3, 07-Mar-2014
1407,Revenue,CCHD,Under 65s -MH  Home Care Purch,Other Small Contracts,Mears Care,115.5, 07-Mar-2014
1408,Revenue,CCHD,Home Care - Elderly LD - KH,Private & Voluntary Home Care,Mears Care,53.9, 07-Mar-2014
1409,Revenue,CCHD,Home Care - Elderly - South,Other Small Contracts,Mears Care,527.45, 31-Mar-2014
1410,Revenue,CCHD,Home Care - Elderly - North,Other Small Contracts,Mears Care,5005, 31-Mar-2014
1411,Revenue,CCHD,Day Care - North,Private & Voluntary Day Care,Mears Care,138.6, 31-Mar-2014
1412,Revenue,CCHD,Under 65s -MH  Home Care Purch,Other Small Contracts,Mears Care,115.5, 31-Mar-2014
1413,Revenue,CCHD,Home Care - Elderly LD - KH,Private & Voluntary Home Care,Mears Care,57.75, 31-Mar-2014
1414,Revenue,CCHD,Home Care - Elderly - South,Other Small Contracts,Mears Care,508.2, 31-Mar-2014
1415,Revenue,CCHD,Home Care - Elderly - North,Other Small Contracts,Mears Care,4935.7, 31-Mar-2014
1416,Revenue,CCHD,Day Care - North,Private & Voluntary Day Care,Mears Care,123.2, 31-Mar-2014
1417,Revenue,CCHD,Under 65s -MH  Home Care Purch,Other Small Contracts,Mears Care,111.65, 31-Mar-2014
1418,Revenue,CCHD,Home Care - Elderly LD - KH,Private & Voluntary Home Care,Mears Care,53.9, 31-Mar-2014
1419,Revenue,CCHD,Home Care - Elderly - South,Other Small Contracts,Mears Care,523.6, 31-Mar-2014
1420,Revenue,CCHD,Home Care - Elderly - North,Other Small Contracts,Mears Care,4970.35, 31-Mar-2014
1421,Revenue,CCHD,Day Care - North,Private & Voluntary Day Care,Mears Care,134.75, 31-Mar-2014
1422,Revenue,CCHD,Under 65s -MH  Home Care Purch,Other Small Contracts,Mears Care,115.5, 31-Mar-2014
1423,Revenue,CCHD,Home Care - Elderly LD - KH,Private & Voluntary Home Care,Mears Care,53.9, 31-Mar-2014
1424,Revenue,CCHD,Home Care - Elderly - South,Private & Voluntary Home Care,Mears Care,48544, 31-Mar-2014
1425,Revenue,CCHD,Management & Support costs,Other Supplies & Services,Meath Home,2615.76, 06-Mar-2014
1426,Revenue,CCHD,Home Care - Elderly - South,Other Small Contracts,Medacs Home Care,35, 07-Mar-2014
1427,Revenue,CCHD,Home Care - Elderly - North,Other Small Contracts,Medacs Home Care,650.7, 07-Mar-2014
1428,Revenue,CCHD,Home care - Elderly MH - North,Other Small Contracts,Medacs Home Care,98, 07-Mar-2014
1429,Revenue,CCHD,Home Care - Elderly - South,Other Small Contracts,Medacs Home Care,98, 07-Mar-2014
1430,Revenue,CCHD,Home Care - Elderly - North,Other Small Contracts,Medacs Home Care,636.7, 07-Mar-2014
1431,Revenue,CCHD,Home care - Elderly MH - North,Other Small Contracts,Medacs Home Care,87.5, 07-Mar-2014
1432,Revenue,CCHD,Home Care - Elderly - South,Other Small Contracts,Medacs Home Care,87.5, 18-Mar-2014
1433,Revenue,CCHD,Home Care - Elderly - North,Other Small Contracts,Medacs Home Care,633.2, 18-Mar-2014
1434,Revenue,CCHD,Home care - Elderly MH - North,Other Small Contracts,Medacs Home Care,94.5, 18-Mar-2014
1435,Revenue,CCHD,Home Care - Elderly - South,Other Small Contracts,Medacs Home Care,77, 18-Mar-2014
1436,Revenue,CCHD,Home Care - Elderly - North,Other Small Contracts,Medacs Home Care,636.7, 18-Mar-2014
1437,Revenue,CCHD,Home care - Elderly MH - North,Other Small Contracts,Medacs Home Care,91, 18-Mar-2014
1438,Revenue,CCHD,Home Care - Elderly - South,Other Small Contracts,Medacs Home Care,80.5, 26-Mar-2014
1439,Revenue,CCHD,Home Care - Elderly - North,Other Small Contracts,Medacs Home Care,626.2, 26-Mar-2014
1440,Revenue,CCHD,Home care - Elderly MH - North,Other Small Contracts,Medacs Home Care,84, 26-Mar-2014
1441,Revenue,CCHD,Home Care - Elderly - South,Other Small Contracts,Medacs Home Care,168, 31-Mar-2014
1442,Revenue,CCHD,Home Care - Elderly - North,Other Small Contracts,Medacs Home Care,622.7, 31-Mar-2014
1443,Revenue,CCHD,Home care - Elderly MH - North,Other Small Contracts,Medacs Home Care,94.5, 31-Mar-2014
1444,Revenue,CCHD,NRS Contract,Daily Living Equipment,Medequip Assistive Technology Ltd,45698.86, 20-Mar-2014
1445,Revenue,CCHD,NRS Contract,Daily Living Equipment,Medequip Assistive Technology Ltd,109124.48, 20-Mar-2014
1446,Revenue,CCHD,Bed Purchasing - Under 65s PWLD - South,Permanent Residential,Mencap,2219.16, 18-Mar-2014
1447,Revenue,CCHD,Supported Living (S28a) South,Private & Voluntary Home Care,Mencap - PS Central & Cymru,3786.86, 25-Mar-2014
1448,Revenue,CCHD,Supported Living (S28a) South,Private & Voluntary Home Care,Mencap - PS Central & Cymru,3786.86, 06-Mar-2014
1449,Revenue,CCHD,Supported Living (S28a) South,Private & Voluntary Home Care,Mencap - PS Central & Cymru,3786.86, 20-Mar-2014
1450,Revenue,CCHD,Supported Living (S28a) South,Private & Voluntary Home Care,Mencap - PS Central & Cymru,3786.86, 31-Mar-2014
1451,Revenue,CCHD,Home Care - Elderly - South,Other Small Contracts,MiHomecare,853.86, 19-Mar-2014
1452,Revenue,CCHD,Home Care - Elderly - North,Other Small Contracts,MiHomecare,3048.93, 19-Mar-2014
1453,Revenue,CCHD,Home care - Elderly MH - North,Other Small Contracts,MiHomecare,15.96, 19-Mar-2014
1454,Revenue,CCHD,Home Care - Elderly - South,Other Small Contracts,MiHomecare,518.7, 03-Mar-2014
1455,Revenue,CCHD,Home Care - Elderly - North,Other Small Contracts,MiHomecare,3032.97, 03-Mar-2014
1456,Revenue,CCHD,Day Care - North,Private & Voluntary Day Care,MiHomecare,23.94, 03-Mar-2014
1457,Revenue,CCHD,Home care - Elderly MH - North,Other Small Contracts,MiHomecare,15.96, 03-Mar-2014
1458,Revenue,CCHD,Home Care - Elderly - South,Other Small Contracts,MiHomecare,534.66, 26-Mar-2014
1459,Revenue,CCHD,Home Care - Elderly - North,Other Small Contracts,MiHomecare,2753.67, 26-Mar-2014
1460,Revenue,CCHD,Home care - Elderly MH - North,Other Small Contracts,MiHomecare,7.98, 26-Mar-2014
1461,Revenue,CCHD,Home Care - Elderly - South,Other Small Contracts,MiHomecare,618.45, 03-Mar-2014
1462,Revenue,CCHD,Home Care - Elderly - North,Other Small Contracts,MiHomecare,2490.33, 03-Mar-2014
1463,Revenue,CCHD,Home Care - Elderly - South,Other Small Contracts,MiHomecare,526.68, 31-Mar-2014
1464,Revenue,CCHD,Home Care - Elderly - North,Other Small Contracts,MiHomecare,2582.1, 31-Mar-2014
1465,Revenue,CCHD,Home Care - Elderly - South,Other Small Contracts,MiHomecare,1252.86, 28-Mar-2014
1466,Revenue,CCHD,Home Care - Elderly - North,Other Small Contracts,MiHomecare,3044.94, 28-Mar-2014
1467,Revenue,CCHD,Home care - Elderly MH - North,Other Small Contracts,MiHomecare,7.98, 28-Mar-2014
1468,Revenue,CCHD,Home Care - Elderly - South,Other Small Contracts,MiHomecare,1476.3, 17-Mar-2014
1469,Revenue,CCHD,Home Care - Elderly - North,Other Small Contracts,MiHomecare,2849.43, 17-Mar-2014
1470,Revenue,CCHD,Home care - Elderly MH - North,Other Small Contracts,MiHomecare,15.96, 17-Mar-2014
1471,Revenue,CCHD,Home Care - Elderly - South,Other Small Contracts,MiHomecare,1576.05, 07-Mar-2014
1472,Revenue,CCHD,Home Care - Elderly - North,Other Small Contracts,MiHomecare,2797.56, 07-Mar-2014
1473,Revenue,CCHD,Day Care - North,Private & Voluntary Day Care,MiHomecare,15.96, 07-Mar-2014
1474,Revenue,CCHD,Home care - Elderly MH - North,Other Small Contracts,MiHomecare,15.96, 07-Mar-2014
1475,Revenue,CCHD,Home Care - Elderly - South,Other Small Contracts,MiHomecare,1580.04, 28-Mar-2014
1476,Revenue,CCHD,Home Care - Elderly - North,Other Small Contracts,MiHomecare,2761.65, 28-Mar-2014
1477,Revenue,CCHD,Day Care - North,Private & Voluntary Day Care,MiHomecare,11.97, 28-Mar-2014
1478,Revenue,CCHD,Home care - Elderly MH - North,Other Small Contracts,MiHomecare,15.96, 28-Mar-2014
1479,Revenue,CCHD,Home Care - Elderly - South,Other Small Contracts,MiHomecare,1647.87, 26-Mar-2014
1480,Revenue,CCHD,Home Care - Elderly - North,Other Small Contracts,MiHomecare,2829.48, 26-Mar-2014
1481,Revenue,CCHD,Day Care - North,Private & Voluntary Day Care,MiHomecare,15.96, 26-Mar-2014
1482,Revenue,CCHD,Home Care - Elderly - South,Other Small Contracts,MiHomecare,1376.55, 28-Mar-2014
1483,Revenue,CCHD,Home Care - Elderly - North,Other Small Contracts,MiHomecare,2926.03, 28-Mar-2014
1484,Revenue,CCHD,Home care - Elderly MH - North,Other Small Contracts,MiHomecare,15.95, 28-Mar-2014
1485,Revenue,CCHD,Home Care - Elderly - South,Other Small Contracts,MiHomecare,1380.54, 17-Mar-2014
1486,Revenue,CCHD,Home Care - Elderly - North,Other Small Contracts,MiHomecare,2857.41, 17-Mar-2014
1487,Revenue,CCHD,Home care - Elderly MH - North,Other Small Contracts,MiHomecare,15.96, 17-Mar-2014
1488,Revenue,CCHD,Bed Purchasing - Frenchay Hospital,Permanent Residential,Milburn Finance,1040.12, 18-Mar-2014
1489,Revenue,CCHD,Home Care - Elderly - South,Other Small Contracts,Milestones Homecare & Dementia Service,1150.28, 26-Mar-2014
1490,Revenue,CCHD,Home Care - Elderly - North,Other Small Contracts,Milestones Homecare & Dementia Service,2138.44, 26-Mar-2014
1491,Revenue,CCHD,Home care - Elderly MH - North,Other Small Contracts,Milestones Homecare & Dementia Service,50.18, 26-Mar-2014
1492,Revenue,CCHD,Home Care - Elderly - South,Other Small Contracts,Milestones Homecare & Dementia Service,1235.2, 26-Mar-2014
1493,Revenue,CCHD,Home Care - Elderly - North,Other Small Contracts,Milestones Homecare & Dementia Service,2466.54, 26-Mar-2014
1494,Revenue,CCHD,Home care - Elderly MH - North,Other Small Contracts,Milestones Homecare & Dementia Service,50.18, 26-Mar-2014
1495,Revenue,CCHD,Home Care - Elderly - South,Other Small Contracts,Milestones Homecare & Dementia Service,1221.26, 26-Mar-2014
1496,Revenue,CCHD,Home Care - Elderly - North,Other Small Contracts,Milestones Homecare & Dementia Service,2287.88, 26-Mar-2014
1497,Revenue,CCHD,Home care - Elderly MH - North,Other Small Contracts,Milestones Homecare & Dementia Service,57.98, 26-Mar-2014
1498,Revenue,CCHD,Home Care - Elderly - South,Other Small Contracts,Milestones Homecare & Dementia Service,1439.48, 26-Mar-2014
1499,Revenue,CCHD,Home Care - Elderly - North,Other Small Contracts,Milestones Homecare & Dementia Service,2056.4, 26-Mar-2014
1500,Revenue,CCHD,Home care - Elderly MH - North,Other Small Contracts,Milestones Homecare & Dementia Service,54.32, 26-Mar-2014
1501,Revenue,CCHD,Home Care - Elderly - South,Other Small Contracts,Milestones Supported Living Services,366.7, 26-Mar-2014
1502,Revenue,CCHD,Home Care - Elderly - North,Other Small Contracts,Milestones Supported Living Services,92.64, 26-Mar-2014
1503,Revenue,CCHD,Day Care - South,Private & Voluntary Day Care,Milestones Supported Living Services,82.08, 26-Mar-2014
1504,Revenue,CCHD,Day Care - North,Private & Voluntary Day Care,Milestones Supported Living Services,199.6, 26-Mar-2014
1505,Revenue,CCHD,Home care - Elderly MH - North,Other Small Contracts,Milestones Supported Living Services,61.76, 26-Mar-2014
1506,Revenue,CCHD,Home Care - Elderly - South,Other Small Contracts,Milestones Supported Living Services,914.82, 07-Mar-2014
1507,Revenue,CCHD,Home Care - Elderly - North,Other Small Contracts,Milestones Supported Living Services,96.5, 07-Mar-2014
1508,Revenue,CCHD,Day Care - South,Private & Voluntary Day Care,Milestones Supported Living Services,109.44, 07-Mar-2014
1509,Revenue,CCHD,Day Care - North,Private & Voluntary Day Care,Milestones Supported Living Services,223.44, 07-Mar-2014
1510,Revenue,CCHD,Younger MH non-res purchasing,Private & Voluntary Day Care,Milestones Supported Living Services,36.48, 07-Mar-2014
1511,Revenue,CCHD,Home care - Elderly MH - North,Other Small Contracts,Milestones Supported Living Services,61.76, 07-Mar-2014
1512,Revenue,CCHD,Home Care - Elderly - South,Other Small Contracts,Milestones Supported Living Services,745.86, 13-Mar-2014
1513,Revenue,CCHD,Home Care - Elderly - North,Other Small Contracts,Milestones Supported Living Services,52.13, 13-Mar-2014
1514,Revenue,CCHD,Day Care - South,Private & Voluntary Day Care,Milestones Supported Living Services,100.64, 13-Mar-2014
1515,Revenue,CCHD,Day Care - North,Private & Voluntary Day Care,Milestones Supported Living Services,221.33, 13-Mar-2014
1516,Revenue,CCHD,Younger MH non-res purchasing,Private & Voluntary Day Care,Milestones Supported Living Services,32.08, 13-Mar-2014
1517,Revenue,CCHD,Home care - Elderly MH - North,Other Small Contracts,Milestones Supported Living Services,64.16, 13-Mar-2014
1518,Revenue,CCHD,Home Care - Elderly - South,Other Small Contracts,Milestones Supported Living Services,713.78, 19-Mar-2014
1519,Revenue,CCHD,Home Care - Elderly - North,Other Small Contracts,Milestones Supported Living Services,48.12, 19-Mar-2014
1520,Revenue,CCHD,Day Care - South,Private & Voluntary Day Care,Milestones Supported Living Services,96.24, 19-Mar-2014
1521,Revenue,CCHD,Day Care - North,Private & Voluntary Day Care,Milestones Supported Living Services,225.34, 19-Mar-2014
1522,Revenue,CCHD,Younger MH non-res purchasing,Private & Voluntary Day Care,Milestones Supported Living Services,32.08, 19-Mar-2014
1523,Revenue,CCHD,Home care - Elderly MH - North,Other Small Contracts,Milestones Supported Living Services,64.16, 19-Mar-2014
1524,Revenue,CCHD,Supported Living (S28a) North,Private & Voluntary Home Care,Milestones Trust,1513.12, 06-Mar-2014
1525,Revenue,CCHD,Supported Living (S28a) North,Private & Voluntary Home Care,Milestones Trust,903.24, 04-Mar-2014
1526,Revenue,CCHD,Supported Living (S28a) North,Private & Voluntary Home Care,Milestones Trust,1424.34, 06-Mar-2014
1527,Revenue,CCHD,Supported Living (S28a) North,Private & Voluntary Home Care,Milestones Trust,4927.29, 06-Mar-2014
1528,Revenue,CCHD,Supported Living (S28a) North,Private & Voluntary Home Care,Milestones Trust,4390.75, 06-Mar-2014
1529,Revenue,CCHD,Supported Living (S28a) North,Private & Voluntary Home Care,Milestones Trust,4390.75, 06-Mar-2014
1530,Revenue,CCHD,Supported Living (S28a) South,Private & Voluntary Home Care,Milestones Trust,6561.03, 06-Mar-2014
1531,Revenue,CCHD,Supported Living (S28a) South,Private & Voluntary Home Care,Milestones Trust,707.09, 06-Mar-2014
1532,Revenue,CCHD,Supported Living (S28a) North,Private & Voluntary Home Care,Milestones Trust,4967.5, 06-Mar-2014
1533,Revenue,CCHD,Supported Living (S28a) North,Private & Voluntary Home Care,Milestones Trust,4967.5, 06-Mar-2014
1534,Revenue,CCHD,Supported Living (S28a) North,Private & Voluntary Home Care,Milestones Trust,4381, 06-Mar-2014
1535,Revenue,CCHD,Supported Living (S28a) North,Private & Voluntary Home Care,Milestones Trust,4381, 06-Mar-2014
1536,Revenue,CCHD,Supported Living (S28a) South,Private & Voluntary Home Care,Milestones Trust,1790, 06-Mar-2014
1537,Revenue,CCHD,Supported Living (S28a) North,Private & Voluntary Home Care,Milestones Trust,9293.06, 06-Mar-2014
1538,Revenue,CCHD,Supported Living (S28a) North,Private & Voluntary Home Care,Milestones Trust,11144.3, 06-Mar-2014
1539,Revenue,CCHD,Supported Living (S28a) South,Private & Voluntary Home Care,Milestones Trust,644.15, 06-Mar-2014
1540,Revenue,CCHD,Supported Living (S28a) North,Private & Voluntary Home Care,Milestones Trust,5433.93, 06-Mar-2014
1541,Revenue,CCHD,Supported Living (S28a) South,Private & Voluntary Home Care,Milestones Trust,4203.8, 06-Mar-2014
1542,Revenue,CCHD,Supported Living (S28a) South,Private & Voluntary Home Care,Milestones Trust,3945.28, 06-Mar-2014
1543,Revenue,CCHD,Supported Living (S28a) South,Private & Voluntary Home Care,Milestones Trust,4491.81, 06-Mar-2014
1544,Revenue,CCHD,Supported Living - North,Private & Voluntary Home Care,Milestones Trust,1707.4, 06-Mar-2014
1545,Revenue,CCHD,Purchase of Non-Res Care - South,Private & Voluntary Day Care,Milestones Trust,829.58, 06-Mar-2014
1546,Revenue,CCHD,Purchase of Non-Res Care - South,Private & Voluntary Day Care,Milestones Trust,836.82, 06-Mar-2014
1547,Revenue,CCHD,Purchase of Non-Res Care - South,Private & Voluntary Day Care,Milestones Trust,683.79, 06-Mar-2014
1548,Revenue,CCHD,Purchase of Non-Res Care - South,Private & Voluntary Day Care,Milestones Trust,654.5, 10-Mar-2014
1549,Revenue,CCHD,Supported Living - South,Private & Voluntary Home Care,Milestones Trust,1145.2, 06-Mar-2014
1550,Revenue,CCHD,Purchase of Non-Res Care - South,Private & Voluntary Day Care,Milestones Trust,1668.22, 14-Mar-2014
1551,Revenue,CCHD,Purchase of Non-Res Care - South,Private & Voluntary Day Care,Milestones Trust,1243.52, 14-Mar-2014
1552,Revenue,CCHD,Purchase of Non-Res Care - South,Private & Voluntary Day Care,Milestones Trust,1179.68, 14-Mar-2014
1553,Revenue,CCHD,Purchase of Non-Res Care - South,Private & Voluntary Day Care,Milestones Trust,1296.96, 14-Mar-2014
1554,Revenue,CCHD,Purchase of Non-Res Care - South,Private & Voluntary Day Care,Milestones Trust,1364.96, 14-Mar-2014
1555,Revenue,CCHD,Purchase of Non-Res Care - South,Private & Voluntary Day Care,Milestones Trust,1673.76, 14-Mar-2014
1556,Revenue,CCHD,Purchase of Non-Res Care - South,Private & Voluntary Day Care,Milestones Trust,1105.7, 14-Mar-2014
1557,Revenue,CCHD,Supported Living - South,Private & Voluntary Home Care,Milestones Trust,1282.06, 14-Mar-2014
1558,Revenue,CCHD,Purchase of Non-Res Care - South,Private & Voluntary Day Care,Milestones Trust,1567.46, 14-Mar-2014
1559,Revenue,CCHD,Purchase of Non-Res Care - South,Private & Voluntary Day Care,Milestones Trust,1504.96, 14-Mar-2014
1560,Revenue,CCHD,Purchase of Non-Res Care - South,Private & Voluntary Day Care,Milestones Trust,741.12, 14-Mar-2014
1561,Revenue,CCHD,Purchase of Non-Res Care - South,Private & Voluntary Day Care,Milestones Trust,1071.6, 14-Mar-2014
1562,Revenue,CCHD,Supported Living - South,Private & Voluntary Home Care,Milestones Trust,2161.6, 14-Mar-2014
1563,Revenue,CCHD,Purchase of Non-Res Care - South,Private & Voluntary Day Care,Milestones Trust,1131.06, 14-Mar-2014
1564,Revenue,CCHD,Supported Living - South,Private & Voluntary Home Care,Milestones Trust,3473.24, 21-Mar-2014
1565,Revenue,CCHD,Supported Living - South,Private & Voluntary Home Care,Milestones Trust,2170.65, 21-Mar-2014
1566,Revenue,CCHD,Supported Living - South,Private & Voluntary Home Care,Milestones Trust,3617.75, 21-Mar-2014
1567,Revenue,CCHD,Supported Living - South,Private & Voluntary Home Care,Milestones Trust,5209.56, 21-Mar-2014
1568,Revenue,CCHD,Supported Living (S28a) North,Private & Voluntary Home Care,Milestones Trust,3805.96, 31-Mar-2014
1569,Revenue,CCHD,Supported Living - South,Private & Voluntary Home Care,Milestones Trust,1234.59, 31-Mar-2014
1570,Revenue,CCHD,Supported Living (S28a) South,Private & Voluntary Home Care,Milestones Trust,665.96, 31-Mar-2014
1571,Revenue,CCHD,Supported Living (S28a) North,Private & Voluntary Home Care,Milestones Trust,3974, 31-Mar-2014
1572,Revenue,CCHD,Supported Living (S28a) North,Private & Voluntary Home Care,Milestones Trust,1146.42, 31-Mar-2014
1573,Revenue,CCHD,Supported Living (S28a) North,Private & Voluntary Home Care,Milestones Trust,3957.04, 31-Mar-2014
1574,Revenue,CCHD,Supported Living (S28a) South,Private & Voluntary Home Care,Milestones Trust,1435.78, 31-Mar-2014
1575,Revenue,CCHD,Supported Living (S28a) North,Private & Voluntary Home Care,Milestones Trust,8971.42, 31-Mar-2014
1576,Revenue,CCHD,Supported Living (S28a) North,Private & Voluntary Home Care,Milestones Trust,4902.37, 31-Mar-2014
1577,Revenue,CCHD,Supported Living - North,Private & Voluntary Home Care,Milestones Trust,4936.95, 31-Mar-2014
1578,Revenue,CCHD,Supported Living - South,Private & Voluntary Home Care,Milestones Trust,654.4, 31-Mar-2014
1579,Revenue,CCHD,Supported Living - South,Private & Voluntary Home Care,Milestones Trust,622.45, 31-Mar-2014
1580,Revenue,CCHD,Supported Living (S28a) South,Private & Voluntary Home Care,Milestones Trust,558.14, 31-Mar-2014
1581,Revenue,CCHD,Supported Living (S28a) South,Private & Voluntary Home Care,Milestones Trust,3648.96, 31-Mar-2014
1582,Revenue,CCHD,Supported Living (S28a) South,Private & Voluntary Home Care,Milestones Trust,3164.55, 31-Mar-2014
1583,Revenue,CCHD,Supported Living (S28a) South,Private & Voluntary Home Care,Milestones Trust,3869.4, 31-Mar-2014
1584,Revenue,CCHD,Supported Living (S28a) South,Private & Voluntary Home Care,Milestones Trust,8393.72, 31-Mar-2014
1585,Revenue,CCHD,Supported Living - South,Private & Voluntary Home Care,Milestones Trust,2229.33, 31-Mar-2014
1586,Revenue,CCHD,Bed Purchasing - Frenchay Hospital,Permanent Residential,Mostyn Lodge Residential Home,1117.16, 18-Mar-2014
1587,Revenue,CCHD,Bed purchasing - Elderly S117 - South,Permanent Residential,Mostyn Lodge Residential Home,1900, 18-Mar-2014
1588,Revenue,CCHD,Social Lettings Agency,Fees - General,Individual,10, 07-Mar-2014
1589,Revenue,CCHD,Social Lettings Agency,Other Supplies & Services,Individual,565, 07-Mar-2014
1590,Revenue,CCHD,Social Lettings Agency,Fees - General,Individual,10, 18-Mar-2014
1591,Revenue,CCHD,Social Lettings Agency,Other Supplies & Services,Individual,565, 18-Mar-2014
1592,Revenue,CCHD,Social Lettings Agency,Fees - General,Individual,10, 21-Mar-2014
1593,Revenue,CCHD,Social Lettings Agency,Other Supplies & Services,Individual,565, 21-Mar-2014
1594,Revenue,CCHD,Social Lettings Agency,Fees - General,Individual,8.6, 21-Mar-2014
1595,Revenue,CCHD,Social Lettings Agency,Other Supplies & Services,Individual,582, 21-Mar-2014
1596,Revenue,CCHD,Social Lettings Agency,Other Supplies & Services,Individual,850, 12-Mar-2014
1597,Revenue,CCHD,Homeless - Private Sector Leasing,Other Supplies & Services,Mr D G & Mrs L K Jenkins,565, 21-Mar-2014
1598,Revenue,CCHD,Tenancy Start Up Scheme,Other Supplies & Services,Individual,1000, 07-Mar-2014
1599,Revenue,CCHD,Social Lettings Agency,Fees - General,Individual,10, 07-Mar-2014
1600,Revenue,CCHD,Social Lettings Agency,Other Supplies & Services,Individual,565, 07-Mar-2014
1601,Revenue,CCHD,Tenancy Start Up Scheme,Fees & Charges Income - General,Individual,625, 28-Mar-2014
1602,Revenue,CCHD,Homelessness Grant,Other Supplies & Services,Mr N F Johnson & Mrs G Bastin,1000, 10-Mar-2014
1603,Revenue,CCHD,Social Lettings Agency,Fees - General,Individual,11.2, 20-Mar-2014
1604,Revenue,CCHD,Social Lettings Agency,Other Supplies & Services,Individual,632.81, 20-Mar-2014
1605,Revenue,CCHD,Social Lettings Agency,Fees - General,Individual,10, 07-Mar-2014
1606,Revenue,CCHD,Social Lettings Agency,Other Supplies & Services,Individual,565, 07-Mar-2014
1607,Revenue,CCHD,Social Lettings Agency,Fees - General,Individual,8.7, 14-Mar-2014
1608,Revenue,CCHD,Social Lettings Agency,Other Supplies & Services,Individual,672.8, 14-Mar-2014
1609,Revenue,CCHD,Tenancy Start Up Scheme,Other Supplies & Services,Individual,1250, 19-Mar-2014
1610,Revenue,CCHD,Social Lettings Agency,Fees - General,Individual,10, 28-Mar-2014
1611,Revenue,CCHD,Social Lettings Agency,Other Supplies & Services,Individual,565, 28-Mar-2014
1612,Revenue,CCHD,Social Lettings Agency,Fees - General,Individual,7.5, 05-Mar-2014
1613,Revenue,CCHD,Social Lettings Agency,Other Supplies & Services,Individual,587.25, 05-Mar-2014
1614,Revenue,CCHD,Supported Living - South,Private & Voluntary Home Care,Mrs B Kimber,4577.59, 17-Mar-2014
1615,Revenue,CCHD,Supported Living - South,Private & Voluntary Home Care,Mrs B Kimber,5706.38, 17-Mar-2014
1616,Revenue,CCHD,Home Care - Elderly - South,Other Small Contracts,Mrs B Kimber -  CM2000,13235.95, 18-Mar-2014
1617,Revenue,CCHD,Home Care - Elderly - North,Other Small Contracts,Mrs B Kimber -  CM2000,5873.57, 18-Mar-2014
1618,Revenue,CCHD,Day Care - South,Private & Voluntary Day Care,Mrs B Kimber -  CM2000,502.8, 18-Mar-2014
1619,Revenue,CCHD,Day Care - North,Private & Voluntary Day Care,Mrs B Kimber -  CM2000,100.56, 18-Mar-2014
1620,Revenue,CCHD,Under 65s -MH  Home Care Purch,Other Small Contracts,Mrs B Kimber -  CM2000,67.04, 18-Mar-2014
1621,Revenue,CCHD,Elderly MH Day Care North,Private & Voluntary Day Care,Mrs B Kimber -  CM2000,100.56, 18-Mar-2014
1622,Revenue,CCHD,Home Care - Elderly - South,Other Small Contracts,Mrs B Kimber -  CM2000,12825.36, 24-Mar-2014
1623,Revenue,CCHD,Home Care - Elderly - North,Other Small Contracts,Mrs B Kimber -  CM2000,6288.27, 24-Mar-2014
1624,Revenue,CCHD,Day Care - South,Private & Voluntary Day Care,Mrs B Kimber -  CM2000,448.33, 24-Mar-2014
1625,Revenue,CCHD,Day Care - North,Private & Voluntary Day Care,Mrs B Kimber -  CM2000,33.52, 24-Mar-2014
1626,Revenue,CCHD,Under 65s -MH  Home Care Purch,Other Small Contracts,Mrs B Kimber -  CM2000,67.04, 24-Mar-2014
1627,Revenue,CCHD,Elderly MH Day Care North,Private & Voluntary Day Care,Mrs B Kimber -  CM2000,100.56, 24-Mar-2014
1628,Revenue,CCHD,Home Care - Elderly - South,Other Small Contracts,Mrs B Kimber -  CM2000,13147.46, 20-Mar-2014
1629,Revenue,CCHD,Home Care - Elderly - North,Other Small Contracts,Mrs B Kimber -  CM2000,5514.66, 20-Mar-2014
1630,Revenue,CCHD,Day Care - South,Private & Voluntary Day Care,Mrs B Kimber -  CM2000,506.99, 20-Mar-2014
1631,Revenue,CCHD,Day Care - North,Private & Voluntary Day Care,Mrs B Kimber -  CM2000,100.56, 20-Mar-2014
1632,Revenue,CCHD,Under 65s -MH  Home Care Purch,Other Small Contracts,Mrs B Kimber -  CM2000,67.04, 20-Mar-2014
1633,Revenue,CCHD,Elderly MH Day Care North,Private & Voluntary Day Care,Mrs B Kimber -  CM2000,100.56, 20-Mar-2014
1634,Revenue,CCHD,Home Care - Elderly - South,Other Small Contracts,Mrs B Kimber -  CM2000,12107.27, 26-Mar-2014
1635,Revenue,CCHD,Home Care - Elderly - North,Other Small Contracts,Mrs B Kimber -  CM2000,5418.23, 26-Mar-2014
1636,Revenue,CCHD,Day Care - South,Private & Voluntary Day Care,Mrs B Kimber -  CM2000,472.65, 26-Mar-2014
1637,Revenue,CCHD,Under 65s -MH  Home Care Purch,Other Small Contracts,Mrs B Kimber -  CM2000,65.76, 26-Mar-2014
1638,Revenue,CCHD,Elderly MH Day Care North,Private & Voluntary Day Care,Mrs B Kimber -  CM2000,98.64, 26-Mar-2014
1639,Revenue,CCHD,Social Lettings Agency,Fees - General,Individual,10, 17-Mar-2014
1640,Revenue,CCHD,Social Lettings Agency,Other Supplies & Services,Individual,565, 17-Mar-2014
1641,Revenue,CCHD,Social Lettings Agency,Fees - General,Individual,10, 14-Mar-2014
1642,Revenue,CCHD,Social Lettings Agency,Other Supplies & Services,Individual,565, 14-Mar-2014
1643,Revenue,CCHD,Social Lettings Agency,Fees - General,Individual,10, 24-Mar-2014
1644,Revenue,CCHD,Social Lettings Agency,Other Supplies & Services,Individual,565, 24-Mar-2014
1645,Revenue,CCHD,Social Lettings Agency,Fees - General,Individual,10, 12-Mar-2014
1646,Revenue,CCHD,Social Lettings Agency,Other Supplies & Services,Individual,565, 12-Mar-2014
1647,Revenue,CCHD,Supported Living - North,Permanent Residential,Mrs Julie Taylor,1071.18, 20-Mar-2014
1648,Revenue,CCHD,Social Lettings Agency,Fees - General,Individual,11.6, 14-Mar-2014
1649,Revenue,CCHD,Social Lettings Agency,Other Supplies & Services,Individual,655.41, 14-Mar-2014
1650,Revenue,CCHD,Social Lettings Agency,Fees - General,Individual,10, 07-Mar-2014
1651,Revenue,CCHD,Social Lettings Agency,Other Supplies & Services,Individual,565, 07-Mar-2014
1652,Revenue,CCHD,Social Lettings Agency,Fees - General,Individual,15.53, 11-Mar-2014
1653,Revenue,CCHD,Social Lettings Agency,Other Supplies & Services,Individual,877.68, 11-Mar-2014
1654,Revenue,CCHD,Alexandra Way,Cleaning & Domestic Services,Muzzell Healthcare,483.9, 17-Mar-2014
1655,Revenue,CCHD,Younger MH non-res purchasing,Private & Voluntary Day Care,NAS Services Limited,782.9, 21-Mar-2014
1656,Revenue,CCHD,Day Care - North,Private & Voluntary Day Care,NAS Services Limited,840.4, 21-Mar-2014
1657,Revenue,CCHD,Day Care - South,Private & Voluntary Day Care,NAS Services Limited,851.1, 21-Mar-2014
1658,Revenue,CCHD,Day Care - South,Private & Voluntary Day Care,NAS Services Limited,771.9, 28-Mar-2014
1659,Revenue,CCHD,Younger MH non-res purchasing,Private & Voluntary Day Care,NAS Services Limited,611.2, 28-Mar-2014
1660,Revenue,CCHD,Bed Purchasing - Under 65s PWLD - South,Permanent Residential,National Star College,4547.72, 18-Mar-2014
1661,Revenue,CCHD,Home Care - Elderly - South,Other Small Contracts,Nestor T/A Allied Healthcare,2992.5, 24-Mar-2014
1662,Revenue,CCHD,Home Care - Elderly - North,Other Small Contracts,Nestor T/A Allied Healthcare,7835.4, 24-Mar-2014
1663,Revenue,CCHD,Day Care - North,Private & Voluntary Day Care,Nestor T/A Allied Healthcare,247.38, 24-Mar-2014
1664,Revenue,CCHD,Home care - Elderly MH - North,Other Small Contracts,Nestor T/A Allied Healthcare,55.86, 24-Mar-2014
1665,Revenue,CCHD,Home Care - Elderly - South,Other Small Contracts,Nestor T/A Allied Healthcare,2871.85, 14-Mar-2014
1666,Revenue,CCHD,Home Care - Elderly - North,Other Small Contracts,Nestor T/A Allied Healthcare,8293.68, 14-Mar-2014
1667,Revenue,CCHD,Day Care - North,Private & Voluntary Day Care,Nestor T/A Allied Healthcare,287.28, 14-Mar-2014
1668,Revenue,CCHD,Home care - Elderly MH - North,Other Small Contracts,Nestor T/A Allied Healthcare,55.1, 14-Mar-2014
1669,Revenue,CCHD,Home Care - Elderly - South,Other Small Contracts,Nestor T/A Allied Healthcare,2796.8, 24-Mar-2014
1670,Revenue,CCHD,Home Care - Elderly - North,Other Small Contracts,Nestor T/A Allied Healthcare,8162.26, 24-Mar-2014
1671,Revenue,CCHD,Day Care - North,Private & Voluntary Day Care,Nestor T/A Allied Healthcare,250.8, 24-Mar-2014
1672,Revenue,CCHD,Home care - Elderly MH - North,Other Small Contracts,Nestor T/A Allied Healthcare,45.6, 24-Mar-2014
1673,Revenue,CCHD,Home Care - Elderly - South,Other Small Contracts,Nestor T/A Allied Healthcare,2994.4, 28-Mar-2014
1674,Revenue,CCHD,Home Care - Elderly - North,Other Small Contracts,Nestor T/A Allied Healthcare,8312.75, 28-Mar-2014
1675,Revenue,CCHD,Day Care - South,Private & Voluntary Day Care,Nestor T/A Allied Healthcare,45.6, 28-Mar-2014
1676,Revenue,CCHD,Day Care - North,Private & Voluntary Day Care,Nestor T/A Allied Healthcare,250.8, 28-Mar-2014
1677,Revenue,CCHD,Home care - Elderly MH - North,Other Small Contracts,Nestor T/A Allied Healthcare,53.2, 28-Mar-2014
1678,Revenue,CCHD,Home Care - Elderly - South,Other Small Contracts,Network Health & Social Care,1349.83, 03-Mar-2014
1679,Revenue,CCHD,Home Care - Elderly - North,Other Small Contracts,Network Health & Social Care,4846.94, 03-Mar-2014
1680,Revenue,CCHD,Home Care - Elderly - South,Other Small Contracts,Network Health & Social Care,1400.4, 03-Mar-2014
1681,Revenue,CCHD,Home Care - Elderly - North,Other Small Contracts,Network Health & Social Care,5257.32, 03-Mar-2014
1682,Revenue,CCHD,Home Care - Elderly - South,Other Small Contracts,Network Health & Social Care,1454.86, 04-Mar-2014
1683,Revenue,CCHD,Home Care - Elderly - North,Other Small Contracts,Network Health & Social Care,5460.93, 04-Mar-2014
1684,Revenue,CCHD,Home Care - Elderly - South,Other Small Contracts,Network Health & Social Care,1470.42, 04-Mar-2014
1685,Revenue,CCHD,Home Care - Elderly - North,Other Small Contracts,Network Health & Social Care,4874.17, 04-Mar-2014
1686,Revenue,CCHD,Social Lettings Agency,Fees - General,Individual,10, 04-Mar-2014
1687,Revenue,CCHD,Social Lettings Agency,Other Supplies & Services,Individual,565, 04-Mar-2014
1688,Revenue,CCHD,Public Health - Admin,Other Supplies & Services,NHS South West CSU,26671, 13-Mar-2014
1689,Revenue,CCHD,Bed Purchasing - Under 65s PWLD - South,Permanent Residential,Nightingale Nursing Home,3105.36, 18-Mar-2014
1690,Revenue,CCHD,SLA Grants - Support Serv,Grants to Voluntary Bodies,North Bristol NHS Trust,49070, 24-Mar-2014
1691,Revenue,CCHD,SLA Grants - Support Serv,Grants to Voluntary Bodies,North Bristol NHS Trust,24535, 07-Mar-2014
1692,Revenue,CCHD,SLA Grants - Support Serv,Grants to Voluntary Bodies,North Bristol NHS Trust,24535, 07-Mar-2014
1693,Revenue,CCHD,SLA Grants - Support Serv,Grants to Voluntary Bodies,North Bristol NHS Trust,7399, 17-Mar-2014
1694,Revenue,CCHD,Sexual Health Services - Contraception,Other Supplies & Services,Northville Family Practice,980.76, 25-Mar-2014
1695,Revenue,CCHD,Bed Purchasing - Under 65s PWLD - South,Permanent Residential,Norwood   Broadway House,4899.44, 18-Mar-2014
1696,Revenue,CCHD,Bed Purchasing - Elderly MH - South,Permanent Residential,Notaro Homes Ltd  Queensmead Court,1857.32, 18-Mar-2014
1697,Revenue,CCHD,Bed Purchasing - Southmead Hospital,Permanent Residential,Notaro Homes Ltd  Queensmead Court,1371.32, 18-Mar-2014
1698,Revenue,CCHD,Bed Purchasing - Elderly - South,Permanent Residential,Nova House Care Home,938.4, 18-Mar-2014
1699,Revenue,CCHD,Woodleaze,Agency Staff (Admin/Support Staff) Pay,Nurse Plus and Carer Plus (UK) Limited,1365.03, 14-Mar-2014
1700,Revenue,CCHD,Woodleaze,Agency Staff (Admin/Support Staff) Pay,Nurse Plus and Carer Plus (UK) Limited,1627.68, 14-Mar-2014
1701,Revenue,CCHD,Woodleaze,Agency Staff (Admin/Support Staff) Pay,Nurse Plus and Carer Plus (UK) Limited,1398.22, 28-Mar-2014
1702,Revenue,CCHD,Home Care - Elderly - South,Other Small Contracts,Nursing Solutions Limited,3296.72, 07-Mar-2014
1703,Revenue,CCHD,Home Care - Elderly - North,Other Small Contracts,Nursing Solutions Limited,776.16, 07-Mar-2014
1704,Revenue,CCHD,Home Care - Elderly - South,Other Small Contracts,Nursing Solutions Limited,3234, 07-Mar-2014
1705,Revenue,CCHD,Home Care - Elderly - North,Other Small Contracts,Nursing Solutions Limited,795.76, 07-Mar-2014
1706,Revenue,CCHD,Home Care - Elderly - South,Other Small Contracts,Nursing Solutions Limited,3253.6, 14-Mar-2014
1707,Revenue,CCHD,Home Care - Elderly - North,Other Small Contracts,Nursing Solutions Limited,827.12, 14-Mar-2014
1708,Revenue,CCHD,Home Care - Elderly - South,Other Small Contracts,Nursing Solutions Limited,3430, 20-Mar-2014
1709,Revenue,CCHD,Home Care - Elderly - North,Other Small Contracts,Nursing Solutions Limited,858.48, 20-Mar-2014
1710,Revenue,CCHD,Home Care - Elderly - South,Other Small Contracts,Nursing Solutions Limited,3461.36, 26-Mar-2014
1711,Revenue,CCHD,Home Care - Elderly - North,Other Small Contracts,Nursing Solutions Limited,470.4, 26-Mar-2014
1712,Revenue,CCHD,Section 117 Placements MH Younger,Permanent Nursing,Oaklands,6000, 18-Mar-2014
1713,Revenue,CCHD,Bed purchasing -S28A  Under 65 - North,Permanent Residential,Orchard End Limited,7452.12, 18-Mar-2014
1714,Revenue,CCHD,Bed purchasing - Elderly S117 - South,Permanent Residential,Osbourne Court,3060, 18-Mar-2014
1715,Revenue,CCHD,Bed Purchasing - Elderly - North,Permanent Residential,Osbourne Court,2457.36, 18-Mar-2014
1716,Revenue,CCHD,Bed Purchasing - Elderly - South,Permanent Residential,Osbourne Court,810.56, 18-Mar-2014
1717,Revenue,CCHD,Bed Purchasing - Elderly S117- North,Permanent Residential,Osbourne Court,1900, 18-Mar-2014
1718,Revenue,CCHD,Bed Purchasing - Elderly - North,Permanent Residential,Osbourne Court,2519.28, 18-Mar-2014
1719,Revenue,CCHD,Bed Purchasing - Under 65s PWLD - South,Permanent Residential,Osprey Court,7636.76, 18-Mar-2014
1720,Revenue,CCHD,Bed purchasing - S28A Under 65 - South,Permanent Residential,Osprey Court,4259.36, 18-Mar-2014
1721,Revenue,CCHD,Bed purchasing - S28A Under 65 - South,Permanent Residential,Osprey Court,6305.32, 18-Mar-2014
1722,Revenue,CCHD,Public Health - Admin,Other Supplies & Services,Oxford Diagnostic Laboratories,1175, 04-Mar-2014
1723,Revenue,CCHD,Bed Purchasing - Southmead Hospital,Permanent Nursing,Palm Court Nursing Home,1503.36, 18-Mar-2014
1724,Revenue,CCHD,Bed Purchasing - Elderly MH - South,Permanent Residential,Park Farm House,1333.44, 18-Mar-2014
1725,Revenue,CCHD,Bed Purchasing - Elderly MH - South,Permanent Residential,Park Farm House,1593.2, 18-Mar-2014
1726,Revenue,CCHD,Bed Purchasing - Under 65s PWLD - South,Permanent Residential,Park Hall,5552, 18-Mar-2014
1727,Revenue,CCHD,Bed purchasing - Under 65s PWLD - North,Permanent Residential,Park Hall,5131.28, 18-Mar-2014
1728,Revenue,CCHD,Bed Purchasing - Under 65s PWLD - South,Permanent Residential,Park Hall,4940.84, 18-Mar-2014
1729,Revenue,CCHD,Bed purchasing - Elderly PWLD - South,Permanent Residential,Park Hall,2520.96, 18-Mar-2014
1730,Revenue,CCHD,Bed purchasing - Elderly PWLD - North,Permanent Residential,Park Hall,4897.8, 18-Mar-2014
1731,Revenue,CCHD,Bed purchasing - S28A Under 65 - South,Permanent Residential,Park Hall,4614.16, 18-Mar-2014
1732,Revenue,CCHD,Bed Purchasing - Under 65s PWLD - South,Permanent Residential,Park Hall,4917.16, 18-Mar-2014
1733,Revenue,CCHD,Bed purchasing - Under 65s PWLD - North,Permanent Residential,Park Hall,4278.84, 18-Mar-2014
1734,Revenue,CCHD,Bed Purchasing - S28A - Over 65- North,Permanent Residential,Park Hall,5286.8, 18-Mar-2014
1735,Revenue,CCHD,Bed Purchasing - Under 65s PWLD - South,Permanent Residential,Park Hall,10610.92, 18-Mar-2014
1736,Revenue,CCHD,Bed purchasing -S28A  Under 65 - North,Permanent Residential,Park Hall,5844.16, 18-Mar-2014
1737,Revenue,CCHD,Bed purchasing - S28A Under 65 - South,Permanent Residential,Park Hall,5565.72, 18-Mar-2014
1738,Revenue,CCHD,Bed Purchasing - Under 65s PWLD - South,Permanent Residential,Park Hall,7081.64, 18-Mar-2014
1739,Revenue,CCHD,Social Lettings Agency,Fees - General,Individual,10, 27-Mar-2014
1740,Revenue,CCHD,Social Lettings Agency,Other Supplies & Services,Individual,565, 27-Mar-2014
1741,Revenue,CCHD,Bed Purchasing - Under 65s PWLD - South,Permanent Residential,Penleigh House Care Home,4493.52, 18-Mar-2014
1742,Revenue,CCHD,Bed Purchasing - Under 65s PWLD - South,Permanent Residential,Penleigh House Care Home,6336.4, 18-Mar-2014
1743,Revenue,CCHD,Bed purchasing - Elderly PWLD - South,Permanent Residential,Penleigh House Care Home,4258.48, 18-Mar-2014
1744,Revenue,CCHD,Bed purchasing - S28A Under 65 - South,Permanent Residential,Penleigh House Care Home,5417.04, 18-Mar-2014
1745,Revenue,CCHD,Bed Purchasing - Under 65s PWLD - South,Permanent Residential,Penleigh House Care Home,4893.28, 18-Mar-2014
1746,Revenue,CCHD,Training - Adult Services,Training Expenses,Penny McLellan,505.2, 06-Mar-2014
1747,Revenue,CCHD,Breakthrough and Inclusion Work,Other Supplies & Services,Platinum Fitness,910, 20-Mar-2014
1748,Revenue,CCHD,Breakthrough and Inclusion Work,Other Supplies & Services,Platinum Fitness,1340, 20-Mar-2014
1749,Revenue,CCHD,Public Health - Admin,Other Supplies & Services,Pollenn CIC,1428.4, 07-Mar-2014
1750,Revenue,CCHD,Management & Support costs,Other Supplies & Services,Pondsmead Do Not Use,6800, 24-Mar-2014
1751,Revenue,CCHD,Home Care - Elderly - South,Other Small Contracts,Premier Homecare Limited,296.4, 05-Mar-2014
1752,Revenue,CCHD,Home Care - Elderly - North,Other Small Contracts,Premier Homecare Limited,8671.98, 05-Mar-2014
1753,Revenue,CCHD,Home care - Elderly MH - North,Other Small Contracts,Premier Homecare Limited,109.44, 05-Mar-2014
1754,Revenue,CCHD,Elderly MH Day Care North,Private & Voluntary Day Care,Premier Homecare Limited,91.2, 05-Mar-2014
1755,Revenue,CCHD,Home Care - Elderly - South,Other Small Contracts,Premier Homecare Limited,291.84, 14-Mar-2014
1756,Revenue,CCHD,Home Care - Elderly - North,Other Small Contracts,Premier Homecare Limited,8308.32, 14-Mar-2014
1757,Revenue,CCHD,Day Care - North,Private & Voluntary Day Care,Premier Homecare Limited,13.68, 14-Mar-2014
1758,Revenue,CCHD,Home care - Elderly MH - North,Other Small Contracts,Premier Homecare Limited,127.68, 14-Mar-2014
1759,Revenue,CCHD,Elderly MH Day Care North,Private & Voluntary Day Care,Premier Homecare Limited,127.68, 14-Mar-2014
1760,Revenue,CCHD,Home Care - Elderly - South,Other Small Contracts,Premier Homecare Limited,305.52, 18-Mar-2014
1761,Revenue,CCHD,Home Care - Elderly - North,Other Small Contracts,Premier Homecare Limited,8282.67, 18-Mar-2014
1762,Revenue,CCHD,Home care - Elderly MH - North,Other Small Contracts,Premier Homecare Limited,127.68, 18-Mar-2014
1763,Revenue,CCHD,Elderly MH Day Care North,Private & Voluntary Day Care,Premier Homecare Limited,127.68, 18-Mar-2014
1764,Revenue,CCHD,Home Care - Elderly - South,Other Small Contracts,Premier Homecare Limited,296.4, 26-Mar-2014
1765,Revenue,CCHD,Home Care - Elderly - North,Other Small Contracts,Premier Homecare Limited,8319.15, 26-Mar-2014
1766,Revenue,CCHD,Home care - Elderly MH - North,Other Small Contracts,Premier Homecare Limited,127.68, 26-Mar-2014
1767,Revenue,CCHD,Elderly MH Day Care North,Private & Voluntary Day Care,Premier Homecare Limited,127.68, 26-Mar-2014
1768,Revenue,CCHD,Home Care - Elderly - South,Other Small Contracts,Prestige Nursing,865.22, 24-Mar-2014
1769,Revenue,CCHD,Home Care - Elderly - North,Other Small Contracts,Prestige Nursing,3369.85, 24-Mar-2014
1770,Revenue,CCHD,Day Care - South,Private & Voluntary Day Care,Prestige Nursing,116.37, 24-Mar-2014
1771,Revenue,CCHD,Day Care - North,Private & Voluntary Day Care,Prestige Nursing,448.24, 24-Mar-2014
1772,Revenue,CCHD,Home Care - Elderly - South,Other Small Contracts,Prestige Nursing,994.26, 24-Mar-2014
1773,Revenue,CCHD,Home Care - Elderly - North,Other Small Contracts,Prestige Nursing,3366.05, 24-Mar-2014
1774,Revenue,CCHD,Day Care - South,Private & Voluntary Day Care,Prestige Nursing,122.64, 24-Mar-2014
1775,Revenue,CCHD,Day Care - North,Private & Voluntary Day Care,Prestige Nursing,389.82, 24-Mar-2014
1776,Revenue,CCHD,Home Care - Elderly - South,Other Small Contracts,Prestige Nursing,915.42, 24-Mar-2014
1777,Revenue,CCHD,Home Care - Elderly - North,Other Small Contracts,Prestige Nursing,3169.51, 24-Mar-2014
1778,Revenue,CCHD,Day Care - South,Private & Voluntary Day Care,Prestige Nursing,122.64, 24-Mar-2014
1779,Revenue,CCHD,Day Care - North,Private & Voluntary Day Care,Prestige Nursing,385.44, 24-Mar-2014
1780,Revenue,CCHD,Home Care - Elderly - South,Other Small Contracts,Prestige Nursing,928.56, 24-Mar-2014
1781,Revenue,CCHD,Home Care - Elderly - North,Other Small Contracts,Prestige Nursing,3396.7, 24-Mar-2014
1782,Revenue,CCHD,Day Care - South,Private & Voluntary Day Care,Prestige Nursing,122.64, 24-Mar-2014
1783,Revenue,CCHD,Day Care - North,Private & Voluntary Day Care,Prestige Nursing,385.44, 24-Mar-2014
1784,Revenue,CCHD,Home Care - Elderly - South,Other Small Contracts,Prestige Nursing,959.22, 24-Mar-2014
1785,Revenue,CCHD,Home Care - Elderly - North,Other Small Contracts,Prestige Nursing,3116.39, 24-Mar-2014
1786,Revenue,CCHD,Day Care - South,Private & Voluntary Day Care,Prestige Nursing,122.64, 24-Mar-2014
1787,Revenue,CCHD,Day Care - North,Private & Voluntary Day Care,Prestige Nursing,385.44, 24-Mar-2014
1788,Revenue,CCHD,Home Care - Elderly - South,Other Small Contracts,Prestige Nursing,932.94, 28-Mar-2014
